Workbook

Sheet Caractéristiques test
A1: Caractéristiques de la piste et du test remplissez les cases bleues
A3: Longueur de la piste | B3: 240
A4: Nombre de plots à dépasser pour faire 1 tour | B4: 10
A5: Vitesse de départ (en Km/h) | B5: 9
A6: Distance entre les plots (en m) | B6: =B3/B4 -> 24
A7: Durée des paliers (en secondes) | B7: 60
A8: Accélération (en km/h) | B8: 0.5
D16: 2
D17: 3
D18: 4
D19: 5
D20: 6
D21: 7
D22: 8
D23: 9
D24: 10
D25: 11
D26: 12
D27: 13
D28: 14
D29: 15
D30: 16
D31: 17
D32: 18
D33: 19
D34: 20

Sheet Classe
A1: 303
E3: TEMPS DE COURSE | F3: TOURS DE PISTE | G3: DISTANCE PARCOURUE | H3: VMA
A4: AHMED Rouchdati
A5: ALAMELE Emeline
A6: ALLAMELE Gregory
A7: BABIN Estelle
A8: BERNOT Rachel
A9: BOINA Clifford
A10: BOURLY Marie-Lise
A11: BOURLY Nicolas
A12: CHAN-WING-YEN Xavier
A13: DE GUIGNE Alexandre
A14: DUBART Benoit
A15: DUCHEMANN Gregory
A16: EVRIN Yann
A17: GRONDIN Laurene
A18: HOAREAU M-Samantha
A19: JEAN-JACQUES Oceane
A20: LAVANILLE Lorraine
A21: MAILLOT Samuel
A22: MOMBRUN Rene
A23: MULOT Laetitia
A24: PAUSE Jean Mathieu
A25: RAZAKARIVONY Anthony
A26: SAVIGNAN Loriane
A27: TATEYA Bryan
A28: VIDOT Frederique
A29: VOISIN Kathy

Sheet Calculs pour VMA
A1: Longueur de la piste | B1: ='Caractéristiques test'!B3 -> 240 | C1: Paliers (en s) | D1: ='Caractéristiques test'!B7 -> 60 | E1: A = | F1: =0.5*D2*(1/3.6)*(1/D1) -> 0.001157407407 | H1: 00:00:00
A2: Nombre de plots à dépasser pour faire 1 tour | B2: ='Caractéristiques test'!B4 -> 10 | C2: Accélération (en Km/h) | D2: ='Caractéristiques test'!B8 -> 0.5
A3: Vitesse de départ (en Km/h) | B3: ='Caractéristiques test'!B5 -> 9 | C3: =B3/3.6 -> 2.5 | D3: Distance entre les plots (en m) | E3: ='Caractéristiques test'!B6 -> 24 | I3: Valeur de " B2 " et correspondance en nombre de tours et de plots dépassés
I4: 2 | L4: 3 | O4: 4 | R4: 5 | U4: 6 | X4: 7 | AA4: 8 | AD4: 9 | AG4: 10 | AJ4: 11 | AM4: 12 | AP4: 13 | AS4: 14 | AV4: 15 | AY4: 16 | BB4: 17 | BE4: 18 | BH4: 19 | BK4: 20 | BP4: Arrondi colonne B | BQ4: =MINUTE(H1) -> 0 | BR4: =SECOND(H1) -> 0
B5: Temps de passage (en s) | C5: VMA (en m/s) | D5: Temps de passage aux plots (min:sec) | E5: VMA (en Km/h) | F5: Distance en tour et plots | G5: Distance parcourue | BP5: Secondes | BQ5: Minutes | BR5: Secondes
A6: =E3 -> 24 | B6: =(-$C$3+SQRT($C$3*$C$3+(4*$F$1*A6)))/(2*$F$1) -> 9.55770843 | C6: =$E$3/B6 -> 2.511062163 | D6: =B6*0.0000115740740740741 -> 00:00:09.558 | E6: =C6*3.6 -> 9.039823785 | F6: =INDEX(F6:BM214, 1,$B$2*3) -> 1 plot | G6: =A6 -> 24 | K6: 1 plot | L6: 1 | M6: 0 | N6: =L6&" "&"plot" -> 1 plot | O6: 1 | P6: 0 | Q6: =O6&" "&"plot" -> 1 plot | R6: 1 | S6: 0 | T6: 1 plot | U6: 1 | V6: 0 | W6: 1 plot | X6: 1 | Y6: 0 | Z6: 1 plot | AA6: 1 | AB6: 0 | AC6: 1 plot | AD6: 1 | AE6: 0 | AF6: 1 plot | AG6: 1 | AH6: 0 | AI6: 1 plot | AJ6: 1 | AK6: 0 | AL6: 1 plot | AM6: 1 | AN6: 0 | AO6: 1 plot | AP6: 1 | AQ6: 0 | AR6: 1 plot | AS6: 1 | AT6: 0 | AU6: 1 plot | AV6: 1 | AW6: 0 | AX6: 1 plot | AY6: 1 | AZ6: 0 | BA6: 1 plot | BB6: 1 | BC6: 0 | BD6: 1 plot | BE6: 1 | BF6: 0 | BG6: 1 plot | BH6: 1 | BI6: 0 | BJ6: 1 plot | BK6: 1 | BL6: 0 | BM6: 1 plot | BP6: =ROUND(B6,0) -> 10 | BQ6: =QUOTIENT(BP6,60) -> 0 | BR6: =MOD(BP6,60) -> 10
A7: =A6+$A$6 -> 48 | B7: 19.03230162 | C7: =$E$3/(B7-B6) -> 2.533090289 | D7: =B7*0.0000115740740740741 -> 00:00:19.032 | E7: =C7*3.6 -> 9.119125042 | F7: 2 plots | G7: =A7 -> 48 | I7: 1 | J7: aller-retour | K7: 1 aller-retour | L7: 2 | M7: 0 | N7: =L7&" "&"plots" -> 2 plots | O7: 2 | P7: 0 | Q7: =O7&" "&"plots" -> 2 plots | R7: 2 | S7: 0 | T7: =R7&" "&"plots" -> 2 plots | U7: 2 | V7: 0 | W7: =U7&" "&"plots" -> 2 plots | X7: 2 | Y7: 0 | Z7: =X7&" "&"plots" -> 2 plots | AA7: 2 | AB7: 0 | AC7: =AA7&" "&"plots" -> 2 plots | AD7: 2 | AE7: 0 | AF7: =AD7&" "&"plots" -> 2 plots | AG7: 2 | AH7: 0 | AI7: =AG7&" "&"plots" -> 2 plots | AJ7: 2 | AK7: 0 | AL7: =AJ7&" "&"plots" -> 2 plots | AM7: 2 | AN7: 0 | AO7: =AM7&" "&"plots" -> 2 plots | AP7: 2 | AQ7: 0 | AR7: =AP7&" "&"plots" -> 2 plots | AS7: 2 | AT7: 0 | AU7: =AS7&" "&"plots" -> 2 plots | AV7: 2 | AW7: 0 | AX7: =AV7&" "&"plots" -> 2 plots | AY7: 2 | AZ7: 0 | BA7: =AY7&" "&"plots" -> 2 plots | BB7: 2 | BC7: 0 | BD7: =BB7&" "&"plots" -> 2 plots | BE7: 2 | BF7: 0 | BG7: =BE7&" "&"plots" -> 2 plots | BH7: 2 | BI7: 0 | BJ7: =BH7&" "&"plots" -> 2 plots | BK7: 2 | BL7: 0 | BM7: =BK7&" "&"plots" -> 2 plots | BP7: =ROUND(B7,0) -> 19 | BQ7: =QUOTIENT(BP7,60) -> 0 | BR7: =MOD(BP7,60) -> 19
A8: =A7+$A$6 -> 72 | B8: 28.42591092 | C8: =$E$3/(B8-B7) -> 2.554928487 | D8: =B8*0.0000115740740740741 -> 00:00:28.426 | E8: 9.197742552 | F8: 3 plots | G8: 72 | J8: 1 plot | K8: =IF(I8="",K7 & J8,IF(I8>0,I8& J8)) -> 1 aller-retour 1 plot | L8: 0 | M8: 1 | N8: 1 tour | O8: 3 | P8: 0 | Q8: =O8&" "&"plots" -> 3 plots | R8: 3 | S8: 0 | T8: =R8&" "&"plots" -> 3 plots | U8: 3 | V8: 0 | W8: =U8&" "&"plots" -> 3 plots | X8: 3 | Y8: 0 | Z8: =X8&" "&"plots" -> 3 plots | AA8: 3 | AB8: 0 | AC8: 3 plots | AD8: 3 | AE8: 0 | AF8: =AD8&" "&"plots" -> 3 plots | AG8: 3 | AH8: 0 | AI8: =AG8&" "&"plots" -> 3 plots | AJ8: 3 | AK8: 0 | AL8: =AJ8&" "&"plots" -> 3 plots | AM8: 3 | AN8: 0 | AO8: =AM8&" "&"plots" -> 3 plots | AP8: 3 | AQ8: 0 | AR8: =AP8&" "&"plots" -> 3 plots | AS8: 3 | AT8: 0 | AU8: =AS8&" "&"plots" -> 3 plots | AV8: 3 | AW8: 0 | AX8: =AV8&" "&"plots" -> 3 plots | AY8: 3 | AZ8: 0 | BA8: =AY8&" "&"plots" -> 3 plots | BB8: 3 | BC8: 0 | BD8: =BB8&" "&"plots" -> 3 plots | BE8: 3 | BF8: 0 | BG8: =BE8&" "&"plots" -> 3 plots | BH8: 3 | BI8: 0 | BJ8: =BH8&" "&"plots" -> 3 plots | BK8: 3 | BL8: 0 | BM8: =BK8&" "&"plots" -> 3 plots | BP8: =ROUND(B8,0) -> 28 | BQ8: 0 | BR8: =MOD(BP8,60) -> 28
A9: 96 | B9: 37.74057813 | C9: =$E$3/(B9-B8) -> 2.576581585 | D9: 00:00:37.741 | E9: 9.275693704 | F9: 4 plots | G9: 96 | I9: 2 | J9: aller-retours | K9: =IF(I9="",K8&J9,IF(I9>0,I9&" "&J9)) -> 2 aller-retours | L9: 1 | M9: 1 | N9: 1 tour 1plot | O9: 0 | P9: 1 | Q9: 1 tour | R9: 4 | S9: 0 | T9: =R9&" "&"plots" -> 4 plots | U9: 4 | V9: 0 | W9: =U9&" "&"plots" -> 4 plots | X9: 4 | Y9: 0 | Z9: =X9&" "&"plots" -> 4 plots | AA9: 4 | AB9: 0 | AC9: 4 plots | AD9: 4 | AE9: 0 | AF9: 4 plots | AG9: 4 | AH9: 0 | AI9: 4 plots | AJ9: 4 | AK9: 0 | AL9: 4 plots | AM9: 4 | AN9: 0 | AO9: 4 plots | AP9: 4 | AQ9: 0 | AR9: 4 plots | AS9: 4 | AT9: 0 | AU9: 4 plots | AV9: 4 | AW9: 0 | AX9: 4 plots | AY9: 4 | AZ9: 0 | BA9: 4 plots | BB9: 4 | BC9: 0 | BD9: 4 plots | BE9: 4 | BF9: 0 | BG9: 4 plots | BH9: 4 | BI9: 0 | BJ9: 4 plots | BK9: 4 | BL9: 0 | BM9: 4 plots | BP9: 38 | BQ9: 0 | BR9: =MOD(BP9,60) -> 38
A10: 120 | B10: 46.97826066 | C10: 2.598054212 | D10: 00:00:46.978 | E10: 9.352995162 | F10: 5 plots | G10: 120 | J10: 1 plot | K10: =IF(I10="",K9&J10,IF(I10>0,I10&" "&J10)) -> 2 aller-retours 1 plot | L10: 2 | M10: 1 | N10: 1 tour 2 plots | O10: 1 | P10: 1 | Q10: 1 tour 1plot | R10: 0 | S10: 1 | T10: 1 tour | U10: 5 | V10: 0 | W10: =U10&" "&"plots" -> 5 plots | X10: 5 | Y10: 0 | Z10: =X10&" "&"plots" -> 5 plots | AA10: 5 | AB10: 0 | AC10: 5 plots | AD10: 5 | AE10: 0 | AF10: 5 plots | AG10: 5 | AH10: 0 | AI10: 5 plots | AJ10: 5 | AK10: 0 | AL10: 5 plots | AM10: 5 | AN10: 0 | AO10: 5 plots | AP10: 5 | AQ10: 0 | AR10: 5 plots | AS10: 5 | AT10: 0 | AU10: 5 plots | AV10: 5 | AW10: 0 | AX10: 5 plots | AY10: 5 | AZ10: 0 | BA10: 5 plots | BB10: 5 | BC10: 0 | BD10: 5 plots | BE10: 5 | BF10: 0 | BG10: 5 plots | BH10: 5 | BI10: 0 | BJ10: 5 plots | BK10: 5 | BL10: 0 | BM10: 5 plots | BP10: 47 | BQ10: 0 | BR10: 47
A11: 144 | B11: 56.14083634 | C11: 2.619350807 | D11: 00:00:56.141 | E11: 9.429662904 | F11: 6 plots | G11: 144 | I11: 3 | J11: aller-retours | K11: =IF(I11="",K10&J11,IF(I11>0,I11&" "&J11)) -> 3 aller-retours | L11: 0 | M11: 2 | N11: 2 tours | O11: 2 | P11: 1 | Q11: 1 tour 2 plots | R11: 1 | S11: 1 | T11: 1 tour 1plot | U11: 0 | V11: 1 | W11: 1 tour | X11: 6 | Y11: 0 | Z11: =X11&" "&"plots" -> 6 plots | AA11: 6 | AB11: 0 | AC11: 6 plots | AD11: 6 | AE11: 0 | AF11: 6 plots | AG11: 6 | AH11: 0 | AI11: 6 plots | AJ11: 6 | AK11: 0 | AL11: 6 plots | AM11: 6 | AN11: 0 | AO11: 6 plots | AP11: 6 | AQ11: 0 | AR11: 6 plots | AS11: 6 | AT11: 0 | AU11: 6 plots | AV11: 6 | AW11: 0 | AX11: 6 plots | AY11: 6 | AZ11: 0 | BA11: 6 plots | BB11: 6 | BC11: 0 | BD11: 6 plots | BE11: 6 | BF11: 0 | BG11: 6 plots | BH11: 6 | BI11: 0 | BJ11: 6 plots | BK11: 6 | BL11: 0 | BM11: 6 plots | BP11: 56 | BQ11: 0 | BR11: 56
A12: 168 | B12: 65.23010788 | C12: 2.64047563 | D12: 00:01:05.230 | E12: 9.505712268 | F12: 7 plots | G12: 168 | J12: 1 plot | K12: =IF(I12="",K11&J12,IF(I12>0,I12&" "&J12)) -> 3 aller-retours 1 plot | L12: 1 | M12: 2 | N12: 2 tours 1plot | O12: 3 | P12: 1 | Q12: 1 tour 3 plots | R12: 2 | S12: 1 | T12: 1 tour 2 plots | U12: 1 | V12: 1 | W12: 1 tour 1plot | X12: 0 | Y12: 1 | Z12: 1 tour | AA12: 7 | AB12: 0 | AC12: 7 plots | AD12: 7 | AE12: 0 | AF12: 7 plots | AG12: 7 | AH12: 0 | AI12: 7 plots | AJ12: 7 | AK12: 0 | AL12: 7 plots | AM12: 7 | AN12: 0 | AO12: 7 plots | AP12: 7 | AQ12: 0 | AR12: 7 plots | AS12: 7 | AT12: 0 | AU12: 7 plots | AV12: 7 | AW12: 0 | AX12: 7 plots | AY12: 7 | AZ12: 0 | BA12: 7 plots | BB12: 7 | BC12: 0 | BD12: 7 plots | BE12: 7 | BF12: 0 | BG12: 7 plots | BH12: 7 | BI12: 0 | BJ12: 7 plots | BK12: 7 | BL12: 0 | BM12: 7 plots | BP12: 65 | BQ12: 1 | BR12: 5
A13: 192 | B13: 74.24780702 | C13: 2.661432772 | D13: =B13*0.0000115740740740741 -> 00:01:14.248 | E13: 9.581157979 | F13: 8 plots | G13: =A13 -> 192 | I13: 4 | J13: aller-retours | K13: 4 aller-retours | L13: 2 | M13: 2 | N13: 2 tours 2 plots | O13: 0 | P13: 2 | Q13: 2 tours | R13: 3 | S13: 1 | T13: 1 tour 3 plots | U13: 2 | V13: 1 | W13: 1 tour 2 plots | X13: 1 | Y13: 1 | Z13: 1 tour 1plot | AA13: 0 | AB13: 1 | AC13: 1 tour | AD13: 8 | AE13: 0 | AF13: 8 plots | AG13: 8 | AH13: 0 | AI13: 8 plots | AJ13: 8 | AK13: 0 | AL13: 8 plots | AM13: 8 | AN13: 0 | AO13: 8 plots | AP13: 8 | AQ13: 0 | AR13: 8 plots | AS13: 8 | AT13: 0 | AU13: 8 plots | AV13: 8 | AW13: 0 | AX13: 8 plots | AY13: 8 | AZ13: 0 | BA13: 8 plots | BB13: 8 | BC13: 0 | BD13: 8 plots | BE13: 8 | BF13: 0 | BG13: 8 plots | BH13: 8 | BI13: 0 | BJ13: 8 plots | BK13: 8 | BL13: 0 | BM13: 8 plots | BP13: 74 | BQ13: 1 | BR13: 14
A14: 216 | B14: 83.19559834 | C14: 2.682226164 | D14: 00:01:23.196 | E14: 9.656014189 | F14: 9 plots | G14: 216 | J14: 1plot | K14: 4 aller-retours 1plot | L14: 0 | M14: 3 | N14: 3 tours | O14: 1 | P14: 2 | Q14: 2 tours 1plot | R14: 4 | S14: 1 | T14: 1 tour 4 plots | U14: 3 | V14: 1 | W14: 1 tour 3 plots | X14: 2 | Y14: 1 | Z14: 1 tour 2 plots | AA14: 1 | AB14: 1 | AC14: 1 tour 1plot | AD14: 0 | AE14: 1 | AF14: 1 tour | AG14: 9 | AH14: 0 | AI14: 9 plots | AJ14: 9 | AK14: 0 | AL14: 9 plots | AM14: 9 | AN14: 0 | AO14: 9 plots | AP14: 9 | AQ14: 0 | AR14: 9 plots | AS14: 9 | AT14: 0 | AU14: 9 plots | AV14: 9 | AW14: 0 | AX14: 9 plots | AY14: 9 | AZ14: 0 | BA14: 9 plots | BB14: 9 | BC14: 0 | BD14: 9 plots | BE14: 9 | BF14: 0 | BG14: 9 plots | BH14: 9 | BI14: 0 | BJ14: 9 plots | BK14: 9 | BL14: 0 | BM14: 9 plots | BP14: 83 | BQ14: 1 | BR14: 23
A15: 240 | B15: 92.07508292 | C15: 2.702859585 | D15: 00:01:32.075 | E15: 9.730294505 | F15: 1 tour | G15: 240 | I15: 5 | J15: aller-retours | K15: 5 aller-retours | L15: 1 | M15: 3 | N15: 3 tours 1plot | O15: 2 | P15: 2 | Q15: 2 tours 2 plots | R15: 0 | S15: 2 | T15: 2 tours | U15: 4 | V15: 1 | W15: 1 tour 4 plots | X15: 3 | Y15: 1 | Z15: 1 tour 3 plots | AA15: 2 | AB15: 1 | AC15: 1 tour 2 plots | AD15: 1 | AE15: 1 | AF15: 1 tour 1plot | AG15: 0 | AH15: 1 | AI15: 1 tour | AJ15: 10 | AK15: 0 | AL15: =AJ15&" "&"plots" -> 10 plots | AM15: 10 | AN15: 0 | AO15: 10 plots | AP15: 10 | AQ15: 0 | AR15: 10 plots | AS15: 10 | AT15: 0 | AU15: 10 plots | AV15: 10 | AW15: 0 | AX15: 10 plots | AY15: 10 | AZ15: 0 | BA15: 10 plots | BB15: 10 | BC15: 0 | BD15: 10 plots | BE15: 10 | BF15: 0 | BG15: 10 plots | BH15: 10 | BI15: 0 | BJ15: 10 plots | BK15: 10 | BL15: 0 | BM15: 10 plots | BP15: 92 | BQ15: 1 | BR15: 32
A16: 264 | B16: 100.8878016 | C16: 2.723336672 | D16: 00:01:40.888 | E16: 9.804012019 | F16: 1 tour 1plot | G16: 264 | J16: 1 plot | K16: 5 aller-retours 1 plot | L16: 2 | M16: 3 | N16: 3 tours 2 plots | O16: 3 | P16: 2 | Q16: 2 tours 3 plots | R16: 1 | S16: 2 | T16: 2 tours 1plot | U16: 5 | V16: 1 | W16: 1 tour 5 plots | X16: 4 | Y16: 1 | Z16: 1 tour 4 plots | AA16: 3 | AB16: 1 | AC16: 1 tour 3 plots | AD16: 2 | AE16: 1 | AF16: 1 tour 2 plots | AG16: 1 | AH16: 1 | AI16: 1 tour 1plot | AJ16: 0 | AK16: 1 | AL16: =IF(AK16=0,"",IF(AND(AJ16=0,AK16=1),AK16&" "&"tour",IF(AND(AJ16=0,AK16>1),AK16&" "&"tours",IF(AND(AK16>1,AJ16=1),AK16&" "&"tours"&" "&AJ16&" "&"plot",IF(AND(AK16=1,AJ16=1),AK16&" "&"tour"&" "&AJ16&" "&"plot",IF(AND(AK16=1,AJ16>0),AK16&" "&"tour"&" "&AJ16&" "&"plots",IF(AND(AK16>1,AJ16>1),AK16&" "&"tours"&" "&AJ16&" "&"plots"))))))) -> 1 tour | AM16: 11 | AN16: 0 | AO16: 11 plots | AP16: 11 | AQ16: 0 | AR16: 11 plots | AS16: 11 | AT16: 0 | AU16: 11 plots | AV16: 11 | AW16: 0 | AX16: 11 plots | AY16: 11 | AZ16: 0 | BA16: 11 plots | BB16: 11 | BC16: 0 | BD16: 11 plots | BE16: 11 | BF16: 0 | BG16: 11 plots | BH16: 11 | BI16: 0 | BJ16: 11 plots | BK16: 11 | BL16: 0 | BM16: 11 plots | BP16: 101 | BQ16: =QUOTIENT(BP16,60) -> 1 | BR16: 41
A17: 288 | B17: 109.6352382 | C17: 2.743660926 | D17: 00:01:49.635 | E17: 9.877179333 | F17: 1 tour 2 plots | G17: 288 | I17: 6 | J17: aller-retours | K17: 6 aller-retours | L17: 0 | M17: 4 | N17: 4 tours | O17: 0 | P17: 3 | Q17: 3 tours | R17: 2 | S17: 2 | T17: 2 tours 2 plots | U17: 0 | V17: 2 | W17: 2 tours | X17: 5 | Y17: 1 | Z17: 1 tour 5 plots | AA17: 4 | AB17: 1 | AC17: 1 tour 4 plots | AD17: 3 | AE17: 1 | AF17: 1 tour 3 plots | AG17: 2 | AH17: 1 | AI17: 1 tour 2 plots | AJ17: 1 | AK17: 1 | AL17: 1 tour 1 plot | AM17: 0 | AN17: 1 | AO17: =IF(AN17=0,"",IF(AND(AM17=0,AN17=1),AN17&" "&"tour",IF(AND(AM17=0,AN17>1),AN17&" "&"tours",IF(AND(AN17>1,AM17=1),AN17&" "&"tours"&" "&AM17&" "&"plot",IF(AND(AN17=1,AM17=1),AN17&" "&"tour"&" "&AM17&" "&"plot",IF(AND(AN17=1,AM17>0),AN17&" "&"tour"&" "&AM17&" "&"plots",IF(AND(AN17>1,AM17>1),AN17&" "&"tours"&" "&AM17&" "&"plots"))))))) -> 1 tour | AP17: 12 | AQ17: 0 | AR17: 12 plots | AS17: 12 | AT17: 0 | AU17: 12 plots | AV17: 12 | AW17: 0 | AX17: 12 plots | AY17: 12 | AZ17: 0 | BA17: 12 plots | BB17: 12 | BC17: 0 | BD17: 12 plots | BE17: 12 | BF17: 0 | BG17: 12 plots | BH17: 12 | BI17: 0 | BJ17: 12 plots | BK17: 12 | BL17: 0 | BM17: 12 plots | BP17: 110 | BQ17: 1 | BR17: 50
A18: 312 | B18: 118.3188224 | C18: 2.763835718 | D18: =B18*0.0000115740740740741 -> 00:01:58.319 | E18: 9.949808586 | F18: 1 tour 3 plots | G18: 312 | J18: 1 plot | K18: 6 aller-retours 1 plot | L18: 1 | M18: 4 | N18: 4 tours 1plot | O18: 1 | P18: 3 | Q18: 3 tours 1plot | R18: 3 | S18: 2 | T18: 2 tours 3 plots | U18: 1 | V18: 2 | W18: 2 tours 1plot | X18: 6 | Y18: 1 | Z18: 1 tour 6 plots | AA18: 5 | AB18: 1 | AC18: 1 tour 5 plots | AD18: 4 | AE18: 1 | AF18: 1 tour 4 plots | AG18: 3 | AH18: 1 | AI18: 1 tour 3 plots | AJ18: 2 | AK18: 1 | AL18: 1 tour 2 plots | AM18: 1 | AN18: 1 | AO18: 1 tour 1 plot | AP18: 0 | AQ18: 1 | AR18: =IF(AQ18=0,"",IF(AND(AP18=0,AQ18=1),AQ18&" "&"tour",IF(AND(AP18=0,AQ18>1),AQ18&" "&"tours",IF(AND(AQ18>1,AP18=1),AQ18&" "&"tours"&" "&AP18&" "&"plot",IF(AND(AQ18=1,AP18=1),AQ18&" "&"tour"&" "&AP18&" "&"plot",IF(AND(AQ18=1,AP18>0),AQ18&" "&"tour"&" "&AP18&" "&"plots",IF(AND(AQ18>1,AP18>1),AQ18&" "&"tours"&" "&AP18&" "&"plots"))))))) -> 1 tour | AS18: 13 | AT18: 0 | AU18: 13 plots | AV18: 13 | AW18: 0 | AX18: 13 plots | AY18: 13 | AZ18: 0 | BA18: 13 plots | BB18: 13 | BC18: 0 | BD18: 13 plots | BE18: 13 | BF18: 0 | BG18: 13 plots | BH18: 13 | BI18: 0 | BJ18: 13 plots | BK18: 13 | BL18: 0 | BM18: 13 plots | BP18: 118 | BQ18: 1 | BR18: 58
A19: 336 | B19: 126.9399322 | C19: 2.783864299 | D19: 00:02:06.940 | E19: 10.02191148 | F19: 1 tour 4 plots | G19: 336 | I19: 7 | J19: aller-retours | K19: 7 aller-retours | L19: 2 | M19: 4 | N19: 4 tours 2 plots | O19: 2 | P19: 3 | Q19: 3 tours 2 plots | R19: 4 | S19: 2 | T19: 2 tours 4 plots | U19: 2 | V19: 2 | W19: 2 tours 2 plots | X19: 0 | Y19: 2 | Z19: 2 tours | AA19: 6 | AB19: 1 | AC19: 1 tour 6 plots | AD19: 5 | AE19: 1 | AF19: 1 tour 5 plots | AG19: 4 | AH19: 1 | AI19: 1 tour 4 plots | AJ19: 3 | AK19: 1 | AL19: 1 tour 3 plots | AM19: 2 | AN19: 1 | AO19: 1 tour 2 plots | AP19: 1 | AQ19: 1 | AR19: 1 tour 1 plot | AS19: 0 | AT19: 1 | AU19: =IF(AT19=0,"",IF(AND(AS19=0,AT19=1),AT19&" "&"tour",IF(AND(AS19=0,AT19>1),AT19&" "&"tours",IF(AND(AT19>1,AS19=1),AT19&" "&"tours"&" "&AS19&" "&"plot",IF(AND(AT19=1,AS19=1),AT19&" "&"tour"&" "&AS19&" "&"plot",IF(AND(AT19=1,AS19>0),AT19&" "&"tour"&" "&AS19&" "&"plots",IF(AND(AT19>1,AS19>1),AT19&" "&"tours"&" "&AS19&" "&"plots"))))))) -> 1 tour | AV19: 14 | AW19: 0 | AX19: =AV19&" "&"plots" -> 14 plots | AY19: 14 | AZ19: 0 | BA19: 14 plots | BB19: 14 | BC19: 0 | BD19: 14 plots | BE19: 14 | BF19: 0 | BG19: 14 plots | BH19: 14 | BI19: 0 | BJ19: 14 plots | BK19: 14 | BL19: 0 | BM19: 14 plots | BP19: 127 | BQ19: 2 | BR19: 7
A20: 360 | B20: 135.4998972 | C20: 2.803749803 | D20: 00:02:15.500 | E20: 10.09349929 | F20: 1 tour 5 plots | G20: 360 | J20: 1 plot | K20: 7 aller-retours 1 plot | L20: 0 | M20: 5 | N20: 5 tours | O20: 3 | P20: 3 | Q20: 3 tours 3 plots | R20: 0 | S20: 3 | T20: 3 tours | U20: 3 | V20: 2 | W20: 2 tours 3 plots | X20: 1 | Y20: 2 | Z20: 2 tours 1plot | AA20: 7 | AB20: 1 | AC20: 1 tour 7 plots | AD20: 6 | AE20: 1 | AF20: 1 tour 6 plots | AG20: 5 | AH20: 1 | AI20: 1 tour 5 plots | AJ20: 4 | AK20: 1 | AL20: 1 tour 4 plots | AM20: 3 | AN20: 1 | AO20: 1 tour 3 plots | AP20: 2 | AQ20: 1 | AR20: 1 tour 2 plots | AS20: 1 | AT20: 1 | AU20: 1 tour 1 plot | AV20: 0 | AW20: 1 | AX20: =IF(AW20=0,"",IF(AND(AV20=0,AW20=1),AW20&" "&"tour",IF(AND(AV20=0,AW20>1),AW20&" "&"tours",IF(AND(AW20>1,AV20=1),AW20&" "&"tours"&" "&AV20&" "&"plot",IF(AND(AW20=1,AV20=1),AW20&" "&"tour"&" "&AV20&" "&"plot",IF(AND(AW20=1,AV20>0),AW20&" "&"tour"&" "&AV20&" "&"plots",IF(AND(AW20>1,AV20>1),AW20&" "&"tours"&" "&AV20&" "&"plots"))))))) -> 1 tour | AY20: 15 | AZ20: 0 | BA20: 15 plots | BB20: 15 | BC20: 0 | BD20: 15 plots | BE20: 15 | BF20: 0 | BG20: 15 plots | BH20: 15 | BI20: 0 | BJ20: 15 plots | BK20: 15 | BL20: 0 | BM20: 15 plots | BP20: 135 | BQ20: 2 | BR20: 15
A21: 384 | B21: 144 | C21: 2.823495251 | D21: 00:02:24 | E21: 10.1645829 | F21: 1 tour 6 plots | G21: 384 | I21: 8 | J21: aller-retours | K21: 8 aller-retours | L21: 1 | M21: 5 | N21: 5 tours 1plot | O21: 0 | P21: 4 | Q21: 4 tours | R21: 1 | S21: 3 | T21: 3 tours 1plot | U21: 4 | V21: 2 | W21: 2 tours 4 plots | X21: 2 | Y21: 2 | Z21: 2 tours 2 plots | AA21: 0 | AB21: 2 | AC21: 2 tours | AD21: 7 | AE21: 1 | AF21: 1 tour 7 plots | AG21: 6 | AH21: 1 | AI21: 1 tour 6 plots | AJ21: 5 | AK21: 1 | AL21: 1 tour 5 plots | AM21: 4 | AN21: 1 | AO21: 1 tour 4 plots | AP21: 3 | AQ21: 1 | AR21: 1 tour 3 plots | AS21: 2 | AT21: 1 | AU21: 1 tour 2 plots | AV21: 1 | AW21: 1 | AX21: 1 tour 1 plot | AY21: 0 | AZ21: 1 | BA21: =IF(AZ21=0,"",IF(AND(AY21=0,AZ21=1),AZ21&" "&"tour",IF(AND(AY21=0,AZ21>1),AZ21&" "&"tours",IF(AND(AZ21>1,AY21=1),AZ21&" "&"tours"&" "&AY21&" "&"plot",IF(AND(AZ21=1,AY21=1),AZ21&" "&"tour"&" "&AY21&" "&"plot",IF(AND(AZ21=1,AY21>0),AZ21&" "&"tour"&" "&AY21&" "&"plots",IF(AND(AZ21>1,AY21>1),AZ21&" "&"tours"&" "&AY21&" "&"plots"))))))) -> 1 tour | BB21: 16 | BC21: 0 | BD21: 16 plots | BE21: 16 | BF21: 0 | BG21: 16 plots | BH21: 16 | BI21: 0 | BJ21: 16 plots | BK21: 16 | BL21: 0 | BM21: 16 plots | BP21: 144 | BQ21: 2 | BR21: 24
A22: 408 | B22: 152.4414793 | C22: 2.843103564 | D22: 00:02:32.441 | E22: 10.23517283 | F22: 1 tour 7 plots | G22: 408 | J22: 1 plot | K22: 8 aller-retours 1 plot | L22: 2 | M22: 5 | N22: 5 tours 2 plots | O22: 1 | P22: 4 | Q22: 4 tours 1plot | R22: 2 | S22: 3 | T22: 3 tours 2 plots | U22: 5 | V22: 2 | W22: 2 tours 5 plots | X22: 3 | Y22: 2 | Z22: 2 tours 3 plots | AA22: 1 | AB22: 2 | AC22: 2 tours 1plot | AD22: 8 | AE22: 1 | AF22: 1 tour 8 plots | AG22: 7 | AH22: 1 | AI22: 1 tour 7 plots | AJ22: 6 | AK22: 1 | AL22: 1 tour 6 plots | AM22: 5 | AN22: 1 | AO22: 1 tour 5 plots | AP22: 4 | AQ22: 1 | AR22: 1 tour 4 plots | AS22: 3 | AT22: 1 | AU22: 1 tour 3 plots | AV22: 2 | AW22: 1 | AX22: 1 tour 2 plots | AY22: 1 | AZ22: 1 | BA22: 1 tour 1 plot | BB22: 0 | BC22: 1 | BD22: =IF(BC22=0,"",IF(AND(BB22=0,BC22=1),BC22&" "&"tour",IF(AND(BB22=0,BC22>1),BC22&" "&"tours",IF(AND(BC22>1,BB22=1),BC22&" "&"tours"&" "&BB22&" "&"plot",IF(AND(BC22=1,BB22=1),BC22&" "&"tour"&" "&BB22&" "&"plot",IF(AND(BC22=1,BB22>0),BC22&" "&"tour"&" "&BB22&" "&"plots",IF(AND(BC22>1,BB22>1),BC22&" "&"tours"&" "&BB22&" "&"plots"))))))) -> 1 tour | BE22: 17 | BF22: 0 | BG22: 17 plots | BH22: 17 | BI22: 0 | BJ22: 17 plots | BK22: 17 | BL22: 0 | BM22: 17 plots | BP22: 152 | BQ22: 2 | BR22: 32
A23: 432 | B23: 160.8255317 | C23: 2.862577559 | D23: 00:02:40.826 | E23: 10.30527921 | F23: 1 tour 8 plots | G23: 432 | I23: 9 | J23: aller-retours | K23: 9 aller-retours | L23: 0 | M23: 6 | N23: 6 tours | O23: 2 | P23: 4 | Q23: 4 tours 2 plots | R23: 3 | S23: 3 | T23: 3 tours 3 plots | U23: 0 | V23: 3 | W23: 3 tours | X23: 4 | Y23: 2 | Z23: 2 tours 4 plots | AA23: 2 | AB23: 2 | AC23: 2 tours 2 plots | AD23: 0 | AE23: 2 | AF23: 2 tours | AG23: 8 | AH23: 1 | AI23: 1 tour 8 plots | AJ23: 7 | AK23: 1 | AL23: 1 tour 7 plots | AM23: 6 | AN23: 1 | AO23: 1 tour 6 plots | AP23: 5 | AQ23: 1 | AR23: 1 tour 5 plots | AS23: 4 | AT23: 1 | AU23: 1 tour 4 plots | AV23: 3 | AW23: 1 | AX23: 1 tour 3 plots | AY23: 2 | AZ23: 1 | BA23: 1 tour 2 plots | BB23: 1 | BC23: 1 | BD23: 1 tour 1 plot | BE23: 0 | BF23: 1 | BG23: =IF(BF23=0,"",IF(AND(BE23=0,BF23=1),BF23&" "&"tour",IF(AND(BE23=0,BF23>1),BF23&" "&"tours",IF(AND(BF23>1,BE23=1),BF23&" "&"tours"&" "&BE23&" "&"plot",IF(AND(BF23=1,BE23=1),BF23&" "&"tour"&" "&BE23&" "&"plot",IF(AND(BF23=1,BE23>0),BF23&" "&"tour"&" "&BE23&" "&"plots",IF(AND(BF23>1,BE23>1),BF23&" "&"tours"&" "&BE23&" "&"plots"))))))) -> 1 tour | BH23: 18 | BI23: 0 | BJ23: 18 plots | BK23: 18 | BL23: 0 | BM23: 18 plots | BP23: 161 | BQ23: 2 | BR23: 41
A24: 456 | B24: 169.1533132 | C24: 2.881919959 | D24: 00:02:49.153 | E24: 10.37491185 | F24: 1 tour 9 plots | G24: 456 | J24: 1 plot | K24: 9 aller-retours 1 plot | L24: 1 | M24: 6 | N24: 6 tours 1plot | O24: 3 | P24: 4 | Q24: 4 tours 3 plots | R24: 4 | S24: 3 | T24: 3 tours 4 plots | U24: 1 | V24: 3 | W24: 3 tours 1plot | X24: 5 | Y24: 2 | Z24: 2 tours 5 plots | AA24: 3 | AB24: 2 | AC24: 2 tours 3 plots | AD24: 1 | AE24: 2 | AF24: 2 tours 1plot | AG24: 9 | AH24: 1 | AI24: 1 tour 9 plots | AJ24: 8 | AK24: 1 | AL24: 1 tour 8 plots | AM24: 7 | AN24: 1 | AO24: 1 tour 7 plots | AP24: 6 | AQ24: 1 | AR24: 1 tour 6 plots | AS24: 5 | AT24: 1 | AU24: 1 tour 5 plots | AV24: 4 | AW24: 1 | AX24: 1 tour 4 plots | AY24: 3 | AZ24: 1 | BA24: 1 tour 3 plots | BB24: 2 | BC24: 1 | BD24: 1 tour 2 plots | BE24: 1 | BF24: 1 | BG24: 1 tour 1 plot | BH24: 0 | BI24: 1 | BJ24: =IF(BI24=0,"",IF(AND(BH24=0,BI24=1),BI24&" "&"tour",IF(AND(BH24=0,BI24>1),BI24&" "&"tours",IF(AND(BI24>1,BH24=1),BI24&" "&"tours"&" "&BH24&" "&"plot",IF(AND(BI24=1,BH24=1),BI24&" "&"tour"&" "&BH24&" "&"plot",IF(AND(BI24=1,BH24>0),BI24&" "&"tour"&" "&BH24&" "&"plots",IF(AND(BI24>1,BH24>1),BI24&" "&"tours"&" "&BH24&" "&"plots"))))))) -> 1 tour | BK24: 19 | BL24: 0 | BM24: 19 plots | BP24: 169 | BQ24: 2 | BR24: 49
A25: 480 | B25: 177.4259422 | C25: 2.901133397 | D25: 00:02:57.426 | E25: 10.44408023 | F25: 2 tours | G25: 480 | I25: 10 | J25: aller-retours | K25: 10 aller-retours | L25: 2 | M25: 6 | N25: 6 tours 2 plots | O25: 0 | P25: 5 | Q25: 5 tours | R25: 0 | S25: 4 | T25: 4 tours | U25: 2 | V25: 3 | W25: 3 tours 2 plots | X25: 6 | Y25: 2 | Z25: 2 tours 6 plots | AA25: 4 | AB25: 2 | AC25: 2 tours 4 plots | AD25: 2 | AE25: 2 | AF25: 2 tours 2 plots | AG25: 0 | AH25: 2 | AI25: 2 tours | AJ25: 9 | AK25: 1 | AL25: 1 tour 9 plots | AM25: 8 | AN25: 1 | AO25: 1 tour 8 plots | AP25: 7 | AQ25: 1 | AR25: 1 tour 7 plots | AS25: 6 | AT25: 1 | AU25: 1 tour 6 plots | AV25: 5 | AW25: 1 | AX25: 1 tour 5 plots | AY25: 4 | AZ25: 1 | BA25: 1 tour 4 plots | BB25: 3 | BC25: 1 | BD25: 1 tour 3 plots | BE25: 2 | BF25: 1 | BG25: 1 tour 2 plots | BH25: 1 | BI25: 1 | BJ25: 1 tour 1 plot | BK25: 0 | BL25: 1 | BM25: =IF(BL25=0,"",IF(AND(BK25=0,BL25=1),BL25&" "&"tour",IF(AND(BK25=0,BL25>1),BL25&" "&"tours",IF(AND(BL25>1,BK25=1),BL25&" "&"tours"&" "&BK25&" "&"plot",IF(AND(BL25=1,BK25=1),BL25&" "&"tour"&" "&BK25&" "&"plot",IF(AND(BL25=1,BK25>0),BL25&" "&"tour"&" "&BK25&" "&"plots",IF(AND(BL25>1,BK25>1),BL25&" "&"tours"&" "&BK25&" "&"plots"))))))) -> 1 tour | BP25: 177 | BQ25: 2 | BR25: 57
A26: 504 | B26: 185.6444998 | C26: 2.920220419 | D26: 00:03:05.644 | E26: 10.51279351 | F26: 2 tours 1plot | G26: 504 | J26: 1 plot | K26: 10 aller-retours 1 plot | L26: 0 | M26: 7 | N26: 7 tours | O26: 1 | P26: 5 | Q26: 5 tours 1plot | R26: 1 | S26: 4 | T26: 4 tours 1plot | U26: 3 | V26: 3 | W26: 3 tours 3 plots | X26: 0 | Y26: 3 | Z26: 3 tours | AA26: 5 | AB26: 2 | AC26: 2 tours 5 plots | AD26: 3 | AE26: 2 | AF26: 2 tours 3 plots | AG26: 1 | AH26: 2 | AI26: 2 tours 1plot | AJ26: 10 | AK26: 1 | AL26: 1 tour 10 plots | AM26: 9 | AN26: 1 | AO26: 1 tour 9 plots | AP26: 8 | AQ26: 1 | AR26: 1 tour 8 plots | AS26: 7 | AT26: 1 | AU26: 1 tour 7 plots | AV26: 6 | AW26: 1 | AX26: 1 tour 6 plots | AY26: 5 | AZ26: 1 | BA26: 1 tour 5 plots | BB26: 4 | BC26: 1 | BD26: 1 tour 4 plots | BE26: 3 | BF26: 1 | BG26: 1 tour 3 plots | BH26: 2 | BI26: 1 | BJ26: 1 tour 2 plots | BK26: 1 | BL26: 1 | BM26: 1 tour 1 plot | BP26: 186 | BQ26: 3 | BR26: 6
A27: 528 | B27: 193.8100329 | C27: 2.939183487 | D27: 00:03:13.810 | E27: 10.58106055 | F27: 2 tours 2 plots | G27: 528 | I27: 11 | J27: aller-retours | K27: 11 aller-retours | L27: 1 | M27: 7 | N27: 7 tours 1plot | O27: 2 | P27: 5 | Q27: 5 tours 2 plots | R27: 2 | S27: 4 | T27: 4 tours 2 plots | U27: 4 | V27: 3 | W27: 3 tours 4 plots | X27: 1 | Y27: 3 | Z27: 3 tours 1plot | AA27: 6 | AB27: 2 | AC27: 2 tours 6 plots | AD27: 4 | AE27: 2 | AF27: 2 tours 4 plots | AG27: 2 | AH27: 2 | AI27: 2 tours 2 plots | AJ27: 0 | AK27: 2 | AL27: 2 tours | AM27: 10 | AN27: 1 | AO27: 1 tour 10 plots | AP27: 9 | AQ27: 1 | AR27: 1 tour 9 plots | AS27: 8 | AT27: 1 | AU27: 1 tour 8 plots | AV27: 7 | AW27: 1 | AX27: 1 tour 7 plots | AY27: 6 | AZ27: 1 | BA27: 1 tour 6 plots | BB27: 5 | BC27: 1 | BD27: 1 tour 5 plots | BE27: 4 | BF27: 1 | BG27: 1 tour 4 plots | BH27: 3 | BI27: 1 | BJ27: 1 tour 3 plots | BK27: 2 | BL27: 1 | BM27: 1 tour 2 plots | BP27: 194 | BQ27: 3 | BR27: 14
A28: 552 | B28: 201.9235547 | C28: 2.958024986 | D28: 00:03:21.924 | E28: 10.64888995 | F28: 2 tours 3 plots | G28: 552 | J28: 1 plot | K28: 11 aller-retours 1 plot | L28: 2 | M28: 7 | N28: 7 tours 2 plots | O28: 3 | P28: 5 | Q28: 5 tours 3 plots | R28: 3 | S28: 4 | T28: 4 tours 3 plots | U28: 5 | V28: 3 | W28: 3 tours 5 plots | X28: 2 | Y28: 3 | Z28: 3 tours 2 plots | AA28: 7 | AB28: 2 | AC28: 2 tours 7 plots | AD28: 5 | AE28: 2 | AF28: 2 tours 5 plots | AG28: 3 | AH28: 2 | AI28: 2 tours 3 plots | AJ28: 1 | AK28: 2 | AL28: 2 tours 1 plot | AM28: 11 | AN28: 1 | AO28: 1 tour 11 plots | AP28: 10 | AQ28: 1 | AR28: 1 tour 10 plots | AS28: 9 | AT28: 1 | AU28: 1 tour 9 plots | AV28: 8 | AW28: 1 | AX28: 1 tour 8 plots | AY28: 7 | AZ28: 1 | BA28: 1 tour 7 plots | BB28: 6 | BC28: 1 | BD28: 1 tour 6 plots | BE28: 5 | BF28: 1 | BG28: 1 tour 5 plots | BH28: 4 | BI28: 1 | BJ28: 1 tour 4 plots | BK28: 3 | BL28: 1 | BM28: 1 tour 3 plots | BP28: 202 | BQ28: 3 | BR28: 22
A29: 576 | B29: 209.9860464 | C29: 2.976747223 | D29: 00:03:29.986 | E29: 10.71629 | F29: 2 tours 4 plots | G29: 576 | I29: 12 | J29: aller-retours | K29: 12 aller-retours | L29: 0 | M29: 8 | N29: 8 tours | O29: 0 | P29: 6 | Q29: 6 tours | R29: 4 | S29: 4 | T29: 4 tours 4 plots | U29: 0 | V29: 4 | W29: 4 tours | X29: 3 | Y29: 3 | Z29: 3 tours 3 plots | AA29: 0 | AB29: 3 | AC29: 3 tours | AD29: 6 | AE29: 2 | AF29: 2 tours 6 plots | AG29: 4 | AH29: 2 | AI29: 2 tours 4 plots | AJ29: 2 | AK29: 2 | AL29: 2 tours 2 plots | AM29: 0 | AN29: 2 | AO29: 2 tours | AP29: 11 | AQ29: 1 | AR29: 1 tour 11 plots | AS29: 10 | AT29: 1 | AU29: 1 tour 10 plots | AV29: 9 | AW29: 1 | AX29: 1 tour 9 plots | AY29: 8 | AZ29: 1 | BA29: 1 tour 8 plots | BB29: 7 | BC29: 1 | BD29: 1 tour 7 plots | BE29: 6 | BF29: 1 | BG29: 1 tour 6 plots | BH29: 5 | BI29: 1 | BJ29: 1 tour 5 plots | BK29: 4 | BL29: 1 | BM29: 1 tour 4 plots | BP29: 210 | BQ29: 3 | BR29: 30
A30: 600 | B30: 217.9984592 | C30: 2.995352437 | D30: 00:03:37.998 | E30: 10.78326877 | F30: 2 tours 5 plots | G30: 600 | J30: 1 plot | K30: 12 aller-retours 1 plot | L30: 1 | M30: 8 | N30: 8 tours 1plot | O30: 1 | P30: 6 | Q30: 6 tours 1plot | R30: 0 | S30: 5 | T30: 5 tours | U30: 1 | V30: 4 | W30: 4 tours 1plot | X30: 4 | Y30: 3 | Z30: 3 tours 4 plots | AA30: 1 | AB30: 3 | AC30: 3 tours 1plot | AD30: 7 | AE30: 2 | AF30: 2 tours 7 plots | AG30: 5 | AH30: 2 | AI30: 2 tours 5 plots | AJ30: 3 | AK30: 2 | AL30: 2 tours 3 plots | AM30: 1 | AN30: 2 | AO30: 2 tours 1 plot | AP30: 12 | AQ30: 1 | AR30: 1 tour 12 plots | AS30: 11 | AT30: 1 | AU30: 1 tour 11 plots | AV30: 10 | AW30: 1 | AX30: 1 tour 10 plots | AY30: 9 | AZ30: 1 | BA30: 1 tour 9 plots | BB30: 8 | BC30: 1 | BD30: 1 tour 8 plots | BE30: 7 | BF30: 1 | BG30: 1 tour 7 plots | BH30: 6 | BI30: 1 | BJ30: 1 tour 6 plots | BK30: 5 | BL30: 1 | BM30: 1 tour 5 plots | BP30: 218 | BQ30: 3 | BR30: 38
A31: 624 | B31: 225.9617146 | C31: 3.013842794 | D31: 00:03:45.962 | E31: 10.84983406 | F31: 2 tours 6 plots | G31: 624 | I31: 13 | J31: aller-retours | K31: 13 aller-retours | L31: 2 | M31: 8 | N31: 8 tours 2 plots | O31: 2 | P31: 6 | Q31: 6 tours 2 plots | R31: 1 | S31: 5 | T31: 5 tours 1plot | U31: 2 | V31: 4 | W31: 4 tours 2 plots | X31: 5 | Y31: 3 | Z31: 3 tours 5 plots | AA31: 2 | AB31: 3 | AC31: 3 tours 2 plots | AD31: 8 | AE31: 2 | AF31: 2 tours 8 plots | AG31: 6 | AH31: 2 | AI31: 2 tours 6 plots | AJ31: 4 | AK31: 2 | AL31: 2 tours 4 plots | AM31: 2 | AN31: 2 | AO31: 2 tours 2 plots | AP31: 0 | AQ31: 2 | AR31: 2 tours | AS31: 12 | AT31: 1 | AU31: 1 tour 12 plots | AV31: 11 | AW31: 1 | AX31: 1 tour 11 plots | AY31: 10 | AZ31: 1 | BA31: 1 tour 10 plots | BB31: 9 | BC31: 1 | BD31: 1 tour 9 plots | BE31: 8 | BF31: 1 | BG31: 1 tour 8 plots | BH31: 7 | BI31: 1 | BJ31: 1 tour 7 plots | BK31: 6 | BL31: 1 | BM31: 1 tour 6 plots | BP31: 226 | BQ31: 3 | BR31: 46
A32: 648 | B32: 233.8767065 | C32: 3.032220395 | D32: 00:03:53.877 | E32: 10.91599342 | F32: 2 tours 7 plots | G32: 648 | J32: 1 plot | K32: 13 aller-retours 1 plot | L32: 0 | M32: 9 | N32: 9 tours | O32: 3 | P32: 6 | Q32: 6 tours 3 plots | R32: 2 | S32: 5 | T32: 5 tours 2 plots | U32: 3 | V32: 4 | W32: 4 tours 3 plots | X32: 6 | Y32: 3 | Z32: 3 tours 6 plots | AA32: 3 | AB32: 3 | AC32: 3 tours 3 plots | AD32: 0 | AE32: 3 | AF32: 3 tours | AG32: 7 | AH32: 2 | AI32: 2 tours 7 plots | AJ32: 5 | AK32: 2 | AL32: 2 tours 5 plots | AM32: 3 | AN32: 2 | AO32: 2 tours 3 plots | AP32: 1 | AQ32: 2 | AR32: 2 tours 1 plot | AS32: 13 | AT32: 1 | AU32: 1 tour 13 plots | AV32: 12 | AW32: 1 | AX32: 1 tour 12 plots | AY32: 11 | AZ32: 1 | BA32: 1 tour 11 plots | BB32: 10 | BC32: 1 | BD32: 1 tour 10 plots | BE32: 9 | BF32: 1 | BG32: 1 tour 9 plots | BH32: 8 | BI32: 1 | BJ32: 1 tour 8 plots | BK32: 7 | BL32: 1 | BM32: 1 tour 7 plots | BP32: 234 | BQ32: 3 | BR32: 54
A33: 672 | B33: 241.744302 | C33: 3.050487278 | D33: 00:04:01.744 | E33: 10.9817542 | F33: 2 tours 8 plots | G33: 672 | I33: 14 | J33: aller-retour | K33: 14 aller-retour | L33: 1 | M33: 9 | N33: 9 tours 1plot | O33: 0 | P33: 7 | Q33: 7 tours | R33: 3 | S33: 5 | T33: 5 tours 3 plots | U33: 4 | V33: 4 | W33: 4 tours 4 plots | X33: 0 | Y33: 4 | Z33: 4 tours | AA33: 4 | AB33: 3 | AC33: 3 tours 4 plots | AD33: 1 | AE33: 3 | AF33: 3 tours 1plot | AG33: 8 | AH33: 2 | AI33: 2 tours 8 plots | AJ33: 6 | AK33: 2 | AL33: 2 tours 6 plots | AM33: 4 | AN33: 2 | AO33: 2 tours 4 plots | AP33: 2 | AQ33: 2 | AR33: 2 tours 2 plots | AS33: 0 | AT33: 2 | AU33: 2 tours | AV33: 13 | AW33: 1 | AX33: 1 tour 13 plots | AY33: 12 | AZ33: 1 | BA33: 1 tour 12 plots | BB33: 11 | BC33: 1 | BD33: 1 tour 11 plots | BE33: 10 | BF33: 1 | BG33: 1 tour 10 plots | BH33: 9 | BI33: 1 | BJ33: 1 tour 9 plots | BK33: 8 | BL33: 1 | BM33: 1 tour 8 plots | BP33: 242 | BQ33: 4 | BR33: 2
A34: 696 | B34: 249.5653425 | C34: 3.068645422 | D34: 00:04:09.565 | E34: 11.04712352 | F34: 2 tours 9 plots | G34: 696 | J34: 1 plot | K34: 14 aller-retour1 plot | L34: 2 | M34: 9 | N34: 9 tours 2 plots | O34: 1 | P34: 7 | Q34: 7 tours 1plot | R34: 4 | S34: 5 | T34: 5 tours 4 plots | U34: 5 | V34: 4 | W34: 4 tours 5 plots | X34: 1 | Y34: 4 | Z34: 4 tours 1plot | AA34: 5 | AB34: 3 | AC34: 3 tours 5 plots | AD34: 2 | AE34: 3 | AF34: 3 tours 2 plots | AG34: 9 | AH34: 2 | AI34: 2 tours 9 plots | AJ34: 7 | AK34: 2 | AL34: 2 tours 7 plots | AM34: 5 | AN34: 2 | AO34: 2 tours 5 plots | AP34: 3 | AQ34: 2 | AR34: 2 tours 3 plots | AS34: 1 | AT34: 2 | AU34: 2 tours 1 plot | AV34: 14 | AW34: 1 | AX34: 1 tour 14 plots | AY34: 13 | AZ34: 1 | BA34: 1 tour 13 plots | BB34: 12 | BC34: 1 | BD34: 1 tour 12 plots | BE34: 11 | BF34: 1 | BG34: 1 tour 11 plots | BH34: 10 | BI34: 1 | BJ34: 1 tour 10 plots | BK34: 9 | BL34: 1 | BM34: 1 tour 9 plots | BP34: 250 | BQ34: 4 | BR34: 10
A35: 720 | B35: 257.3406447 | C35: 3.086696744 | D35: 00:04:17.341 | E35: 11.11210828 | F35: 3 tours | G35: 720 | I35: 15 | J35: aller-retours | K35: 15 aller-retours | L35: 0 | M35: 10 | N35: 10 tours | O35: 2 | P35: 7 | Q35: 7 tours 2 plots | R35: 0 | S35: 6 | T35: 6 tours | U35: 0 | V35: 5 | W35: 5 tours | X35: 2 | Y35: 4 | Z35: 4 tours 2 plots | AA35: 6 | AB35: 3 | AC35: 3 tours 6 plots | AD35: 3 | AE35: 3 | AF35: 3 tours 3 plots | AG35: 0 | AH35: 3 | AI35: 3 tours | AJ35: 8 | AK35: 2 | AL35: 2 tours 8 plots | AM35: 6 | AN35: 2 | AO35: 2 tours 6 plots | AP35: 4 | AQ35: 2 | AR35: 2 tours 4 plots | AS35: 2 | AT35: 2 | AU35: 2 tours 2 plots | AV35: 0 | AW35: 2 | AX35: 2 tours | AY35: 14 | AZ35: 1 | BA35: 1 tour 14 plots | BB35: 13 | BC35: 1 | BD35: 1 tour 13 plots | BE35: 12 | BF35: 1 | BG35: 1 tour 12 plots | BH35: 11 | BI35: 1 | BJ35: 1 tour 11 plots | BK35: 10 | BL35: 1 | BM35: 1 tour 10 plots | BP35: 257 | BQ35: 4 | BR35: 17
A36: 744 | B36: 265.0710018 | C36: 3.104643109 | D36: 00:04:25.071 | E36: 11.17671519 | F36: 3 tours 1plot | G36: 744 | J36: 1 plot | K36: 15 aller-retours 1 plot | L36: 1 | M36: 10 | N36: 10 tours 1plot | O36: 3 | P36: 7 | Q36: 7 tours 3 plots | R36: 1 | S36: 6 | T36: 6 tours 1plot | U36: 1 | V36: 5 | W36: 5 tours 1plot | X36: 3 | Y36: 4 | Z36: 4 tours 3 plots | AA36: 7 | AB36: 3 | AC36: 3 tours 7 plots | AD36: 4 | AE36: 3 | AF36: 3 tours 4 plots | AG36: 1 | AH36: 3 | AI36: 3 tours 1plot | AJ36: 9 | AK36: 2 | AL36: 2 tours 9 plots | AM36: 7 | AN36: 2 | AO36: 2 tours 7 plots | AP36: 5 | AQ36: 2 | AR36: 2 tours 5 plots | AS36: 3 | AT36: 2 | AU36: 2 tours 3 plots | AV36: 1 | AW36: 2 | AX36: 2 tours 1 plot | AY36: 15 | AZ36: 1 | BA36: 1 tour 15 plots | BB36: 14 | BC36: 1 | BD36: 1 tour 14 plots | BE36: 13 | BF36: 1 | BG36: 1 tour 13 plots | BH36: 12 | BI36: 1 | BJ36: 1 tour 12 plots | BK36: 11 | BL36: 1 | BM36: 1 tour 11 plots | BP36: 265 | BQ36: 4 | BR36: 25
A37: 768 | B37: 272.7571844 | C37: 3.122486327 | D37: 00:04:32.757 | E37: 11.24095078 | F37: 3 tours 2 plots | G37: 768 | I37: 16 | J37: aller-retours | K37: 16 aller-retours | L37: 2 | M37: 10 | N37: 10 tours 2 plots | O37: 0 | P37: 8 | Q37: 8 tours | R37: 2 | S37: 6 | T37: 6 tours 2 plots | U37: 2 | V37: 5 | W37: 5 tours 2 plots | X37: 4 | Y37: 4 | Z37: 4 tours 4 plots | AA37: 0 | AB37: 4 | AC37: 4 tours | AD37: 5 | AE37: 3 | AF37: 3 tours 5 plots | AG37: 2 | AH37: 3 | AI37: 3 tours 2 plots | AJ37: 10 | AK37: 2 | AL37: 2 tours 10 plots | AM37: 8 | AN37: 2 | AO37: 2 tours 8 plots | AP37: 6 | AQ37: 2 | AR37: 2 tours 6 plots | AS37: 4 | AT37: 2 | AU37: 2 tours 4 plots | AV37: 2 | AW37: 2 | AX37: 2 tours 2 plots | AY37: 0 | AZ37: 2 | BA37: 2 tours | BB37: 15 | BC37: 1 | BD37: 1 tour 15 plots | BE37: 14 | BF37: 1 | BG37: 1 tour 14 plots | BH37: 13 | BI37: 1 | BJ37: 1 tour 13 plots | BK37: 12 | BL37: 1 | BM37: 1 tour 12 plots | BP37: 273 | BQ37: 4 | BR37: 33
A38: 792 | B38: 280.3999412 | C38: 3.140228155 | D38: 00:04:40.400 | E38: 11.30482136 | F38: 3 tours 3 plots | G38: 792 | J38: 1 plot | K38: 16 aller-retours 1 plot | L38: 0 | M38: 11 | N38: 11 tours | O38: 1 | P38: 8 | Q38: 8 tours 1plot | R38: 3 | S38: 6 | T38: 6 tours 3 plots | U38: 3 | V38: 5 | W38: 5 tours 3 plots | X38: 5 | Y38: 4 | Z38: 4 tours 5 plots | AA38: 1 | AB38: 4 | AC38: 4 tours 1plot | AD38: 6 | AE38: 3 | AF38: 3 tours 6 plots | AG38: 3 | AH38: 3 | AI38: 3 tours 3 plots | AJ38: 0 | AK38: 3 | AL38: 3 tours | AM38: 9 | AN38: 2 | AO38: 2 tours 9 plots | AP38: 7 | AQ38: 2 | AR38: 2 tours 7 plots | AS38: 5 | AT38: 2 | AU38: 2 tours 5 plots | AV38: 3 | AW38: 2 | AX38: 2 tours 3 plots | AY38: 1 | AZ38: 2 | BA38: 2 tours 1 plot | BB38: 16 | BC38: 1 | BD38: 1 tour 16 plots | BE38: 15 | BF38: 1 | BG38: 1 tour 15 plots | BH38: 14 | BI38: 1 | BJ38: 1 tour 14 plots | BK38: 13 | BL38: 1 | BM38: 1 tour 13 plots | BP38: 280 | BQ38: 4 | BR38: 40
A39: 816 | B39: 288 | C39: 3.157870302 | D39: 00:04:48 | E39: 11.36833309 | F39: 3 tours 4 plots | G39: 816 | I39: 17 | J39: aller-retours | K39: 17 aller-retours | L39: 1 | M39: 11 | N39: 11 tours 1plot | O39: 2 | P39: 8 | Q39: 8 tours 2 plots | R39: 4 | S39: 6 | T39: 6 tours 4 plots | U39: 4 | V39: 5 | W39: 5 tours 4 plots | X39: 6 | Y39: 4 | Z39: 4 tours 6 plots | AA39: 2 | AB39: 4 | AC39: 4 tours 2 plots | AD39: 7 | AE39: 3 | AF39: 3 tours 7 plots | AG39: 4 | AH39: 3 | AI39: 3 tours 4 plots | AJ39: 1 | AK39: 3 | AL39: 3 tours 1 plot | AM39: 10 | AN39: 2 | AO39: 2 tours 10 plots | AP39: 8 | AQ39: 2 | AR39: 2 tours 8 plots | AS39: 6 | AT39: 2 | AU39: 2 tours 6 plots | AV39: 4 | AW39: 2 | AX39: 2 tours 4 plots | AY39: 2 | AZ39: 2 | BA39: 2 tours 2 plots | BB39: 0 | BC39: 2 | BD39: 2 tours | BE39: 16 | BF39: 1 | BG39: 1 tour 16 plots | BH39: 15 | BI39: 1 | BJ39: 1 tour 15 plots | BK39: 14 | BL39: 1 | BM39: 1 tour 14 plots | BP39: 288 | BQ39: 4 | BR39: 48
A40: 840 | B40: 295.5580686 | C40: 3.175414431 | D40: 00:04:55.558 | E40: 11.43149195 | F40: 3 tours 5 plots | G40: 840 | J40: 1 plot | K40: 17 aller-retours 1 plot | L40: 2 | M40: 11 | N40: 11 tours 2 plots | O40: 3 | P40: 8 | Q40: 8 tours 3 plots | R40: 0 | S40: 7 | T40: 7 tours | U40: 5 | V40: 5 | W40: 5 tours 5 plots | X40: 0 | Y40: 5 | Z40: 5 tours | AA40: 3 | AB40: 4 | AC40: 4 tours 3 plots | AD40: 8 | AE40: 3 | AF40: 3 tours 8 plots | AG40: 5 | AH40: 3 | AI40: 3 tours 5 plots | AJ40: 2 | AK40: 3 | AL40: 3 tours 2 plots | AM40: 11 | AN40: 2 | AO40: 2 tours 11 plots | AP40: 9 | AQ40: 2 | AR40: 2 tours 9 plots | AS40: 7 | AT40: 2 | AU40: 2 tours 7 plots | AV40: 5 | AW40: 2 | AX40: 2 tours 5 plots | AY40: 3 | AZ40: 2 | BA40: 2 tours 3 plots | BB40: 1 | BC40: 2 | BD40: 2 tours 1 plot | BE40: 17 | BF40: 1 | BG40: 1 tour 17 plots | BH40: 16 | BI40: 1 | BJ40: 1 tour 16 plots | BK40: 15 | BL40: 1 | BM40: 1 tour 15 plots | BP40: 296 | BQ40: 4 | BR40: 56
A41: 864 | B41: 303.0748353 | C41: 3.192862157 | D41: 00:05:03.075 | E41: 11.49430377 | F41: 3 tours 6 plots | G41: 864 | I41: 18 | J41: aller-retours | K41: 18 aller-retours | L41: 0 | M41: 12 | N41: 12 tours | O41: 0 | P41: 9 | Q41: 9 tours | R41: 1 | S41: 7 | T41: 7 tours 1plot | U41: 0 | V41: 6 | W41: 6 tours | X41: 1 | Y41: 5 | Z41: 5 tours 1plot | AA41: 4 | AB41: 4 | AC41: 4 tours 4 plots | AD41: 0 | AE41: 4 | AF41: 4 tours | AG41: 6 | AH41: 3 | AI41: 3 tours 6 plots | AJ41: 3 | AK41: 3 | AL41: 3 tours 3 plots | AM41: 0 | AN41: 3 | AO41: 3 tours | AP41: 10 | AQ41: 2 | AR41: 2 tours 10 plots | AS41: 8 | AT41: 2 | AU41: 2 tours 8 plots | AV41: 6 | AW41: 2 | AX41: 2 tours 6 plots | AY41: 4 | AZ41: 2 | BA41: 2 tours 4 plots | BB41: 2 | BC41: 2 | BD41: 2 tours 2 plots | BE41: 0 | BF41: 2 | BG41: 2 tours | BH41: 17 | BI41: 1 | BJ41: 1 tour 17 plots | BK41: 16 | BL41: 1 | BM41: 1 tour 16 plots | BP41: 303 | BQ41: 5 | BR41: 3
A42: 888 | B42: 310.5509699 | C42: 3.210215052 | D42: 00:05:10.551 | E42: 11.55677419 | F42: 3 tours 7 plots | G42: 888 | J42: 1 plot | K42: 18 aller-retours 1 plot | L42: 1 | M42: 12 | N42: 12 tours 1plot | O42: 1 | P42: 9 | Q42: 9 tours 1plot | R42: 2 | S42: 7 | T42: 7 tours 2 plots | U42: 1 | V42: 6 | W42: 6 tours 1plot | X42: 2 | Y42: 5 | Z42: 5 tours 2 plots | AA42: 5 | AB42: 4 | AC42: 4 tours 5 plots | AD42: 1 | AE42: 4 | AF42: 4 tours 1plot | AG42: 7 | AH42: 3 | AI42: 3 tours 7 plots | AJ42: 4 | AK42: 3 | AL42: 3 tours 4 plots | AM42: 1 | AN42: 3 | AO42: 3 tours 1 plot | AP42: 11 | AQ42: 2 | AR42: 2 tours 11 plots | AS42: 9 | AT42: 2 | AU42: 2 tours 9 plots | AV42: 7 | AW42: 2 | AX42: 2 tours 7 plots | AY42: 5 | AZ42: 2 | BA42: 2 tours 5 plots | BB42: 3 | BC42: 2 | BD42: 2 tours 3 plots | BE42: 1 | BF42: 2 | BG42: 2 tours 1 plot | BH42: 18 | BI42: 1 | BJ42: 1 tour 18 plots | BK42: 17 | BL42: 1 | BM42: 1 tour 17 plots | BP42: 311 | BQ42: 5 | BR42: 11
A43: 912 | B43: 317.9871244 | C43: 3.227474646 | D43: 00:05:17.987 | E43: 11.61890873 | F43: 3 tours 8 plots | G43: 912 | I43: 19 | J43: aller-retours | K43: 19 aller-retours | L43: 2 | M43: 12 | N43: 12 tours 2 plots | O43: 2 | P43: 9 | Q43: 9 tours 2 plots | R43: 3 | S43: 7 | T43: 7 tours 3 plots | U43: 2 | V43: 6 | W43: 6 tours 2 plots | X43: 3 | Y43: 5 | Z43: 5 tours 3 plots | AA43: 6 | AB43: 4 | AC43: 4 tours 6 plots | AD43: 2 | AE43: 4 | AF43: 4 tours 2 plots | AG43: 8 | AH43: 3 | AI43: 3 tours 8 plots | AJ43: 5 | AK43: 3 | AL43: 3 tours 5 plots | AM43: 2 | AN43: 3 | AO43: 3 tours 2 plots | AP43: 12 | AQ43: 2 | AR43: 2 tours 12 plots | AS43: 10 | AT43: 2 | AU43: 2 tours 10 plots | AV43: 8 | AW43: 2 | AX43: 2 tours 8 plots | AY43: 6 | AZ43: 2 | BA43: 2 tours 6 plots | BB43: 4 | BC43: 2 | BD43: 2 tours 4 plots | BE43: 2 | BF43: 2 | BG43: 2 tours 2 plots | BH43: 0 | BI43: 2 | BJ43: 2 tours | BK43: 18 | BL43: 1 | BM43: 1 tour 18 plots | BP43: 318 | BQ43: 5 | BR43: 18
A44: 936 | B44: 325.3839333 | C44: 3.244642428 | D44: 00:05:25.384 | E44: 11.68071274 | F44: 3 tours 9 plots | G44: 936 | J44: 1 plot | K44: 19 aller-retours 1 plot | L44: 0 | M44: 13 | N44: 13 tours | O44: 3 | P44: 9 | Q44: 9 tours 3 plots | R44: 4 | S44: 7 | T44: 7 tours 4 plots | U44: 3 | V44: 6 | W44: 6 tours 3 plots | X44: 4 | Y44: 5 | Z44: 5 tours 4 plots | AA44: 7 | AB44: 4 | AC44: 4 tours 7 plots | AD44: 3 | AE44: 4 | AF44: 4 tours 3 plots | AG44: 9 | AH44: 3 | AI44: 3 tours 9 plots | AJ44: 6 | AK44: 3 | AL44: 3 tours 6 plots | AM44: 3 | AN44: 3 | AO44: 3 tours 3 plots | AP44: 0 | AQ44: 3 | AR44: 3 tours | AS44: 11 | AT44: 2 | AU44: 2 tours 11 plots | AV44: 9 | AW44: 2 | AX44: 2 tours 9 plots | AY44: 7 | AZ44: 2 | BA44: 2 tours 7 plots | BB44: 5 | BC44: 2 | BD44: 2 tours 5 plots | BE44: 3 | BF44: 2 | BG44: 2 tours 3 plots | BH44: 1 | BI44: 2 | BJ44: 2 tours 1 plot | BK44: 19 | BL44: 1 | BM44: 1 tour 19 plots | BP44: 325 | BQ44: 5 | BR44: 25
A45: 960 | B45: 332.7420147 | C45: 3.261719847 | D45: 00:05:32.742 | E45: 11.74219145 | F45: 4 tours | G45: 960 | I45: 20 | J45: aller-retours | K45: 20 aller-retours | L45: 1 | M45: 13 | N45: 13 tours 1plot | O45: 0 | P45: 10 | Q45: 10 tours | R45: 0 | S45: 8 | T45: 8 tours | U45: 4 | V45: 6 | W45: 6 tours 4 plots | X45: 5 | Y45: 5 | Z45: 5 tours 5 plots | AA45: 0 | AB45: 5 | AC45: 5 tours | AD45: 4 | AE45: 4 | AF45: 4 tours 4 plots | AG45: 0 | AH45: 4 | AI45: 4 tours | AJ45: 7 | AK45: 3 | AL45: 3 tours 7 plots | AM45: 4 | AN45: 3 | AO45: 3 tours 4 plots | AP45: 1 | AQ45: 3 | AR45: 3 tours 1 plot | AS45: 12 | AT45: 2 | AU45: 2 tours 12 plots | AV45: 10 | AW45: 2 | AX45: 2 tours 10 plots | AY45: 8 | AZ45: 2 | BA45: 2 tours 8 plots | BB45: 6 | BC45: 2 | BD45: 2 tours 6 plots | BE45: 4 | BF45: 2 | BG45: 2 tours 4 plots | BH45: 2 | BI45: 2 | BJ45: 2 tours 2 plots | BK45: 0 | BL45: 2 | BM45: 2 tours | BP45: 333 | BQ45: 5 | BR45: 33
A46: 984 | B46: 340.0619705 | C46: 3.278708316 | D46: 00:05:40.062 | E46: 11.80334994 | F46: 4 tours 1plot | G46: 984 | J46: 1 plot | K46: 20 aller-retours 1 plot | L46: 2 | M46: 13 | N46: 13 tours 2 plots | O46: 1 | P46: 10 | Q46: 10 tours 1plot | R46: 1 | S46: 8 | T46: 8 tours 1plot | U46: 5 | V46: 6 | W46: 6 tours 5 plots | X46: 6 | Y46: 5 | Z46: 5 tours 6 plots | AA46: 1 | AB46: 5 | AC46: 5 tours 1plot | AD46: 5 | AE46: 4 | AF46: 4 tours 5 plots | AG46: 1 | AH46: 4 | AI46: 4 tours 1plot | AJ46: 8 | AK46: 3 | AL46: 3 tours 8 plots | AM46: 5 | AN46: 3 | AO46: 3 tours 5 plots | AP46: 2 | AQ46: 3 | AR46: 3 tours 2 plots | AS46: 13 | AT46: 2 | AU46: 2 tours 13 plots | AV46: 11 | AW46: 2 | AX46: 2 tours 11 plots | AY46: 9 | AZ46: 2 | BA46: 2 tours 9 plots | BB46: 7 | BC46: 2 | BD46: 2 tours 7 plots | BE46: 5 | BF46: 2 | BG46: 2 tours 5 plots | BH46: 3 | BI46: 2 | BJ46: 2 tours 3 plots | BK46: 1 | BL46: 2 | BM46: 2 tours 1 plot | BP46: 340 | BQ46: 5 | BR46: 40
A47: 1008 | B47: 347.3443873 | C47: 3.29560921 | D47: 00:05:47.344 | E47: 11.86419316 | F47: 4 tours 2 plots | G47: 1008 | I47: 21 | J47: aller-retours | K47: 21 aller-retours | L47: 0 | M47: 14 | N47: 14 tours | O47: 2 | P47: 10 | Q47: 10 tours 2 plots | R47: 2 | S47: 8 | T47: 8 tours 2 plots | U47: 0 | V47: 7 | W47: 7 tours | X47: 0 | Y47: 6 | Z47: 6 tours | AA47: 2 | AB47: 5 | AC47: 5 tours 2 plots | AD47: 6 | AE47: 4 | AF47: 4 tours 6 plots | AG47: 2 | AH47: 4 | AI47: 4 tours 2 plots | AJ47: 9 | AK47: 3 | AL47: 3 tours 9 plots | AM47: 6 | AN47: 3 | AO47: 3 tours 6 plots | AP47: 3 | AQ47: 3 | AR47: 3 tours 3 plots | AS47: 0 | AT47: 3 | AU47: 3 tours | AV47: 12 | AW47: 2 | AX47: 2 tours 12 plots | AY47: 10 | AZ47: 2 | BA47: 2 tours 10 plots | BB47: 8 | BC47: 2 | BD47: 2 tours 8 plots | BE47: 6 | BF47: 2 | BG47: 2 tours 6 plots | BH47: 4 | BI47: 2 | BJ47: 2 tours 4 plots | BK47: 2 | BL47: 2 | BM47: 2 tours 2 plots | BP47: 347 | BQ47: =QUOTIENT(BP47,60) -> 5 | BR47: 47
A48: 1032 | B48: 354.5898369 | C48: 3.312423871 | D48: 00:05:54.590 | E48: 11.92472593 | F48: 4 tours 3 plots | G48: 1032 | J48: 1 plot | K48: 21 aller-retours 1 plot | L48: 1 | M48: 14 | N48: 14 tours 1plot | O48: 3 | P48: 10 | Q48: 10 tours 3 plots | R48: 3 | S48: 8 | T48: 8 tours 3 plots | U48: 1 | V48: 7 | W48: 7 tours 1plot | X48: 1 | Y48: 6 | Z48: 6 tours 1plot | AA48: 3 | AB48: 5 | AC48: 5 tours 3 plots | AD48: 7 | AE48: 4 | AF48: 4 tours 7 plots | AG48: 3 | AH48: 4 | AI48: 4 tours 3 plots | AJ48: 10 | AK48: 3 | AL48: 3 tours 10 plots | AM48: 7 | AN48: 3 | AO48: 3 tours 7 plots | AP48: 4 | AQ48: 3 | AR48: 3 tours 4 plots | AS48: 1 | AT48: 3 | AU48: 3 tours 1 plot | AV48: 13 | AW48: 2 | AX48: 2 tours 13 plots | AY48: 11 | AZ48: 2 | BA48: 2 tours 11 plots | BB48: 9 | BC48: 2 | BD48: 2 tours 9 plots | BE48: 7 | BF48: 2 | BG48: 2 tours 7 plots | BH48: 5 | BI48: 2 | BJ48: 2 tours 5 plots | BK48: 3 | BL48: 2 | BM48: 2 tours 3 plots | BP48: 355 | BQ48: 5 | BR48: 55
A49: 1056 | B49: 361.7988764 | C49: 3.329153603 | D49: 00:06:01.799 | E49: 11.98495297 | F49: 4 tours 4 plots | G49: 1056 | I49: 22 | J49: aller-retours | K49: 22 aller-retours | L49: 2 | M49: 14 | N49: 14 tours 2 plots | O49: 0 | P49: 11 | Q49: 11 tours | R49: 4 | S49: 8 | T49: 8 tours 4 plots | U49: 2 | V49: 7 | W49: 7 tours 2 plots | X49: 2 | Y49: 6 | Z49: 6 tours 2 plots | AA49: 4 | AB49: 5 | AC49: 5 tours 4 plots | AD49: 8 | AE49: 4 | AF49: 4 tours 8 plots | AG49: 4 | AH49: 4 | AI49: 4 tours 4 plots | AJ49: 0 | AK49: 4 | AL49: 4 tours | AM49: 8 | AN49: 3 | AO49: 3 tours 8 plots | AP49: 5 | AQ49: 3 | AR49: 3 tours 5 plots | AS49: 2 | AT49: 3 | AU49: 3 tours 2 plots | AV49: 14 | AW49: 2 | AX49: 2 tours 14 plots | AY49: 12 | AZ49: 2 | BA49: 2 tours 12 plots | BB49: 10 | BC49: 2 | BD49: 2 tours 10 plots | BE49: 8 | BF49: 2 | BG49: 2 tours 8 plots | BH49: 6 | BI49: 2 | BJ49: 2 tours 6 plots | BK49: 4 | BL49: 2 | BM49: 2 tours 4 plots | BP49: 362 | BQ49: 6 | BR49: 2
A50: 1080 | B50: 368.9720494 | C50: 3.345799683 | D50: 00:06:08.972 | E50: 12.04487886 | F50: 4 tours 5 plots | G50: 1080 | J50: 1 plot | K50: 22 aller-retours 1 plot | L50: 0 | M50: 15 | N50: 15 tours | O50: 1 | P50: 11 | Q50: 11 tours 1plot | R50: 0 | S50: 9 | T50: 9 tours | U50: 3 | V50: 7 | W50: 7 tours 3 plots | X50: 3 | Y50: 6 | Z50: 6 tours 3 plots | AA50: 5 | AB50: 5 | AC50: 5 tours 5 plots | AD50: 0 | AE50: 5 | AF50: 5 tours | AG50: 5 | AH50: 4 | AI50: 4 tours 5 plots | AJ50: 1 | AK50: 4 | AL50: 4 tours 1 plot | AM50: 9 | AN50: 3 | AO50: 3 tours 9 plots | AP50: 6 | AQ50: 3 | AR50: 3 tours 6 plots | AS50: 3 | AT50: 3 | AU50: 3 tours 3 plots | AV50: 0 | AW50: 3 | AX50: 3 tours | AY50: 13 | AZ50: 2 | BA50: 2 tours 13 plots | BB50: 11 | BC50: 2 | BD50: 2 tours 11 plots | BE50: 9 | BF50: 2 | BG50: 2 tours 9 plots | BH50: 7 | BI50: 2 | BJ50: 2 tours 7 plots | BK50: 5 | BL50: 2 | BM50: 2 tours 5 plots | BP50: 369 | BQ50: 6 | BR50: 9
A51: 1104 | B51: 376.109886 | C51: 3.362363351 | D51: 00:06:16.110 | E51: 12.10450806 | F51: 4 tours 6 plots | G51: 1104 | I51: 23 | J51: aller-retours | K51: 23 aller-retours | L51: 1 | M51: 15 | N51: 15 tours 1plot | O51: 2 | P51: 11 | Q51: 11 tours 2 plots | R51: 1 | S51: 9 | T51: 9 tours 1plot | U51: 4 | V51: 7 | W51: 7 tours 4 plots | X51: 4 | Y51: 6 | Z51: 6 tours 4 plots | AA51: 6 | AB51: 5 | AC51: 5 tours 6 plots | AD51: 1 | AE51: 5 | AF51: 5 tours 1plot | AG51: 6 | AH51: 4 | AI51: 4 tours 6 plots | AJ51: 2 | AK51: 4 | AL51: 4 tours 2 plots | AM51: 10 | AN51: 3 | AO51: 3 tours 10 plots | AP51: 7 | AQ51: 3 | AR51: 3 tours 7 plots | AS51: 4 | AT51: 3 | AU51: 3 tours 4 plots | AV51: 1 | AW51: 3 | AX51: 3 tours 1 plot | AY51: 14 | AZ51: 2 | BA51: 2 tours 14 plots | BB51: 12 | BC51: 2 | BD51: 2 tours 12 plots | BE51: 10 | BF51: 2 | BG51: 2 tours 10 plots | BH51: 8 | BI51: 2 | BJ51: 2 tours 8 plots | BK51: 6 | BL51: 2 | BM51: 2 tours 6 plots | BP51: 376 | BQ51: 6 | BR51: 16
A52: 1128 | B52: 383.2129032 | C52: 3.378845821 | D52: 00:06:23.213 | E52: 12.16384495 | F52: 4 tours 7 plots | G52: 1128 | J52: 1 plot | K52: 23 aller-retours 1 plot | L52: 2 | M52: 15 | N52: 15 tours 2 plots | O52: 3 | P52: 11 | Q52: 11 tours 3 plots | R52: 2 | S52: 9 | T52: 9 tours 2 plots | U52: 5 | V52: 7 | W52: 7 tours 5 plots | X52: 5 | Y52: 6 | Z52: 6 tours 5 plots | AA52: 7 | AB52: 5 | AC52: 5 tours 7 plots | AD52: 2 | AE52: 5 | AF52: 5 tours 2 plots | AG52: 7 | AH52: 4 | AI52: 4 tours 7 plots | AJ52: 3 | AK52: 4 | AL52: 4 tours 3 plots | AM52: 11 | AN52: 3 | AO52: 3 tours 11 plots | AP52: 8 | AQ52: 3 | AR52: 3 tours 8 plots | AS52: 5 | AT52: 3 | AU52: 3 tours 5 plots | AV52: 2 | AW52: 3 | AX52: 3 tours 2 plots | AY52: 15 | AZ52: 2 | BA52: 2 tours 15 plots | BB52: 13 | BC52: 2 | BD52: 2 tours 13 plots | BE52: 11 | BF52: 2 | BG52: 2 tours 11 plots | BH52: 9 | BI52: 2 | BJ52: 2 tours 9 plots | BK52: 7 | BL52: 2 | BM52: 2 tours 7 plots | BP52: 383 | BQ52: 6 | BR52: 23
A53: 1152 | B53: 390.2816057 | C53: 3.395248274 | D53: 00:06:30.282 | E53: 12.22289379 | F53: 4 tours 8 plots | G53: 1152 | I53: 24 | J53: aller-retours | K53: 24 aller-retours | L53: 0 | M53: 16 | N53: 16 tours | O53: 0 | P53: 12 | Q53: 12 tours | R53: 3 | S53: 9 | T53: 9 tours 3 plots | U53: 0 | V53: 8 | W53: 8 tours | X53: 6 | Y53: 6 | Z53: 6 tours 6 plots | AA53: 0 | AB53: 6 | AC53: 6 tours | AD53: 3 | AE53: 5 | AF53: 5 tours 3 plots | AG53: 8 | AH53: 4 | AI53: 4 tours 8 plots | AJ53: 4 | AK53: 4 | AL53: 4 tours 4 plots | AM53: 0 | AN53: 4 | AO53: 4 tours | AP53: 9 | AQ53: 3 | AR53: 3 tours 9 plots | AS53: 6 | AT53: 3 | AU53: 3 tours 6 plots | AV53: 3 | AW53: 3 | AX53: 3 tours 3 plots | AY53: 0 | AZ53: 2 | BA53: 2 tours | BB53: 14 | BC53: 2 | BD53: 2 tours 14 plots | BE53: 12 | BF53: 2 | BG53: 2 tours 12 plots | BH53: 10 | BI53: 2 | BJ53: 2 tours 10 plots | BK53: 8 | BL53: 2 | BM53: 2 tours 8 plots | BP53: 390 | BQ53: 6 | BR53: 30
A54: 1176 | B54: 397.3164861 | C54: 3.411571865 | D54: 00:06:37.316 | E54: 12.28165872 | F54: 4 tours 9 plots | G54: 1176 | J54: 1 plot | K54: 24 aller-retours 1 plot | L54: 1 | M54: 16 | N54: 16 tours 1plot | O54: 1 | P54: 12 | Q54: 12 tours 1plot | R54: 4 | S54: 9 | T54: 9 tours 4 plots | U54: 1 | V54: 8 | W54: 8 tours 1plot | X54: 0 | Y54: 7 | Z54: 7 tours | AA54: 1 | AB54: 6 | AC54: 6 tours 1plot | AD54: 4 | AE54: 5 | AF54: 5 tours 4 plots | AG54: 9 | AH54: 4 | AI54: 4 tours 9 plots | AJ54: 5 | AK54: 4 | AL54: 4 tours 5 plots | AM54: 1 | AN54: 4 | AO54: 4 tours 1 plot | AP54: 10 | AQ54: 3 | AR54: 3 tours 10 plots | AS54: 7 | AT54: 3 | AU54: 3 tours 7 plots | AV54: 4 | AW54: 3 | AX54: 3 tours 4 plots | AY54: 1 | AZ54: 3 | BA54: 3 tours 1 plot | BB54: 15 | BC54: 2 | BD54: 2 tours 15 plots | BE54: 13 | BF54: 2 | BG54: 2 tours 13 plots | BH54: 11 | BI54: 2 | BJ54: 2 tours 11 plots | BK54: 9 | BL54: 2 | BM54: 2 tours 9 plots | BP54: 397 | BQ54: 6 | BR54: 37
A55: 1200 | B55: 404.3180252 | C55: 3.427817721 | D55: 00:06:44.318 | E55: 12.3401438 | F55: 5 tours | G55: 1200 | I55: 25 | J55: aller-retours | K55: 25 aller-retours | L55: 2 | M55: 16 | N55: 16 tours 2 plots | O55: 2 | P55: 12 | Q55: 12 tours 2 plots | R55: 0 | S55: 10 | T55: 10 tours | U55: 2 | V55: 8 | W55: 8 tours 2 plots | X55: 1 | Y55: 7 | Z55: 7 tours 1plot | AA55: 2 | AB55: 6 | AC55: 6 tours 2 plots | AD55: 5 | AE55: 5 | AF55: 5 tours 5 plots | AG55: 0 | AH55: 5 | AI55: 5 tours | AJ55: 6 | AK55: 4 | AL55: 4 tours 6 plots | AM55: 2 | AN55: 4 | AO55: 4 tours 2 plots | AP55: 11 | AQ55: 3 | AR55: 3 tours 11 plots | AS55: 8 | AT55: 3 | AU55: 3 tours 8 plots | AV55: 5 | AW55: 3 | AX55: 3 tours 5 plots | AY55: 2 | AZ55: 3 | BA55: 3 tours 2 plots | BB55: 16 | BC55: 2 | BD55: 2 tours 16 plots | BE55: 14 | BF55: 2 | BG55: 2 tours 14 plots | BH55: 12 | BI55: 2 | BJ55: 2 tours 12 plots | BK55: 10 | BL55: 2 | BM55: 2 tours 10 plots | BP55: 404 | BQ55: 6 | BR55: 44
A56: 1224 | B56: 411.2866928 | C56: 3.443986942 | D56: 00:06:51.287 | E56: 12.39835299 | F56: 5 tours 1plot | G56: 1224 | J56: 1 plot | K56: 25 aller-retours 1 plot | L56: 0 | M56: 17 | N56: 17 tours | O56: 3 | P56: 12 | Q56: 12 tours 3 plots | R56: 1 | S56: 10 | T56: 10 tours 1plot | U56: 3 | V56: 8 | W56: 8 tours 3 plots | X56: 2 | Y56: 7 | Z56: 7 tours 2 plots | AA56: 3 | AB56: 6 | AC56: 6 tours 3 plots | AD56: 6 | AE56: 5 | AF56: 5 tours 6 plots | AG56: 1 | AH56: 5 | AI56: 5 tours 1plot | AJ56: 7 | AK56: 4 | AL56: 4 tours 7 plots | AM56: 3 | AN56: 4 | AO56: 4 tours 3 plots | AP56: 12 | AQ56: 3 | AR56: 3 tours 12 plots | AS56: 9 | AT56: 3 | AU56: 3 tours 9 plots | AV56: 6 | AW56: 3 | AX56: 3 tours 6 plots | AY56: 3 | AZ56: 3 | BA56: 3 tours 3 plots | BB56: 0 | BC56: 3 | BD56: 3 tours | BE56: 15 | BF56: 2 | BG56: 2 tours 15 plots | BH56: 13 | BI56: 2 | BJ56: 2 tours 13 plots | BK56: 11 | BL56: 2 | BM56: 2 tours 11 plots | BP56: 411 | BQ56: 6 | BR56: 51
A57: 1248 | B57: 418.2229474 | C57: 3.460080602 | D57: 00:06:58.223 | E57: 12.45629017 | F57: 5 tours 2 plots | G57: 1248 | I57: 26 | J57: aller-retours | K57: 26 aller-retours | L57: 1 | M57: 17 | N57: 17 tours 1plot | O57: 0 | P57: 13 | Q57: 13 tours | R57: 2 | S57: 10 | T57: 10 tours 2 plots | U57: 4 | V57: 8 | W57: 8 tours 4 plots | X57: 3 | Y57: 7 | Z57: 7 tours 3 plots | AA57: 4 | AB57: 6 | AC57: 6 tours 4 plots | AD57: 7 | AE57: 5 | AF57: 5 tours 7 plots | AG57: 2 | AH57: 5 | AI57: 5 tours 2 plots | AJ57: 8 | AK57: 4 | AL57: 4 tours 8 plots | AM57: 4 | AN57: 4 | AO57: 4 tours 4 plots | AP57: 0 | AQ57: 4 | AR57: 4 tours | AS57: 10 | AT57: 3 | AU57: 3 tours 10 plots | AV57: 7 | AW57: 3 | AX57: 3 tours 7 plots | AY57: 4 | AZ57: 3 | BA57: 3 tours 4 plots | BB57: 1 | BC57: 3 | BD57: 3 tours 1 plot | BE57: 16 | BF57: 2 | BG57: 2 tours 16 plots | BH57: 14 | BI57: 2 | BJ57: 2 tours 14 plots | BK57: 12 | BL57: 2 | BM57: 2 tours 12 plots | BP57: 418 | BQ57: 6 | BR57: 58
A58: 1272 | B58: 425.1272371 | C58: 3.476099751 | D58: 00:07:05.127 | E58: 12.5139591 | F58: 5 tours 3 plots | G58: 1272 | J58: 1 plot | K58: 26 aller-retours 1 plot | L58: 2 | M58: 17 | N58: 17 tours 2 plots | O58: 1 | P58: 13 | Q58: 13 tours 1plot | R58: 3 | S58: 10 | T58: 10 tours 3 plots | U58: 5 | V58: 8 | W58: 8 tours 5 plots | X58: 4 | Y58: 7 | Z58: 7 tours 4 plots | AA58: 5 | AB58: 6 | AC58: 6 tours 5 plots | AD58: 8 | AE58: 5 | AF58: 5 tours 8 plots | AG58: 3 | AH58: 5 | AI58: 5 tours 3 plots | AJ58: 9 | AK58: 4 | AL58: 4 tours 9 plots | AM58: 5 | AN58: 4 | AO58: 4 tours 5 plots | AP58: 1 | AQ58: 4 | AR58: 4 tours 1 plot | AS58: 11 | AT58: 3 | AU58: 3 tours 11 plots | AV58: 8 | AW58: 3 | AX58: 3 tours 8 plots | AY58: 5 | AZ58: 3 | BA58: 3 tours 5 plots | BB58: 2 | BC58: 3 | BD58: 3 tours 2 plots | BE58: 17 | BF58: 2 | BG58: 2 tours 17 plots | BH58: 15 | BI58: 2 | BJ58: 2 tours 15 plots | BK58: 13 | BL58: 2 | BM58: 2 tours 13 plots | BP58: 425 | BQ58: 7 | BR58: 5
A59: 1296 | B59: 432 | C59: 3.492045413 | D59: 00:07:12 | E59: 12.57136349 | F59: 5 tours 4 plots | G59: 1296 | I59: 27 | J59: aller-retour | K59: 27 aller-retour | L59: 0 | M59: 18 | N59: 18 tours | O59: 2 | P59: 13 | Q59: 13 tours 2 plots | R59: 4 | S59: 10 | T59: 10 tours 4 plots | U59: 0 | V59: 9 | W59: 9 tours | X59: 5 | Y59: 7 | Z59: 7 tours 5 plots | AA59: 6 | AB59: 6 | AC59: 6 tours 6 plots | AD59: 0 | AE59: 6 | AF59: 6 tours | AG59: 4 | AH59: 5 | AI59: 5 tours 4 plots | AJ59: 10 | AK59: 4 | AL59: 4 tours 10 plots | AM59: 6 | AN59: 4 | AO59: 4 tours 6 plots | AP59: 2 | AQ59: 4 | AR59: 4 tours 2 plots | AS59: 12 | AT59: 3 | AU59: 3 tours 12 plots | AV59: 9 | AW59: 3 | AX59: 3 tours 9 plots | AY59: 6 | AZ59: 3 | BA59: 3 tours 6 plots | BB59: 3 | BC59: 3 | BD59: 3 tours 3 plots | BE59: 0 | BF59: 3 | BG59: 3 tours | BH59: 16 | BI59: 2 | BJ59: 2 tours 16 plots | BK59: 14 | BL59: 2 | BM59: 2 tours 14 plots | BP59: 432 | BQ59: 7 | BR59: 12
A60: 1320 | B60: 438.8416639 | C60: 3.507918592 | D60: 00:07:18.842 | E60: 12.62850693 | F60: 5 tours 5 plots | G60: 1320 | J60: 1 plot | K60: 27 aller-retour1 plot | L60: 1 | M60: 18 | N60: 18 tours 1plot | O60: 3 | P60: 13 | Q60: 13 tours 3 plots | R60: 0 | S60: 11 | T60: 11 tours | U60: 1 | V60: 9 | W60: 9 tours 1plot | X60: 6 | Y60: 7 | Z60: 7 tours 6 plots | AA60: 7 | AB60: 6 | AC60: 6 tours 7 plots | AD60: 1 | AE60: 6 | AF60: 6 tours 1plot | AG60: 5 | AH60: 5 | AI60: 5 tours 5 plots | AJ60: 0 | AK60: 5 | AL60: 5 tours | AM60: 7 | AN60: 4 | AO60: 4 tours 7 plots | AP60: 3 | AQ60: 4 | AR60: 4 tours 3 plots | AS60: 13 | AT60: 3 | AU60: 3 tours 13 plots | AV60: 10 | AW60: 3 | AX60: 3 tours 10 plots | AY60: 7 | AZ60: 3 | BA60: 3 tours 7 plots | BB60: 4 | BC60: 3 | BD60: 3 tours 4 plots | BE60: 1 | BF60: 3 | BG60: 3 tours 1 plot | BH60: 17 | BI60: 2 | BJ60: 2 tours 17 plots | BK60: 15 | BL60: 2 | BM60: 2 tours 15 plots | BP60: 439 | BQ60: 7 | BR60: 19
A61: 1344 | B61: 445.6526472 | C61: 3.523720268 | D61: 00:07:25.653 | E61: 12.68539296 | F61: 5 tours 6 plots | G61: 1344 | I61: 28 | J61: aller-retours | K61: 28 aller-retours | L61: 2 | M61: 18 | N61: 18 tours 2 plots | O61: 0 | P61: 14 | Q61: 14 tours | R61: 1 | S61: 11 | T61: 11 tours 1plot | U61: 2 | V61: 9 | W61: 9 tours 2 plots | X61: 0 | Y61: 8 | Z61: 8 tours | AA61: 0 | AB61: 7 | AC61: 7 tours | AD61: 2 | AE61: 6 | AF61: 6 tours 2 plots | AG61: 6 | AH61: 5 | AI61: 5 tours 6 plots | AJ61: 1 | AK61: 5 | AL61: 5 tours 1 plot | AM61: 8 | AN61: 4 | AO61: 4 tours 8 plots | AP61: 4 | AQ61: 4 | AR61: 4 tours 4 plots | AS61: 0 | AT61: 4 | AU61: 4 tours | AV61: 11 | AW61: 3 | AX61: 3 tours 11 plots | AY61: 8 | AZ61: 3 | BA61: 3 tours 8 plots | BB61: 5 | BC61: 3 | BD61: 3 tours 5 plots | BE61: 2 | BF61: 3 | BG61: 3 tours 2 plots | BH61: 18 | BI61: 2 | BJ61: 2 tours 18 plots | BK61: 16 | BL61: 2 | BM61: 2 tours 16 plots | BP61: 446 | BQ61: 7 | BR61: 26
A62: 1368 | B62: 452.4333591 | C62: 3.539451396 | D62: 00:07:32.433 | E62: 12.74202503 | F62: 5 tours 7 plots | G62: 1368 | J62: 1 plot | K62: 28 aller-retours 1 plot | L62: 0 | M62: 19 | N62: 19 tours | O62: 1 | P62: 14 | Q62: 14 tours 1plot | R62: 2 | S62: 11 | T62: 11 tours 2 plots | U62: 3 | V62: 9 | W62: 9 tours 3 plots | X62: 1 | Y62: 8 | Z62: 8 tours 1plot | AA62: 1 | AB62: 7 | AC62: 7 tours 1plot | AD62: 3 | AE62: 6 | AF62: 6 tours 3 plots | AG62: 7 | AH62: 5 | AI62: 5 tours 7 plots | AJ62: 2 | AK62: 5 | AL62: 5 tours 2 plots | AM62: 9 | AN62: 4 | AO62: 4 tours 9 plots | AP62: 5 | AQ62: 4 | AR62: 4 tours 5 plots | AS62: 1 | AT62: 4 | AU62: 4 tours 1 plot | AV62: 12 | AW62: 3 | AX62: 3 tours 12 plots | AY62: 9 | AZ62: 3 | BA62: 3 tours 9 plots | BB62: 6 | BC62: 3 | BD62: 3 tours 6 plots | BE62: 3 | BF62: 3 | BG62: 3 tours 3 plots | BH62: 0 | BI62: 3 | BJ62: 3 tours | BK62: 17 | BL62: 2 | BM62: 2 tours 17 plots | BP62: 452 | BQ62: 7 | BR62: 32
A63: 1392 | B63: 459.1841995 | C63: 3.555112915 | D63: 00:07:39.184 | E63: 12.79840649 | F63: 5 tours 8 plots | G63: 1392 | I63: 29 | J63: aller-retours | K63: 29 aller-retours | L63: 1 | M63: 19 | N63: 19 tours 1plot | O63: 2 | P63: 14 | Q63: 14 tours 2 plots | R63: 3 | S63: 11 | T63: 11 tours 3 plots | U63: 4 | V63: 9 | W63: 9 tours 4 plots | X63: 2 | Y63: 8 | Z63: 8 tours 2 plots | AA63: 2 | AB63: 7 | AC63: 7 tours 2 plots | AD63: 4 | AE63: 6 | AF63: 6 tours 4 plots | AG63: 8 | AH63: 5 | AI63: 5 tours 8 plots | AJ63: 3 | AK63: 5 | AL63: 5 tours 3 plots | AM63: 10 | AN63: 4 | AO63: 4 tours 10 plots | AP63: 6 | AQ63: 4 | AR63: 4 tours 6 plots | AS63: 2 | AT63: 4 | AU63: 4 tours 2 plots | AV63: 13 | AW63: 3 | AX63: 3 tours 13 plots | AY63: 10 | AZ63: 3 | BA63: 3 tours 10 plots | BB63: 7 | BC63: 3 | BD63: 3 tours 7 plots | BE63: 4 | BF63: 3 | BG63: 3 tours 4 plots | BH63: 1 | BI63: 3 | BJ63: 3 tours 1 plot | BK63: 18 | BL63: 2 | BM63: 2 tours 18 plots | BP63: 459 | BQ63: 7 | BR63: 39
A64: 1416 | B64: 465.9055599 | C64: 3.57070574 | D64: 00:07:45.906 | E64: 12.85454066 | F64: 5 tours 9 plots | G64: 1416 | J64: 1 plot | K64: 29 aller-retours 1 plot | L64: 2 | M64: 19 | N64: 19 tours 2 plots | O64: 3 | P64: 14 | Q64: 14 tours 3 plots | R64: 4 | S64: 11 | T64: 11 tours 4 plots | U64: 5 | V64: 9 | W64: 9 tours 5 plots | X64: 3 | Y64: 8 | Z64: 8 tours 3 plots | AA64: 3 | AB64: 7 | AC64: 7 tours 3 plots | AD64: 5 | AE64: 6 | AF64: 6 tours 5 plots | AG64: 9 | AH64: 5 | AI64: 5 tours 9 plots | AJ64: 4 | AK64: 5 | AL64: 5 tours 4 plots | AM64: 11 | AN64: 4 | AO64: 4 tours 11 plots | AP64: 7 | AQ64: 4 | AR64: 4 tours 7 plots | AS64: 3 | AT64: 4 | AU64: 4 tours 3 plots | AV64: 14 | AW64: 3 | AX64: 3 tours 14 plots | AY64: 11 | AZ64: 3 | BA64: 3 tours 11 plots | BB64: 8 | BC64: 3 | BD64: 3 tours 8 plots | BE64: 5 | BF64: 3 | BG64: 3 tours 5 plots | BH64: 2 | BI64: 3 | BJ64: 3 tours 2 plots | BK64: 19 | BL64: 2 | BM64: 2 tours 19 plots | BP64: 466 | BQ64: 7 | BR64: 46
A65: 1440 | B65: 472.597823 | C65: 3.586230767 | D65: 00:07:52.598 | E65: 12.91043076 | F65: 6 tours | G65: 1440 | I65: 30 | J65: aller-retours | K65: 30 aller-retours | L65: 0 | M65: 20 | N65: 20 tours | O65: 0 | P65: 15 | Q65: 15 tours | R65: 0 | S65: 12 | T65: 12 tours | U65: 0 | V65: 10 | W65: 10 tours | X65: 4 | Y65: 8 | Z65: 8 tours 4 plots | AA65: 4 | AB65: 7 | AC65: 7 tours 4 plots | AD65: 6 | AE65: 6 | AF65: 6 tours 6 plots | AG65: 0 | AH65: 6 | AI65: 6 tours | AJ65: 5 | AK65: 5 | AL65: 5 tours 5 plots | AM65: 0 | AN65: 5 | AO65: 5 tours | AP65: 8 | AQ65: 4 | AR65: 4 tours 8 plots | AS65: 4 | AT65: 4 | AU65: 4 tours 4 plots | AV65: 0 | AW65: 4 | AX65: 4 tours | AY65: 12 | AZ65: 3 | BA65: 3 tours 12 plots | BB65: 9 | BC65: 3 | BD65: 3 tours 9 plots | BE65: 6 | BF65: 3 | BG65: 3 tours 6 plots | BH65: 3 | BI65: 3 | BJ65: 3 tours 3 plots | BK65: 0 | BL65: 3 | BM65: 3 tours | BP65: 473 | BQ65: 7 | BR65: 53
A66: 1464 | B66: 479.2613636 | C66: 3.601688873 | D66: 00:07:59.261 | E66: 12.96607994 | F66: 6 tours 1plot | G66: 1464 | J66: 1 plot | K66: 30 aller-retours 1 plot | L66: 1 | M66: 20 | N66: 20 tours 1plot | O66: 1 | P66: 15 | Q66: 15 tours 1plot | R66: 1 | S66: 12 | T66: 12 tours 1plot | U66: 1 | V66: 10 | W66: 10 tours 1plot | X66: 5 | Y66: 8 | Z66: 8 tours 5 plots | AA66: 5 | AB66: 7 | AC66: 7 tours 5 plots | AD66: 7 | AE66: 6 | AF66: 6 tours 7 plots | AG66: 1 | AH66: 6 | AI66: 6 tours 1plot | AJ66: 6 | AK66: 5 | AL66: 5 tours 6 plots | AM66: 1 | AN66: 5 | AO66: 5 tours 1 plot | AP66: 9 | AQ66: 4 | AR66: 4 tours 9 plots | AS66: 5 | AT66: 4 | AU66: 4 tours 5 plots | AV66: 1 | AW66: 4 | AX66: 4 tours 1 plot | AY66: 13 | AZ66: 3 | BA66: 3 tours 13 plots | BB66: 10 | BC66: 3 | BD66: 3 tours 10 plots | BE66: 7 | BF66: 3 | BG66: 3 tours 7 plots | BH66: 4 | BI66: 3 | BJ66: 3 tours 4 plots | BK66: 1 | BL66: 3 | BM66: 3 tours 1 plot | BP66: 479 | BQ66: 7 | BR66: 59
A67: 1488 | B67: 485.8965483 | C67: 3.617080917 | D67: 00:08:05.897 | E67: 13.0214913 | F67: 6 tours 2 plots | G67: 1488 | I67: 31 | J67: aller-retours | K67: 31 aller-retours | L67: 2 | M67: 20 | N67: 20 tours 2 plots | O67: 2 | P67: 15 | Q67: 15 tours 2 plots | R67: 2 | S67: 12 | T67: 12 tours 2 plots | U67: 2 | V67: 10 | W67: 10 tours 2 plots | X67: 6 | Y67: 8 | Z67: 8 tours 6 plots | AA67: 6 | AB67: 7 | AC67: 7 tours 6 plots | AD67: 8 | AE67: 6 | AF67: 6 tours 8 plots | AG67: 2 | AH67: 6 | AI67: 6 tours 2 plots | AJ67: 7 | AK67: 5 | AL67: 5 tours 7 plots | AM67: 2 | AN67: 5 | AO67: 5 tours 2 plots | AP67: 10 | AQ67: 4 | AR67: 4 tours 10 plots | AS67: 6 | AT67: 4 | AU67: 4 tours 6 plots | AV67: 2 | AW67: 4 | AX67: 4 tours 2 plots | AY67: 14 | AZ67: 3 | BA67: 3 tours 14 plots | BB67: 11 | BC67: 3 | BD67: 3 tours 11 plots | BE67: 8 | BF67: 3 | BG67: 3 tours 8 plots | BH67: 5 | BI67: 3 | BJ67: 3 tours 5 plots | BK67: 2 | BL67: 3 | BM67: 3 tours 2 plots | BP67: 486 | BQ67: 8 | BR67: 6
A68: 1512 | B68: 492.5037361 | C68: 3.632407737 | D68: 00:08:12.504 | E68: 13.07666785 | F68: 6 tours 3 plots | G68: 1512 | J68: 1 plot | K68: 31 aller-retours 1 plot | L68: 0 | M68: 21 | N68: 21 tours | O68: 3 | P68: 15 | Q68: 15 tours 3 plots | R68: 3 | S68: 12 | T68: 12 tours 3 plots | U68: 3 | V68: 10 | W68: 10 tours 3 plots | X68: 0 | Y68: 9 | Z68: 9 tours | AA68: 7 | AB68: 7 | AC68: 7 tours 7 plots | AD68: 0 | AE68: 7 | AF68: 7 tours | AG68: 3 | AH68: 6 | AI68: 6 tours 3 plots | AJ68: 8 | AK68: 5 | AL68: 5 tours 8 plots | AM68: 3 | AN68: 5 | AO68: 5 tours 3 plots | AP68: 11 | AQ68: 4 | AR68: 4 tours 11 plots | AS68: 7 | AT68: 4 | AU68: 4 tours 7 plots | AV68: 3 | AW68: 4 | AX68: 4 tours 3 plots | AY68: 15 | AZ68: 3 | BA68: 3 tours 15 plots | BB68: 12 | BC68: 3 | BD68: 3 tours 12 plots | BE68: 9 | BF68: 3 | BG68: 3 tours 9 plots | BH68: 6 | BI68: 3 | BJ68: 3 tours 6 plots | BK68: 3 | BL68: 3 | BM68: 3 tours 3 plots | BP68: 493 | BQ68: 8 | BR68: 13
A69: 1536 | B69: 499.0832784 | C69: 3.647670156 | D69: 00:08:19.083 | E69: 13.13161256 | F69: 6 tours 4 plots | G69: 1536 | I69: 32 | J69: aller-retours | K69: 32 aller-retours | L69: 1 | M69: 21 | N69: 21 tours 1plot | O69: 0 | P69: 16 | Q69: 16 tours | R69: 4 | S69: 12 | T69: 12 tours 4 plots | U69: 4 | V69: 10 | W69: 10 tours 4 plots | X69: 1 | Y69: 9 | Z69: 9 tours 1plot | AA69: 0 | AB69: 8 | AC69: 8 tours | AD69: 1 | AE69: 7 | AF69: 7 tours 1plot | AG69: 4 | AH69: 6 | AI69: 6 tours 4 plots | AJ69: 9 | AK69: 5 | AL69: 5 tours 9 plots | AM69: 4 | AN69: 5 | AO69: 5 tours 4 plots | AP69: 12 | AQ69: 4 | AR69: 4 tours 12 plots | AS69: 8 | AT69: 4 | AU69: 4 tours 8 plots | AV69: 4 | AW69: 4 | AX69: 4 tours 4 plots | AY69: 0 | AZ69: 3 | BA69: 3 tours | BB69: 13 | BC69: 3 | BD69: 3 tours 13 plots | BE69: 10 | BF69: 3 | BG69: 3 tours 10 plots | BH69: 7 | BI69: 3 | BJ69: 3 tours 7 plots | BK69: 4 | BL69: 3 | BM69: 3 tours 4 plots | BP69: 499 | BQ69: 8 | BR69: 19
A70: 1560 | B70: 505.6355193 | C70: 3.662868979 | D70: 00:08:25.636 | E70: 13.18632832 | F70: =INDEX(F70:BM278, 1,$B$2*3) -> 6 tours 5 plots | G70: 1560 | J70: 1 plot | K70: 32 aller-retours 1 plot | L70: 2 | M70: 21 | N70: 21 tours 2 plots | O70: 1 | P70: 16 | Q70: 16 tours 1plot | R70: 0 | S70: 13 | T70: 13 tours | U70: 5 | V70: 10 | W70: 10 tours 5 plots | X70: 2 | Y70: 9 | Z70: 9 tours 2 plots | AA70: 1 | AB70: 8 | AC70: 8 tours 1plot | AD70: 2 | AE70: 7 | AF70: 7 tours 2 plots | AG70: 5 | AH70: 6 | AI70: 6 tours 5 plots | AJ70: 10 | AK70: 5 | AL70: =IF(AK70=0,"",IF(AND(AJ70=0,AK70=1),AK70&" "&"tour",IF(AND(AJ70=0,AK70>1),AK70&" "&"tours",IF(AND(AK70>1,AJ70=1),AK70&" "&"tours"&" "&AJ70&" "&"plot",IF(AND(AK70=1,AJ70=1),AK70&" "&"tour"&" "&AJ70&" "&"plot",IF(AND(AK70=1,AJ70>0),AK70&" "&"tour"&" "&AJ70&" "&"plots",IF(AND(AK70>1,AJ70>1),AK70&" "&"tours"&" "&AJ70&" "&"plots"))))))) -> 5 tours 10 plots | AM70: 5 | AN70: 5 | AO70: 5 tours 5 plots | AP70: 0 | AQ70: 5 | AR70: 5 tours | AS70: 9 | AT70: 4 | AU70: 4 tours 9 plots | AV70: 5 | AW70: 4 | AX70: 4 tours 5 plots | AY70: 1 | AZ70: 4 | BA70: 4 tours 1 plot | BB70: 14 | BC70: 3 | BD70: 3 tours 14 plots | BE70: 11 | BF70: 3 | BG70: 3 tours 11 plots | BH70: 8 | BI70: 3 | BJ70: 3 tours 8 plots | BK70: 5 | BL70: 3 | BM70: 3 tours 5 plots | BP70: 506 | BQ70: 8 | BR70: 26
A71: 1584 | B71: 512.1607959 | C71: 3.678004994 | D71: =B71*0.0000115740740740741 -> 00:08:32.161 | E71: =C71*3.6 -> 13.24081798 | F71: 6 tours 6 plots | G71: 1584 | I71: 33 | J71: aller-retours | K71: 33 aller-retours | L71: 0 | M71: 22 | N71: 22 tours | O71: 2 | P71: 16 | Q71: 16 tours 2 plots | R71: 1 | S71: 13 | T71: 13 tours 1plot | U71: 0 | V71: 11 | W71: 11 tours | X71: 3 | Y71: 9 | Z71: 9 tours 3 plots | AA71: 2 | AB71: 8 | AC71: 8 tours 2 plots | AD71: 3 | AE71: 7 | AF71: 7 tours 3 plots | AG71: 6 | AH71: 6 | AI71: 6 tours 6 plots | AJ71: 0 | AK71: 6 | AL71: 6 tours | AM71: 6 | AN71: 5 | AO71: 5 tours 6 plots | AP71: 1 | AQ71: 5 | AR71: 5 tours 1 plot | AS71: 10 | AT71: 4 | AU71: 4 tours 10 plots | AV71: 6 | AW71: 4 | AX71: 4 tours 6 plots | AY71: 2 | AZ71: 4 | BA71: 4 tours 2 plots | BB71: 15 | BC71: 3 | BD71: 3 tours 15 plots | BE71: 12 | BF71: 3 | BG71: 3 tours 12 plots | BH71: 9 | BI71: 3 | BJ71: 3 tours 9 plots | BK71: 6 | BL71: 3 | BM71: 3 tours 6 plots | BP71: 512 | BQ71: =QUOTIENT(BP71,60) -> 8 | BR71: 32
A72: =A71+$A$6 -> 1608 | B72: =(-$C$3+SQRT($C$3*$C$3+(4*$F$1*A72)))/(2*$F$1) -> 518.6594384 | C72: 3.693078975 | D72: 00:08:38.659 | E72: 13.29508431 | F72: 6 tours 7 plots | G72: 1608 | J72: 1 plot | K72: 33 aller-retours 1 plot | L72: 1 | M72: 22 | N72: 22 tours 1plot | O72: 3 | P72: 16 | Q72: 16 tours 3 plots | R72: 2 | S72: 13 | T72: 13 tours 2 plots | U72: 1 | V72: 11 | W72: 11 tours 1plot | X72: 4 | Y72: 9 | Z72: 9 tours 4 plots | AA72: 3 | AB72: 8 | AC72: 8 tours 3 plots | AD72: 4 | AE72: 7 | AF72: 7 tours 4 plots | AG72: 7 | AH72: 6 | AI72: 6 tours 7 plots | AJ72: 1 | AK72: 6 | AL72: 6 tours 1 plot | AM72: 7 | AN72: 5 | AO72: 5 tours 7 plots | AP72: 2 | AQ72: 5 | AR72: 5 tours 2 plots | AS72: 11 | AT72: 4 | AU72: 4 tours 11 plots | AV72: 7 | AW72: 4 | AX72: 4 tours 7 plots | AY72: 3 | AZ72: 4 | BA72: 4 tours 3 plots | BB72: 16 | BC72: 3 | BD72: 3 tours 16 plots | BE72: 13 | BF72: 3 | BG72: 3 tours 13 plots | BH72: 10 | BI72: 3 | BJ72: 3 tours 10 plots | BK72: 7 | BL72: 3 | BM72: 3 tours 7 plots | BP72: =ROUND(B72,0) -> 519 | BQ72: 8 | BR72: 39
A73: 1632 | B73: 525.1317703 | C73: =$E$3/(B73-B72) -> 3.708091677 | D73: 00:08:45.132 | E73: 13.34913004 | F73: 6 tours 8 plots | G73: 1632 | I73: 34 | J73: aller-retours | K73: 34 aller-retours | L73: 2 | M73: 22 | N73: 22 tours 2 plots | O73: 0 | P73: 17 | Q73: 17 tours | R73: 3 | S73: 13 | T73: 13 tours 3 plots | U73: 2 | V73: 11 | W73: 11 tours 2 plots | X73: 5 | Y73: 9 | Z73: 9 tours 5 plots | AA73: 4 | AB73: 8 | AC73: 8 tours 4 plots | AD73: 5 | AE73: 7 | AF73: 7 tours 5 plots | AG73: 8 | AH73: 6 | AI73: 6 tours 8 plots | AJ73: 2 | AK73: 6 | AL73: 6 tours 2 plots | AM73: 8 | AN73: 5 | AO73: 5 tours 8 plots | AP73: 3 | AQ73: 5 | AR73: 5 tours 3 plots | AS73: 12 | AT73: 4 | AU73: 4 tours 12 plots | AV73: 8 | AW73: 4 | AX73: 4 tours 8 plots | AY73: 4 | AZ73: 4 | BA73: 4 tours 4 plots | BB73: 0 | BC73: 4 | BD73: 4 tours | BE73: 14 | BF73: 3 | BG73: 3 tours 14 plots | BH73: 11 | BI73: 3 | BJ73: 3 tours 11 plots | BK73: 8 | BL73: 3 | BM73: 3 tours 8 plots | BP73: 525 | BQ73: 8 | BR73: =MOD(BP73,60) -> 45
A74: 1656 | B74: 531.5781086 | C74: 3.723043841 | D74: 00:08:51.578 | E74: 13.40295783 | F74: 6 tours 9 plots | G74: 1656 | J74: 1 plot | K74: 34 aller-retours 1 plot | L74: 0 | M74: 23 | N74: 23 tours | O74: 1 | P74: 17 | Q74: 17 tours 1plot | R74: 4 | S74: 13 | T74: 13 tours 4 plots | U74: 3 | V74: 11 | W74: 11 tours 3 plots | X74: 6 | Y74: 9 | Z74: 9 tours 6 plots | AA74: 5 | AB74: 8 | AC74: 8 tours 5 plots | AD74: 6 | AE74: 7 | AF74: 7 tours 6 plots | AG74: 9 | AH74: 6 | AI74: 6 tours 9 plots | AJ74: 3 | AK74: 6 | AL74: 6 tours 3 plots | AM74: 9 | AN74: 5 | AO74: 5 tours 9 plots | AP74: 4 | AQ74: 5 | AR74: 5 tours 4 plots | AS74: 13 | AT74: 4 | AU74: 4 tours 13 plots | AV74: 9 | AW74: 4 | AX74: 4 tours 9 plots | AY74: 5 | AZ74: 4 | BA74: 4 tours 5 plots | BB74: 1 | BC74: 4 | BD74: 4 tours 1 plot | BE74: 15 | BF74: 3 | BG74: 3 tours 15 plots | BH74: 12 | BI74: 3 | BJ74: 3 tours 12 plots | BK74: 9 | BL74: 3 | BM74: 3 tours 9 plots | BP74: 532 | BQ74: 8 | BR74: 52
A75: 1680 | B75: 537.9987639 | C75: 3.737936195 | D75: 00:08:57.999 | E75: 13.4565703 | F75: 7 tours | G75: 1680 | I75: 35 | J75: aller-retours | K75: 35 aller-retours | L75: 1 | M75: 23 | N75: 23 tours 1plot | O75: 2 | P75: 17 | Q75: 17 tours 2 plots | R75: 0 | S75: 14 | T75: 14 tours | U75: 4 | V75: 11 | W75: 11 tours 4 plots | X75: 0 | Y75: 10 | Z75: 10 tours | AA75: 6 | AB75: 8 | AC75: 8 tours 6 plots | AD75: 7 | AE75: 7 | AF75: 7 tours 7 plots | AG75: 0 | AH75: 7 | AI75: 7 tours | AJ75: 4 | AK75: 6 | AL75: 6 tours 4 plots | AM75: 10 | AN75: 5 | AO75: 5 tours 10 plots | AP75: 5 | AQ75: 5 | AR75: 5 tours 5 plots | AS75: 0 | AT75: 5 | AU75: 5 tours | AV75: 10 | AW75: 4 | AX75: 4 tours 10 plots | AY75: 6 | AZ75: 4 | BA75: 4 tours 6 plots | BB75: 2 | BC75: 4 | BD75: 4 tours 2 plots | BE75: 16 | BF75: 3 | BG75: 3 tours 16 plots | BH75: 13 | BI75: 3 | BJ75: 3 tours 13 plots | BK75: 10 | BL75: 3 | BM75: 3 tours 10 plots | BP75: 538 | BQ75: 8 | BR75: 58
A76: 1704 | B76: 544.3940409 | C76: 3.75276945 | D76: 00:09:04.394 | E76: 13.50997002 | F76: 7 tours 1plot | G76: 1704 | J76: 1 plot | K76: =IF(I76="",K75&J76,IF(I76>0,I76&" "&J76)) -> 35 aller-retours 1 plot | L76: 2 | M76: 23 | N76: 23 tours 2 plots | O76: 3 | P76: 17 | Q76: 17 tours 3 plots | R76: 1 | S76: 14 | T76: 14 tours 1plot | U76: 5 | V76: 11 | W76: 11 tours 5 plots | X76: 1 | Y76: 10 | Z76: 10 tours 1plot | AA76: 7 | AB76: 8 | AC76: 8 tours 7 plots | AD76: 8 | AE76: 7 | AF76: 7 tours 8 plots | AG76: 1 | AH76: 7 | AI76: 7 tours 1plot | AJ76: 5 | AK76: 6 | AL76: 6 tours 5 plots | AM76: 11 | AN76: 5 | AO76: 5 tours 11 plots | AP76: 6 | AQ76: 5 | AR76: 5 tours 6 plots | AS76: 1 | AT76: 5 | AU76: 5 tours 1 plot | AV76: 11 | AW76: 4 | AX76: 4 tours 11 plots | AY76: 7 | AZ76: 4 | BA76: 4 tours 7 plots | BB76: 3 | BC76: 4 | BD76: 4 tours 3 plots | BE76: 17 | BF76: 3 | BG76: 3 tours 17 plots | BH76: 14 | BI76: 3 | BJ76: 3 tours 14 plots | BK76: 11 | BL76: 3 | BM76: 3 tours 11 plots | BP76: 544 | BQ76: 9 | BR76: 4
A77: 1728 | B77: 550.764238 | C77: 3.767544304 | D77: 00:09:10.764 | E77: 13.5631595 | F77: 7 tours 2 plots | G77: =A77 -> 1728 | I77: 36 | J77: aller-retours | K77: 36 aller-retours | L77: 0 | M77: 24 | N77: 24 tours | O77: 0 | P77: 18 | Q77: 18 tours | R77: 2 | S77: 14 | T77: 14 tours 2 plots | U77: 0 | V77: 12 | W77: 12 tours | X77: 2 | Y77: 10 | Z77: 10 tours 2 plots | AA77: 0 | AB77: 9 | AC77: 9 tours | AD77: 0 | AE77: 8 | AF77: 8 tours | AG77: 2 | AH77: 7 | AI77: 7 tours 2 plots | AJ77: 6 | AK77: 6 | AL77: 6 tours 6 plots | AM77: 0 | AN77: 6 | AO77: 6 tours | AP77: 7 | AQ77: 5 | AR77: 5 tours 7 plots | AS77: 2 | AT77: 5 | AU77: 5 tours 2 plots | AV77: 12 | AW77: 4 | AX77: 4 tours 12 plots | AY77: 8 | AZ77: 4 | BA77: 4 tours 8 plots | BB77: 4 | BC77: 4 | BD77: 4 tours 4 plots | BE77: 0 | BF77: 4 | BG77: 4 tours | BH77: 15 | BI77: 3 | BJ77: 3 tours 15 plots | BK77: 12 | BL77: 3 | BM77: 3 tours 12 plots | BP77: 551 | BQ77: 9 | BR77: 11
A78: 1752 | B78: 557.1096481 | C78: 3.782261442 | D78: 00:09:17.110 | E78: 13.61614119 | F78: 7 tours 3 plots | G78: 1752 | J78: 1 plot | K78: 36 aller-retours 1 plot | L78: 1 | M78: 24 | N78: 24 tours 1plot | O78: 1 | P78: 18 | Q78: 18 tours 1plot | R78: 3 | S78: 14 | T78: 14 tours 3 plots | U78: 1 | V78: 12 | W78: 12 tours 1plot | X78: 3 | Y78: 10 | Z78: 10 tours 3 plots | AA78: 1 | AB78: 9 | AC78: 9 tours 1plot | AD78: 1 | AE78: 8 | AF78: 8 tours 1plot | AG78: 3 | AH78: 7 | AI78: 7 tours 3 plots | AJ78: 7 | AK78: 6 | AL78: 6 tours 7 plots | AM78: 1 | AN78: 6 | AO78: 6 tours 1 plot | AP78: 8 | AQ78: 5 | AR78: 5 tours 8 plots | AS78: 3 | AT78: 5 | AU78: 5 tours 3 plots | AV78: 13 | AW78: 4 | AX78: 4 tours 13 plots | AY78: 9 | AZ78: 4 | BA78: 4 tours 9 plots | BB78: 5 | BC78: 4 | BD78: 4 tours 5 plots | BE78: 1 | BF78: 4 | BG78: 4 tours 1 plot | BH78: 16 | BI78: 3 | BJ78: 3 tours 16 plots | BK78: 13 | BL78: 3 | BM78: 3 tours 13 plots | BP78: 557 | BQ78: 9 | BR78: 17
A79: 1776 | B79: 563.4305583 | C79: 3.796921535 | D79: 00:09:23.431 | E79: 13.66891753 | F79: 7 tours 4 plots | G79: 1776 | I79: 37 | J79: aller-retours | K79: 37 aller-retours | L79: 2 | M79: 24 | N79: 24 tours 2 plots | O79: 2 | P79: 18 | Q79: 18 tours 2 plots | R79: 4 | S79: 14 | T79: 14 tours 4 plots | U79: 2 | V79: 12 | W79: 12 tours 2 plots | X79: 4 | Y79: 10 | Z79: 10 tours 4 plots | AA79: 2 | AB79: 9 | AC79: 9 tours 2 plots | AD79: 2 | AE79: 8 | AF79: 8 tours 2 plots | AG79: 4 | AH79: 7 | AI79: 7 tours 4 plots | AJ79: 8 | AK79: 6 | AL79: 6 tours 8 plots | AM79: 2 | AN79: 6 | AO79: 6 tours 2 plots | AP79: 9 | AQ79: 5 | AR79: 5 tours 9 plots | AS79: 4 | AT79: 5 | AU79: 5 tours 4 plots | AV79: 14 | AW79: 4 | AX79: 4 tours 14 plots | AY79: 10 | AZ79: 4 | BA79: 4 tours 10 plots | BB79: 6 | BC79: 4 | BD79: 4 tours 6 plots | BE79: 2 | BF79: 4 | BG79: 4 tours 2 plots | BH79: 17 | BI79: 3 | BJ79: 3 tours 17 plots | BK79: 14 | BL79: 3 | BM79: 3 tours 14 plots | BP79: 563 | BQ79: 9 | BR79: 23
A80: 1800 | B80: 569.7272502 | C80: 3.811525241 | D80: 00:09:29.727 | E80: 13.72149087 | F80: 7 tours 5 plots | G80: 1800 | J80: 1 plot | K80: 37 aller-retours 1 plot | L80: 0 | M80: 25 | N80: 25 tours | O80: 3 | P80: 18 | Q80: 18 tours 3 plots | R80: 0 | S80: 15 | T80: 15 tours | U80: 3 | V80: 12 | W80: 12 tours 3 plots | X80: 5 | Y80: 10 | Z80: 10 tours 5 plots | AA80: 3 | AB80: 9 | AC80: 9 tours 3 plots | AD80: 3 | AE80: 8 | AF80: 8 tours 3 plots | AG80: 5 | AH80: 7 | AI80: 7 tours 5 plots | AJ80: 9 | AK80: 6 | AL80: 6 tours 9 plots | AM80: 3 | AN80: 6 | AO80: 6 tours 3 plots | AP80: 10 | AQ80: 5 | AR80: 5 tours 10 plots | AS80: 5 | AT80: 5 | AU80: 5 tours 5 plots | AV80: 0 | AW80: 5 | AX80: 5 tours | AY80: 11 | AZ80: 4 | BA80: 4 tours 11 plots | BB80: 7 | BC80: 4 | BD80: 4 tours 7 plots | BE80: 3 | BF80: 4 | BG80: 4 tours 3 plots | BH80: 18 | BI80: 3 | BJ80: 3 tours 18 plots | BK80: 15 | BL80: 3 | BM80: 3 tours 15 plots | BP80: 570 | BQ80: 9 | BR80: 30
A81: 1824 | B81: 576 | C81: 3.826073206 | D81: 00:09:36 | E81: 13.77386354 | F81: 7 tours 6 plots | G81: 1824 | I81: 38 | J81: aller-retours | K81: 38 aller-retours | L81: 1 | M81: 25 | N81: 25 tours 1plot | O81: 0 | P81: 19 | Q81: 19 tours | R81: 1 | S81: 15 | T81: 15 tours 1plot | U81: 4 | V81: 12 | W81: 12 tours 4 plots | X81: 6 | Y81: 10 | Z81: 10 tours 6 plots | AA81: 4 | AB81: 9 | AC81: 9 tours 4 plots | AD81: 4 | AE81: 8 | AF81: 8 tours 4 plots | AG81: 6 | AH81: 7 | AI81: 7 tours 6 plots | AJ81: 10 | AK81: 6 | AL81: 6 tours 10 plots | AM81: 4 | AN81: 6 | AO81: =IF(AN81=0,"",IF(AND(AM81=0,AN81=1),AN81&" "&"tour",IF(AND(AM81=0,AN81>1),AN81&" "&"tours",IF(AND(AN81>1,AM81=1),AN81&" "&"tours"&" "&AM81&" "&"plot",IF(AND(AN81=1,AM81=1),AN81&" "&"tour"&" "&AM81&" "&"plot",IF(AND(AN81=1,AM81>0),AN81&" "&"tour"&" "&AM81&" "&"plots",IF(AND(AN81>1,AM81>1),AN81&" "&"tours"&" "&AM81&" "&"plots"))))))) -> 6 tours 4 plots | AP81: 11 | AQ81: 5 | AR81: 5 tours 11 plots | AS81: 6 | AT81: 5 | AU81: 5 tours 6 plots | AV81: 1 | AW81: 5 | AX81: 5 tours 1 plot | AY81: 12 | AZ81: 4 | BA81: 4 tours 12 plots | BB81: 8 | BC81: 4 | BD81: 4 tours 8 plots | BE81: 4 | BF81: 4 | BG81: 4 tours 4 plots | BH81: 0 | BI81: 4 | BJ81: 4 tours | BK81: 16 | BL81: 3 | BM81: 3 tours 16 plots | BP81: 576 | BQ81: 9 | BR81: 36
A82: 1848 | B82: 582.2490788 | C82: 3.840566063 | D82: 00:09:42.249 | E82: 13.82603783 | F82: 7 tours 7 plots | G82: 1848 | J82: 1 plot | K82: 38 aller-retours 1 plot | L82: 2 | M82: 25 | N82: 25 tours 2 plots | O82: 1 | P82: 19 | Q82: 19 tours 1plot | R82: 2 | S82: 15 | T82: 15 tours 2 plots | U82: 5 | V82: 12 | W82: 12 tours 5 plots | X82: 0 | Y82: 11 | Z82: 11 tours | AA82: 5 | AB82: 9 | AC82: 9 tours 5 plots | AD82: 5 | AE82: 8 | AF82: 8 tours 5 plots | AG82: 7 | AH82: 7 | AI82: 7 tours 7 plots | AJ82: 0 | AK82: 7 | AL82: 7 tours | AM82: 5 | AN82: 6 | AO82: 6 tours 5 plots | AP82: 12 | AQ82: 5 | AR82: =IF(AQ82=0,"",IF(AND(AP82=0,AQ82=1),AQ82&" "&"tour",IF(AND(AP82=0,AQ82>1),AQ82&" "&"tours",IF(AND(AQ82>1,AP82=1),AQ82&" "&"tours"&" "&AP82&" "&"plot",IF(AND(AQ82=1,AP82=1),AQ82&" "&"tour"&" "&AP82&" "&"plot",IF(AND(AQ82=1,AP82>0),AQ82&" "&"tour"&" "&AP82&" "&"plots",IF(AND(AQ82>1,AP82>1),AQ82&" "&"tours"&" "&AP82&" "&"plots"))))))) -> 5 tours 12 plots | AS82: 7 | AT82: 5 | AU82: 5 tours 7 plots | AV82: 2 | AW82: 5 | AX82: 5 tours 2 plots | AY82: 13 | AZ82: 4 | BA82: 4 tours 13 plots | BB82: 9 | BC82: 4 | BD82: 4 tours 9 plots | BE82: 5 | BF82: 4 | BG82: 4 tours 5 plots | BH82: 1 | BI82: 4 | BJ82: 4 tours 1 plot | BK82: 17 | BL82: 3 | BM82: 3 tours 17 plots | BP82: 582 | BQ82: 9 | BR82: 42
A83: 1872 | B83: 588.4747526 | C83: 3.855004434 | D83: 00:09:48.475 | E83: 13.87801596 | F83: 7 tours 8 plots | G83: 1872 | I83: 39 | J83: aller-retours | K83: 39 aller-retours | L83: 0 | M83: 26 | N83: 26 tours | O83: 2 | P83: 19 | Q83: 19 tours 2 plots | R83: 3 | S83: 15 | T83: 15 tours 3 plots | U83: 0 | V83: 13 | W83: 13 tours | X83: 1 | Y83: 11 | Z83: 11 tours 1plot | AA83: 6 | AB83: 9 | AC83: 9 tours 6 plots | AD83: 6 | AE83: 8 | AF83: 8 tours 6 plots | AG83: 8 | AH83: 7 | AI83: 7 tours 8 plots | AJ83: 1 | AK83: 7 | AL83: 7 tours 1 plot | AM83: 6 | AN83: 6 | AO83: 6 tours 6 plots | AP83: 0 | AQ83: 6 | AR83: 6 tours | AS83: 8 | AT83: 5 | AU83: =IF(AT83=0,"",IF(AND(AS83=0,AT83=1),AT83&" "&"tour",IF(AND(AS83=0,AT83>1),AT83&" "&"tours",IF(AND(AT83>1,AS83=1),AT83&" "&"tours"&" "&AS83&" "&"plot",IF(AND(AT83=1,AS83=1),AT83&" "&"tour"&" "&AS83&" "&"plot",IF(AND(AT83=1,AS83>0),AT83&" "&"tour"&" "&AS83&" "&"plots",IF(AND(AT83>1,AS83>1),AT83&" "&"tours"&" "&AS83&" "&"plots"))))))) -> 5 tours 8 plots | AV83: 3 | AW83: 5 | AX83: 5 tours 3 plots | AY83: 14 | AZ83: 4 | BA83: 4 tours 14 plots | BB83: 10 | BC83: 4 | BD83: 4 tours 10 plots | BE83: 6 | BF83: 4 | BG83: 4 tours 6 plots | BH83: 2 | BI83: 4 | BJ83: 4 tours 2 plots | BK83: 18 | BL83: 3 | BM83: 3 tours 18 plots | BP83: 588 | BQ83: 9 | BR83: 48
A84: 1896 | B84: 594.6772823 | C84: 3.869388929 | D84: 00:09:54.677 | E84: 13.92980015 | F84: 7 tours 9 plots | G84: 1896 | J84: 1 plot | K84: 39 aller-retours 1 plot | L84: 1 | M84: 26 | N84: 26 tours 1plot | O84: 3 | P84: 19 | Q84: 19 tours 3 plots | R84: 4 | S84: 15 | T84: 15 tours 4 plots | U84: 1 | V84: 13 | W84: 13 tours 1plot | X84: 2 | Y84: 11 | Z84: 11 tours 2 plots | AA84: 7 | AB84: 9 | AC84: 9 tours 7 plots | AD84: 7 | AE84: 8 | AF84: 8 tours 7 plots | AG84: 9 | AH84: 7 | AI84: 7 tours 9 plots | AJ84: 2 | AK84: 7 | AL84: 7 tours 2 plots | AM84: 7 | AN84: 6 | AO84: 6 tours 7 plots | AP84: 1 | AQ84: 6 | AR84: 6 tours 1 plot | AS84: 9 | AT84: 5 | AU84: 5 tours 9 plots | AV84: 4 | AW84: 5 | AX84: =IF(AW84=0,"",IF(AND(AV84=0,AW84=1),AW84&" "&"tour",IF(AND(AV84=0,AW84>1),AW84&" "&"tours",IF(AND(AW84>1,AV84=1),AW84&" "&"tours"&" "&AV84&" "&"plot",IF(AND(AW84=1,AV84=1),AW84&" "&"tour"&" "&AV84&" "&"plot",IF(AND(AW84=1,AV84>0),AW84&" "&"tour"&" "&AV84&" "&"plots",IF(AND(AW84>1,AV84>1),AW84&" "&"tours"&" "&AV84&" "&"plots"))))))) -> 5 tours 4 plots | AY84: 15 | AZ84: 4 | BA84: 4 tours 15 plots | BB84: 11 | BC84: 4 | BD84: 4 tours 11 plots | BE84: 7 | BF84: 4 | BG84: 4 tours 7 plots | BH84: 3 | BI84: 4 | BJ84: 4 tours 3 plots | BK84: 19 | BL84: 3 | BM84: 3 tours 19 plots | BP84: 595 | BQ84: 9 | BR84: 55
A85: 1920 | B85: 600.8569243 | C85: 3.883720147 | D85: 00:10:00.857 | E85: 13.98139253 | F85: 8 tours | G85: 1920 | I85: 40 | J85: aller-retours | K85: 40 aller-retours | L85: 2 | M85: 26 | N85: 26 tours 2 plots | O85: 0 | P85: 20 | Q85: 20 tours | R85: 0 | S85: 16 | T85: 16 tours | U85: 2 | V85: 13 | W85: 13 tours 2 plots | X85: 3 | Y85: 11 | Z85: 11 tours 3 plots | AA85: 0 | AB85: 10 | AC85: 10 tours | AD85: 8 | AE85: 8 | AF85: 8 tours 8 plots | AG85: 0 | AH85: 8 | AI85: 8 tours | AJ85: 3 | AK85: 7 | AL85: 7 tours 3 plots | AM85: 8 | AN85: 6 | AO85: 6 tours 8 plots | AP85: 2 | AQ85: 6 | AR85: 6 tours 2 plots | AS85: 10 | AT85: 5 | AU85: 5 tours 10 plots | AV85: 5 | AW85: 5 | AX85: 5 tours 5 plots | AY85: 0 | AZ85: 5 | BA85: =IF(AZ85=0,"",IF(AND(AY85=0,AZ85=1),AZ85&" "&"tour",IF(AND(AY85=0,AZ85>1),AZ85&" "&"tours",IF(AND(AZ85>1,AY85=1),AZ85&" "&"tours"&" "&AY85&" "&"plot",IF(AND(AZ85=1,AY85=1),AZ85&" "&"tour"&" "&AY85&" "&"plot",IF(AND(AZ85=1,AY85>0),AZ85&" "&"tour"&" "&AY85&" "&"plots",IF(AND(AZ85>1,AY85>1),AZ85&" "&"tours"&" "&AY85&" "&"plots"))))))) -> 5 tours | BB85: 12 | BC85: 4 | BD85: 4 tours 12 plots | BE85: 8 | BF85: 4 | BG85: 4 tours 8 plots | BH85: 4 | BI85: 4 | BJ85: 4 tours 4 plots | BK85: 0 | BL85: 4 | BM85: 4 tours | BP85: 601 | BQ85: 10 | BR85: 1
A86: 1944 | B86: 607.01393 | C86: 3.897998674 | D86: 00:10:07.014 | E86: 14.03279523 | F86: 8 tours 1plot | G86: 1944 | J86: 1 plot | K86: 40 aller-retours 1 plot | L86: 0 | M86: 27 | N86: 27 tours | O86: 1 | P86: 20 | Q86: 20 tours 1plot | R86: 1 | S86: 16 | T86: 16 tours 1plot | U86: 3 | V86: 13 | W86: 13 tours 3 plots | X86: 4 | Y86: 11 | Z86: 11 tours 4 plots | AA86: 1 | AB86: 10 | AC86: 10 tours 1plot | AD86: 0 | AE86: 9 | AF86: 9 tours | AG86: 1 | AH86: 8 | AI86: 8 tours 1plot | AJ86: 4 | AK86: 7 | AL86: 7 tours 4 plots | AM86: 9 | AN86: 6 | AO86: 6 tours 9 plots | AP86: 3 | AQ86: 6 | AR86: 6 tours 3 plots | AS86: 11 | AT86: 5 | AU86: 5 tours 11 plots | AV86: 6 | AW86: 5 | AX86: 5 tours 6 plots | AY86: 1 | AZ86: 5 | BA86: 5 tours 1 plot | BB86: 13 | BC86: 4 | BD86: =IF(BC86=0,"",IF(AND(BB86=0,BC86=1),BC86&" "&"tour",IF(AND(BB86=0,BC86>1),BC86&" "&"tours",IF(AND(BC86>1,BB86=1),BC86&" "&"tours"&" "&BB86&" "&"plot",IF(AND(BC86=1,BB86=1),BC86&" "&"tour"&" "&BB86&" "&"plot",IF(AND(BC86=1,BB86>0),BC86&" "&"tour"&" "&BB86&" "&"plots",IF(AND(BC86>1,BB86>1),BC86&" "&"tours"&" "&BB86&" "&"plots"))))))) -> 4 tours 13 plots | BE86: 9 | BF86: 4 | BG86: 4 tours 9 plots | BH86: 5 | BI86: 4 | BJ86: 4 tours 5 plots | BK86: 1 | BL86: 4 | BM86: 4 tours 1 plot | BP86: 607 | BQ86: 10 | BR86: 7
A87: 1968 | B87: 613.1485463 | C87: 3.912225088 | D87: 00:10:13.149 | E87: 14.08401032 | F87: 8 tours 2 plots | G87: 1968 | I87: 41 | J87: aller-retours | K87: 41 aller-retours | L87: 1 | M87: 27 | N87: 27 tours 1plot | O87: 2 | P87: 20 | Q87: 20 tours 2 plots | R87: 2 | S87: 16 | T87: 16 tours 2 plots | U87: 4 | V87: 13 | W87: 13 tours 4 plots | X87: 5 | Y87: 11 | Z87: 11 tours 5 plots | AA87: 2 | AB87: 10 | AC87: 10 tours 2 plots | AD87: 1 | AE87: 9 | AF87: 9 tours 1plot | AG87: 2 | AH87: 8 | AI87: 8 tours 2 plots | AJ87: 5 | AK87: 7 | AL87: 7 tours 5 plots | AM87: 10 | AN87: 6 | AO87: 6 tours 10 plots | AP87: 4 | AQ87: 6 | AR87: 6 tours 4 plots | AS87: 12 | AT87: 5 | AU87: 5 tours 12 plots | AV87: 7 | AW87: 5 | AX87: 5 tours 7 plots | AY87: 2 | AZ87: 5 | BA87: 5 tours 2 plots | BB87: 14 | BC87: 4 | BD87: 4 tours 14 plots | BE87: 10 | BF87: 4 | BG87: =IF(BF87=0,"",IF(AND(BE87=0,BF87=1),BF87&" "&"tour",IF(AND(BE87=0,BF87>1),BF87&" "&"tours",IF(AND(BF87>1,BE87=1),BF87&" "&"tours"&" "&BE87&" "&"plot",IF(AND(BF87=1,BE87=1),BF87&" "&"tour"&" "&BE87&" "&"plot",IF(AND(BF87=1,BE87>0),BF87&" "&"tour"&" "&BE87&" "&"plots",IF(AND(BF87>1,BE87>1),BF87&" "&"tours"&" "&BE87&" "&"plots"))))))) -> 4 tours 10 plots | BH87: 6 | BI87: 4 | BJ87: 4 tours 6 plots | BK87: 2 | BL87: 4 | BM87: 4 tours 2 plots | BP87: 613 | BQ87: 10 | BR87: 13
A88: 1992 | B88: 619.2610159 | C88: 3.926399956 | D88: 00:10:19.261 | E88: 14.13503984 | F88: 8 tours 3 plots | G88: 1992 | J88: 1 plot | K88: 41 aller-retours 1 plot | L88: 2 | M88: 27 | N88: 27 tours 2 plots | O88: 3 | P88: 20 | Q88: 20 tours 3 plots | R88: 3 | S88: 16 | T88: 16 tours 3 plots | U88: 5 | V88: 13 | W88: 13 tours 5 plots | X88: 6 | Y88: 11 | Z88: 11 tours 6 plots | AA88: 3 | AB88: 10 | AC88: 10 tours 3 plots | AD88: 2 | AE88: 9 | AF88: 9 tours 2 plots | AG88: 3 | AH88: 8 | AI88: 8 tours 3 plots | AJ88: 6 | AK88: 7 | AL88: 7 tours 6 plots | AM88: 11 | AN88: 6 | AO88: 6 tours 11 plots | AP88: 5 | AQ88: 6 | AR88: 6 tours 5 plots | AS88: 13 | AT88: 5 | AU88: 5 tours 13 plots | AV88: 8 | AW88: 5 | AX88: 5 tours 8 plots | AY88: 3 | AZ88: 5 | BA88: 5 tours 3 plots | BB88: 15 | BC88: 4 | BD88: 4 tours 15 plots | BE88: 11 | BF88: 4 | BG88: 4 tours 11 plots | BH88: 7 | BI88: 4 | BJ88: =IF(BI88=0,"",IF(AND(BH88=0,BI88=1),BI88&" "&"tour",IF(AND(BH88=0,BI88>1),BI88&" "&"tours",IF(AND(BI88>1,BH88=1),BI88&" "&"tours"&" "&BH88&" "&"plot",IF(AND(BI88=1,BH88=1),BI88&" "&"tour"&" "&BH88&" "&"plot",IF(AND(BI88=1,BH88>0),BI88&" "&"tour"&" "&BH88&" "&"plots",IF(AND(BI88>1,BH88>1),BI88&" "&"tours"&" "&BH88&" "&"plots"))))))) -> 4 tours 7 plots | BK88: 3 | BL88: 4 | BM88: 4 tours 3 plots | BP88: 619 | BQ88: 10 | BR88: 19
A89: 2016 | B89: 625.3515767 | C89: 3.940523834 | D89: 00:10:25.352 | E89: 14.1858858 | F89: 8 tours 4 plots | G89: 2016 | I89: 42 | J89: aller-retours | K89: 42 aller-retours | L89: 0 | M89: 28 | N89: 28 tours | O89: 0 | P89: 21 | Q89: 21 tours | R89: 4 | S89: 16 | T89: 16 tours 4 plots | U89: 0 | V89: 14 | W89: 14 tours | X89: 0 | Y89: 12 | Z89: 12 tours | AA89: 4 | AB89: 10 | AC89: 10 tours 4 plots | AD89: 3 | AE89: 9 | AF89: 9 tours 3 plots | AG89: 4 | AH89: 8 | AI89: 8 tours 4 plots | AJ89: 7 | AK89: 7 | AL89: 7 tours 7 plots | AM89: 0 | AN89: 7 | AO89: 7 tours | AP89: 6 | AQ89: 6 | AR89: 6 tours 6 plots | AS89: 0 | AT89: 6 | AU89: 6 tours | AV89: 9 | AW89: 5 | AX89: 5 tours 9 plots | AY89: 4 | AZ89: 5 | BA89: 5 tours 4 plots | BB89: 16 | BC89: 4 | BD89: 4 tours 16 plots | BE89: 12 | BF89: 4 | BG89: 4 tours 12 plots | BH89: 8 | BI89: 4 | BJ89: 4 tours 8 plots | BK89: 4 | BL89: 4 | BM89: =IF(BL89=0,"",IF(AND(BK89=0,BL89=1),BL89&" "&"tour",IF(AND(BK89=0,BL89>1),BL89&" "&"tours",IF(AND(BL89>1,BK89=1),BL89&" "&"tours"&" "&BK89&" "&"plot",IF(AND(BL89=1,BK89=1),BL89&" "&"tour"&" "&BK89&" "&"plot",IF(AND(BL89=1,BK89>0),BL89&" "&"tour"&" "&BK89&" "&"plots",IF(AND(BL89>1,BK89>1),BL89&" "&"tours"&" "&BK89&" "&"plots"))))))) -> 4 tours 4 plots | BP89: 625 | BQ89: 10 | BR89: 25
A90: 2040 | B90: 631.4204627 | C90: 3.954597268 | D90: 00:10:31.420 | E90: 14.23655016 | F90: 8 tours 5 plots | G90: 2040 | J90: 1 plot | K90: 42 aller-retours 1 plot | L90: 1 | M90: 28 | N90: 28 tours 1plot | O90: 1 | P90: 21 | Q90: 21 tours 1plot | R90: 0 | S90: 17 | T90: 17 tours | U90: 1 | V90: 14 | W90: 14 tours 1plot | X90: 1 | Y90: 12 | Z90: 12 tours 1plot | AA90: 5 | AB90: 10 | AC90: 10 tours 5 plots | AD90: 4 | AE90: 9 | AF90: 9 tours 4 plots | AG90: 5 | AH90: 8 | AI90: 8 tours 5 plots | AJ90: 8 | AK90: 7 | AL90: 7 tours 8 plots | AM90: 1 | AN90: 7 | AO90: 7 tours 1 plot | AP90: 7 | AQ90: 6 | AR90: 6 tours 7 plots | AS90: 1 | AT90: 6 | AU90: 6 tours 1 plot | AV90: 10 | AW90: 5 | AX90: 5 tours 10 plots | AY90: 5 | AZ90: 5 | BA90: 5 tours 5 plots | BB90: 0 | BC90: 5 | BD90: 5 tours | BE90: 13 | BF90: 4 | BG90: 4 tours 13 plots | BH90: 9 | BI90: 4 | BJ90: 4 tours 9 plots | BK90: 5 | BL90: 4 | BM90: 4 tours 5 plots | BP90: 631 | BQ90: 10 | BR90: 31
A91: 2064 | B91: 637.4679036 | C91: 3.968620794 | D91: 00:10:37.468 | E91: 14.28703486 | F91: 8 tours 6 plots | G91: 2064 | I91: 43 | J91: aller-retours | K91: 43 aller-retours | L91: 2 | M91: 28 | N91: 28 tours 2 plots | O91: 2 | P91: 21 | Q91: 21 tours 2 plots | R91: 1 | S91: 17 | T91: 17 tours 1plot | U91: 2 | V91: 14 | W91: 14 tours 2 plots | X91: 2 | Y91: 12 | Z91: 12 tours 2 plots | AA91: 6 | AB91: 10 | AC91: 10 tours 6 plots | AD91: 5 | AE91: 9 | AF91: 9 tours 5 plots | AG91: 6 | AH91: 8 | AI91: 8 tours 6 plots | AJ91: 9 | AK91: 7 | AL91: 7 tours 9 plots | AM91: 2 | AN91: 7 | AO91: 7 tours 2 plots | AP91: 8 | AQ91: 6 | AR91: 6 tours 8 plots | AS91: 2 | AT91: 6 | AU91: 6 tours 2 plots | AV91: 11 | AW91: 5 | AX91: 5 tours 11 plots | AY91: 6 | AZ91: 5 | BA91: 5 tours 6 plots | BB91: 1 | BC91: 5 | BD91: 5 tours 1 plot | BE91: 14 | BF91: 4 | BG91: 4 tours 14 plots | BH91: 10 | BI91: 4 | BJ91: 4 tours 10 plots | BK91: 6 | BL91: 4 | BM91: 4 tours 6 plots | BP91: 637 | BQ91: 10 | BR91: 37
A92: 2088 | B92: 643.4941253 | C92: 3.982594941 | D92: 00:10:43.494 | E92: 14.33734179 | F92: 8 tours 7 plots | G92: 2088 | J92: 1 plot | K92: 43 aller-retours 1 plot | L92: 0 | M92: 29 | N92: 29 tours | O92: 3 | P92: 21 | Q92: 21 tours 3 plots | R92: 2 | S92: 17 | T92: 17 tours 2 plots | U92: 3 | V92: 14 | W92: 14 tours 3 plots | X92: 3 | Y92: 12 | Z92: 12 tours 3 plots | AA92: 7 | AB92: 10 | AC92: 10 tours 7 plots | AD92: 6 | AE92: 9 | AF92: 9 tours 6 plots | AG92: 7 | AH92: 8 | AI92: 8 tours 7 plots | AJ92: 10 | AK92: 7 | AL92: 7 tours 10 plots | AM92: 3 | AN92: 7 | AO92: 7 tours 3 plots | AP92: 9 | AQ92: 6 | AR92: 6 tours 9 plots | AS92: 3 | AT92: 6 | AU92: 6 tours 3 plots | AV92: 12 | AW92: 5 | AX92: 5 tours 12 plots | AY92: 7 | AZ92: 5 | BA92: 5 tours 7 plots | BB92: 2 | BC92: 5 | BD92: 5 tours 2 plots | BE92: 15 | BF92: 4 | BG92: 4 tours 15 plots | BH92: 11 | BI92: 4 | BJ92: 4 tours 11 plots | BK92: 7 | BL92: 4 | BM92: 4 tours 7 plots | BP92: 643 | BQ92: 10 | BR92: 43
A93: 2112 | B93: 649.4993495 | C93: 3.996520226 | D93: 00:10:49.499 | E93: 14.38747281 | F93: 8 tours 8 plots | G93: 2112 | I93: 45 | J93: aller-retours | K93: 45 aller-retours | L93: 1 | M93: 29 | N93: 29 tours 1plot | O93: 0 | P93: 22 | Q93: 22 tours | R93: 3 | S93: 17 | T93: 17 tours 3 plots | U93: 4 | V93: 14 | W93: 14 tours 4 plots | X93: 4 | Y93: 12 | Z93: 12 tours 4 plots | AA93: 0 | AB93: 11 | AC93: 11 tours | AD93: 7 | AE93: 9 | AF93: 9 tours 7 plots | AG93: 8 | AH93: 8 | AI93: 8 tours 8 plots | AJ93: 0 | AK93: 8 | AL93: 8 tours | AM93: 4 | AN93: 7 | AO93: 7 tours 4 plots | AP93: 10 | AQ93: 6 | AR93: 6 tours 10 plots | AS93: 4 | AT93: 6 | AU93: 6 tours 4 plots | AV93: 13 | AW93: 5 | AX93: 5 tours 13 plots | AY93: 8 | AZ93: 5 | BA93: 5 tours 8 plots | BB93: 3 | BC93: 5 | BD93: 5 tours 3 plots | BE93: 16 | BF93: 4 | BG93: 4 tours 16 plots | BH93: 12 | BI93: 4 | BJ93: 4 tours 12 plots | BK93: 8 | BL93: 4 | BM93: 4 tours 8 plots | BP93: 649 | BQ93: 10 | BR93: 49
A94: 2136 | B94: 655.4837942 | C94: 4.010397157 | D94: 00:10:55.484 | E94: 14.43742977 | F94: 8 tours 9 plots | G94: 2136 | J94: 1 plot | K94: 45 aller-retours 1 plot | L94: 2 | M94: 29 | N94: 29 tours 2 plots | O94: 1 | P94: 22 | Q94: 22 tours 1plot | R94: 4 | S94: 17 | T94: 17 tours 4 plots | U94: 5 | V94: 14 | W94: 14 tours 5 plots | X94: 5 | Y94: 12 | Z94: 12 tours 5 plots | AA94: 1 | AB94: 11 | AC94: 11 tours 1plot | AD94: 8 | AE94: 9 | AF94: 9 tours 8 plots | AG94: 9 | AH94: 8 | AI94: 8 tours 9 plots | AJ94: 1 | AK94: 8 | AL94: 8 tours 1 plot | AM94: 5 | AN94: 7 | AO94: 7 tours 5 plots | AP94: 11 | AQ94: 6 | AR94: 6 tours 11 plots | AS94: 5 | AT94: 6 | AU94: 6 tours 5 plots | AV94: 14 | AW94: 5 | AX94: 5 tours 14 plots | AY94: 9 | AZ94: 5 | BA94: 5 tours 9 plots | BB94: 4 | BC94: 5 | BD94: 5 tours 4 plots | BE94: 17 | BF94: 4 | BG94: 4 tours 17 plots | BH94: 13 | BI94: 4 | BJ94: 4 tours 13 plots | BK94: 9 | BL94: 4 | BM94: 4 tours 9 plots | BP94: 655 | BQ94: 10 | BR94: 55
A95: 2160 | B95: 661.4476736 | C95: 4.024226236 | D95: 00:11:01.448 | E95: 14.48721445 | F95: 9 tours | G95: 2160 | I95: 46 | J95: aller-retours | K95: 46 aller-retours | L95: 0 | M95: 30 | N95: 30 tours | O95: 2 | P95: 22 | Q95: 22 tours 2 plots | R95: 0 | S95: 18 | T95: 18 tours | U95: 0 | V95: 15 | W95: 15 tours | X95: 6 | Y95: 12 | Z95: 12 tours 6 plots | AA95: 2 | AB95: 11 | AC95: 11 tours 2 plots | AD95: 0 | AE95: 10 | AF95: 10 tours | AG95: 0 | AH95: 9 | AI95: 9 tours | AJ95: 2 | AK95: 8 | AL95: 8 tours 2 plots | AM95: 6 | AN95: 7 | AO95: 7 tours 6 plots | AP95: 12 | AQ95: 6 | AR95: 6 tours 12 plots | AS95: 6 | AT95: 6 | AU95: 6 tours 6 plots | AV95: 0 | AW95: 6 | AX95: 6 tours | AY95: 10 | AZ95: 5 | BA95: 5 tours 10 plots | BB95: 5 | BC95: 5 | BD95: 5 tours 5 plots | BE95: 0 | BF95: 5 | BG95: 5 tours | BH95: 14 | BI95: 4 | BJ95: 4 tours 14 plots | BK95: 10 | BL95: 4 | BM95: 4 tours 10 plots | BP95: 661 | BQ95: 11 | BR95: 1
A96: 2184 | B96: 667.3911983 | C96: 4.038007954 | D96: 00:11:07.391 | E96: 14.53682863 | F96: 9 tours 1plot | G96: 2184 | J96: 1 plot | K96: 46 aller-retours 1 plot | L96: 1 | M96: 30 | N96: 30 tours 1plot | O96: 3 | P96: 22 | Q96: 22 tours 3 plots | R96: 1 | S96: 18 | T96: 18 tours 1plot | U96: 1 | V96: 15 | W96: 15 tours 1plot | X96: 0 | Y96: 13 | Z96: 13 tours | AA96: 3 | AB96: 11 | AC96: 11 tours 3 plots | AD96: 1 | AE96: 10 | AF96: 10 tours 1plot | AG96: 1 | AH96: 9 | AI96: 9 tours 1plot | AJ96: 3 | AK96: 8 | AL96: 8 tours 3 plots | AM96: 7 | AN96: 7 | AO96: 7 tours 7 plots | AP96: 0 | AQ96: 7 | AR96: 7 tours | AS96: 7 | AT96: 6 | AU96: 6 tours 7 plots | AV96: 1 | AW96: 6 | AX96: 6 tours 1 plot | AY96: 11 | AZ96: 5 | BA96: 5 tours 11 plots | BB96: 6 | BC96: 5 | BD96: 5 tours 6 plots | BE96: 1 | BF96: 5 | BG96: 5 tours 1 plot | BH96: 15 | BI96: 4 | BJ96: 4 tours 15 plots | BK96: 11 | BL96: 4 | BM96: 4 tours 11 plots | BP96: 667 | BQ96: 11 | BR96: 7
A97: 2208 | B97: 673.3145753 | C97: 4.051742794 | D97: 00:11:13.315 | E97: 14.58627406 | F97: 9 tours 2 plots | G97: 2208 | I97: 47 | J97: aller-retours | K97: 47 aller-retours | L97: 2 | M97: 30 | N97: 30 tours 2 plots | O97: 0 | P97: 23 | Q97: 23 tours | R97: 2 | S97: 18 | T97: 18 tours 2 plots | U97: 2 | V97: 15 | W97: 15 tours 2 plots | X97: 1 | Y97: 13 | Z97: 13 tours 1plot | AA97: 4 | AB97: 11 | AC97: 11 tours 4 plots | AD97: 2 | AE97: 10 | AF97: 10 tours 2 plots | AG97: 2 | AH97: 9 | AI97: 9 tours 2 plots | AJ97: 4 | AK97: 8 | AL97: 8 tours 4 plots | AM97: 8 | AN97: 7 | AO97: 7 tours 8 plots | AP97: 1 | AQ97: 7 | AR97: 7 tours 1 plot | AS97: 8 | AT97: 6 | AU97: 6 tours 8 plots | AV97: 2 | AW97: 6 | AX97: 6 tours 2 plots | AY97: 12 | AZ97: 5 | BA97: 5 tours 12 plots | BB97: 7 | BC97: 5 | BD97: 5 tours 7 plots | BE97: 2 | BF97: 5 | BG97: 5 tours 2 plots | BH97: 16 | BI97: 4 | BJ97: 4 tours 16 plots | BK97: 12 | BL97: 4 | BM97: 4 tours 12 plots | BP97: 673 | BQ97: 11 | BR97: 13
A98: 2232 | B98: 679.2180081 | C98: 4.065431231 | D98: 00:11:19.218 | E98: 14.63555243 | F98: 9 tours 3 plots | G98: 2232 | J98: 1 plot | K98: 47 aller-retours 1 plot | L98: 0 | M98: 31 | N98: 31 tours | O98: 1 | P98: 23 | Q98: 23 tours 1plot | R98: 3 | S98: 18 | T98: 18 tours 3 plots | U98: 3 | V98: 15 | W98: 15 tours 3 plots | X98: 2 | Y98: 13 | Z98: 13 tours 2 plots | AA98: 5 | AB98: 11 | AC98: 11 tours 5 plots | AD98: 3 | AE98: 10 | AF98: 10 tours 3 plots | AG98: 3 | AH98: 9 | AI98: 9 tours 3 plots | AJ98: 5 | AK98: 8 | AL98: 8 tours 5 plots | AM98: 9 | AN98: 7 | AO98: 7 tours 9 plots | AP98: 2 | AQ98: 7 | AR98: 7 tours 2 plots | AS98: 9 | AT98: 6 | AU98: 6 tours 9 plots | AV98: 3 | AW98: 6 | AX98: 6 tours 3 plots | AY98: 13 | AZ98: 5 | BA98: 5 tours 13 plots | BB98: 8 | BC98: 5 | BD98: 5 tours 8 plots | BE98: 3 | BF98: 5 | BG98: 5 tours 3 plots | BH98: 17 | BI98: 4 | BJ98: 4 tours 17 plots | BK98: 13 | BL98: 4 | BM98: 4 tours 13 plots | BP98: 679 | BQ98: 11 | BR98: 19
A99: 2256 | B99: 685.1016968 | C99: 4.079073733 | D99: 00:11:25.102 | E99: 14.68466544 | F99: 9 tours 4 plots | G99: 2256 | I99: 48 | J99: aller-retours | K99: 48 aller-retours | L99: 1 | M99: 31 | N99: 31 tours 1plot | O99: 2 | P99: 23 | Q99: 23 tours 2 plots | R99: 4 | S99: 18 | T99: 18 tours 4 plots | U99: 4 | V99: 15 | W99: 15 tours 4 plots | X99: 3 | Y99: 13 | Z99: 13 tours 3 plots | AA99: 6 | AB99: 11 | AC99: 11 tours 6 plots | AD99: 4 | AE99: 10 | AF99: 10 tours 4 plots | AG99: 4 | AH99: 9 | AI99: 9 tours 4 plots | AJ99: 6 | AK99: 8 | AL99: 8 tours 6 plots | AM99: 10 | AN99: 7 | AO99: 7 tours 10 plots | AP99: 3 | AQ99: 7 | AR99: 7 tours 3 plots | AS99: 10 | AT99: 6 | AU99: 6 tours 10 plots | AV99: 4 | AW99: 6 | AX99: 6 tours 4 plots | AY99: 14 | AZ99: 5 | BA99: 5 tours 14 plots | BB99: 9 | BC99: 5 | BD99: 5 tours 9 plots | BE99: 4 | BF99: 5 | BG99: 5 tours 4 plots | BH99: 18 | BI99: 4 | BJ99: 4 tours 18 plots | BK99: 14 | BL99: 4 | BM99: 4 tours 14 plots | BP99: 685 | BQ99: 11 | BR99: 25
A100: 2280 | B100: 690.9658382 | C100: 4.092670758 | D100: 00:11:30.966 | E100: 14.73361473 | F100: 9 tours 5 plots | G100: 2280 | J100: 1 plot | K100: 48 aller-retours 1 plot | L100: 2 | M100: 31 | N100: 31 tours 2 plots | O100: 3 | P100: 23 | Q100: 23 tours 3 plots | R100: 0 | S100: 19 | T100: 19 tours | U100: 5 | V100: 15 | W100: 15 tours 5 plots | X100: 4 | Y100: 13 | Z100: 13 tours 4 plots | AA100: 7 | AB100: 11 | AC100: 11 tours 7 plots | AD100: 5 | AE100: 10 | AF100: 10 tours 5 plots | AG100: 5 | AH100: 9 | AI100: 9 tours 5 plots | AJ100: 7 | AK100: 8 | AL100: 8 tours 7 plots | AM100: 11 | AN100: 7 | AO100: 7 tours 11 plots | AP100: 4 | AQ100: 7 | AR100: 7 tours 4 plots | AS100: 11 | AT100: 6 | AU100: 6 tours 11 plots | AV100: 5 | AW100: 6 | AX100: 6 tours 5 plots | AY100: 15 | AZ100: 5 | BA100: 5 tours 15 plots | BB100: 10 | BC100: 5 | BD100: 5 tours 10 plots | BE100: 5 | BF100: 5 | BG100: 5 tours 5 plots | BH100: 0 | BI100: 5 | BJ100: 5 tours | BK100: 15 | BL100: 4 | BM100: 4 tours 15 plots | BP100: 691 | BQ100: 11 | BR100: 31
A101: 2304 | B101: 696.8106258 | C101: 4.106222759 | D101: 00:11:36.811 | E101: 14.78240193 | F101: 9 tours 6 plots | G101: 2304 | I101: 49 | J101: aller-retours | K101: 49 aller-retours | L101: 0 | M101: 32 | N101: 32 tours | O101: 0 | P101: 24 | Q101: 24 tours | R101: 1 | S101: 19 | T101: 19 tours 1plot | U101: 0 | V101: 16 | W101: 16 tours | X101: 5 | Y101: 13 | Z101: 13 tours 5 plots | AA101: 0 | AB101: 12 | AC101: 12 tours | AD101: 6 | AE101: 10 | AF101: 10 tours 6 plots | AG101: 6 | AH101: 9 | AI101: 9 tours 6 plots | AJ101: 8 | AK101: 8 | AL101: 8 tours 8 plots | AM101: 0 | AN101: 8 | AO101: 8 tours | AP101: 5 | AQ101: 7 | AR101: 7 tours 5 plots | AS101: 12 | AT101: 6 | AU101: 6 tours 12 plots | AV101: 6 | AW101: 6 | AX101: 6 tours 6 plots | AY101: 0 | AZ101: 6 | BA101: 6 tours | BB101: 11 | BC101: 5 | BD101: 5 tours 11 plots | BE101: 6 | BF101: 5 | BG101: 5 tours 6 plots | BH101: 1 | BI101: 5 | BJ101: 5 tours 1 plot | BK101: 16 | BL101: 4 | BM101: 4 tours 16 plots | BP101: 697 | BQ101: 11 | BR101: 37
A102: 2328 | B102: 702.6362501 | C102: 4.11973018 | D102: 00:11:42.636 | E102: 14.83102865 | F102: 9 tours 7 plots | G102: 2328 | J102: 1 plot | K102: 49 aller-retours 1 plot | L102: 1 | M102: 32 | N102: 32 tours 1plot | O102: 1 | P102: 24 | Q102: 24 tours 1plot | R102: 2 | S102: 19 | T102: 19 tours 2 plots | U102: 1 | V102: 16 | W102: 16 tours 1plot | X102: 6 | Y102: 13 | Z102: 13 tours 6 plots | AA102: 1 | AB102: 12 | AC102: 12 tours 1plot | AD102: 7 | AE102: 10 | AF102: 10 tours 7 plots | AG102: 7 | AH102: 9 | AI102: 9 tours 7 plots | AJ102: 9 | AK102: 8 | AL102: 8 tours 9 plots | AM102: 1 | AN102: 8 | AO102: 8 tours 1 plot | AP102: 6 | AQ102: 7 | AR102: 7 tours 6 plots | AS102: 13 | AT102: 6 | AU102: 6 tours 13 plots | AV102: 7 | AW102: 6 | AX102: 6 tours 7 plots | AY102: 1 | AZ102: 6 | BA102: 6 tours 1 plot | BB102: 12 | BC102: 5 | BD102: 5 tours 12 plots | BE102: 7 | BF102: 5 | BG102: 5 tours 7 plots | BH102: 2 | BI102: 5 | BJ102: 5 tours 2 plots | BK102: 17 | BL102: 4 | BM102: 4 tours 17 plots | BP102: 703 | BQ102: 11 | BR102: 43
A103: 2352 | B103: 708.4428982 | C103: 4.133193459 | D103: 00:11:48.443 | E103: 14.87949645 | F103: 9 tours 8 plots | G103: 2352 | I103: 50 | J103: aller-retours | K103: 50 aller-retours | L103: 2 | M103: 32 | N103: 32 tours 2 plots | O103: 2 | P103: 24 | Q103: 24 tours 2 plots | R103: 3 | S103: 19 | T103: 19 tours 3 plots | U103: 2 | V103: 16 | W103: 16 tours 2 plots | X103: 0 | Y103: 14 | Z103: 14 tours | AA103: 2 | AB103: 12 | AC103: 12 tours 2 plots | AD103: 8 | AE103: 10 | AF103: 10 tours 8 plots | AG103: 8 | AH103: 9 | AI103: 9 tours 8 plots | AJ103: 10 | AK103: 8 | AL103: 8 tours 10 plots | AM103: 2 | AN103: 8 | AO103: 8 tours 2 plots | AP103: 7 | AQ103: 7 | AR103: 7 tours 7 plots | AS103: 0 | AT103: 7 | AU103: 7 tours | AV103: 8 | AW103: 6 | AX103: 6 tours 8 plots | AY103: 2 | AZ103: 6 | BA103: 6 tours 2 plots | BB103: 13 | BC103: 5 | BD103: 5 tours 13 plots | BE103: 8 | BF103: 5 | BG103: 5 tours 8 plots | BH103: 3 | BI103: 5 | BJ103: 5 tours 3 plots | BK103: 18 | BL103: 4 | BM103: 4 tours 18 plots | BP103: 708 | BQ103: 11 | BR103: 48
A104: 2376 | B104: 714.2307544 | C104: 4.146613024 | D104: 00:11:54.231 | E104: 14.92780689 | F104: 9 tours 9 plots | G104: 2376 | J104: 1 plot | K104: 50 aller-retours 1 plot | L104: 0 | M104: 33 | N104: 33 tours | O104: 3 | P104: 24 | Q104: 24 tours 3 plots | R104: 4 | S104: 19 | T104: 19 tours 4 plots | U104: 3 | V104: 16 | W104: 16 tours 3 plots | X104: 1 | Y104: 14 | Z104: 14 tours 1plot | AA104: 3 | AB104: 12 | AC104: 12 tours 3 plots | AD104: 0 | AE104: 11 | AF104: 11 tours | AG104: 9 | AH104: 9 | AI104: 9 tours 9 plots | AJ104: 0 | AK104: 9 | AL104: 9 tours | AM104: 3 | AN104: 8 | AO104: 8 tours 3 plots | AP104: 8 | AQ104: 7 | AR104: 7 tours 8 plots | AS104: 1 | AT104: 7 | AU104: 7 tours 1 plot | AV104: 9 | AW104: 6 | AX104: 6 tours 9 plots | AY104: 3 | AZ104: 6 | BA104: 6 tours 3 plots | BB104: 14 | BC104: 5 | BD104: 5 tours 14 plots | BE104: 9 | BF104: 5 | BG104: 5 tours 9 plots | BH104: 4 | BI104: 5 | BJ104: 5 tours 4 plots | BK104: 19 | BL104: 4 | BM104: 4 tours 19 plots | BP104: 714 | BQ104: 11 | BR104: 54
A105: 2400 | B105: 720 | C105: 4.159989299 | D105: 00:12:00 | E105: 14.97596148 | F105: 10 tours | G105: 2400 | I105: 51 | J105: aller-retours | K105: 51 aller-retours | L105: 1 | M105: 33 | N105: 33 tours 1plot | O105: 0 | P105: 25 | Q105: 25 tours | R105: 0 | S105: 20 | T105: 20 tours | U105: 4 | V105: 16 | W105: 16 tours 4 plots | X105: 2 | Y105: 14 | Z105: 14 tours 2 plots | AA105: 4 | AB105: 12 | AC105: 12 tours 4 plots | AD105: 1 | AE105: 11 | AF105: 11 tours 1plot | AG105: 0 | AH105: 10 | AI105: 10 tours | AJ105: 1 | AK105: 9 | AL105: 9 tours 1 plot | AM105: 4 | AN105: 8 | AO105: 8 tours 4 plots | AP105: 9 | AQ105: 7 | AR105: 7 tours 9 plots | AS105: 2 | AT105: 7 | AU105: 7 tours 2 plots | AV105: 10 | AW105: 6 | AX105: 6 tours 10 plots | AY105: 4 | AZ105: 6 | BA105: 6 tours 4 plots | BB105: 15 | BC105: 5 | BD105: 5 tours 15 plots | BE105: 10 | BF105: 5 | BG105: 5 tours 10 plots | BH105: 5 | BI105: 5 | BJ105: 5 tours 5 plots | BK105: 0 | BL105: 5 | BM105: 5 tours | BP105: 720 | BQ105: 12 | BR105: 0
A106: 2424 | B106: 725.7508134 | C106: 4.173322701 | D106: 00:12:05.751 | E106: 15.02396172 | F106: 10 tours 1plot | G106: 2424 | J106: 1 plot | K106: 51 aller-retours 1 plot | L106: 2 | M106: 33 | N106: 33 tours 2 plots | O106: 1 | P106: 25 | Q106: 25 tours 1plot | R106: 1 | S106: 20 | T106: 20 tours 1plot | U106: 5 | V106: 16 | W106: 16 tours 5 plots | X106: 3 | Y106: 14 | Z106: 14 tours 3 plots | AA106: 5 | AB106: 12 | AC106: 12 tours 5 plots | AD106: 2 | AE106: 11 | AF106: 11 tours 2 plots | AG106: 1 | AH106: 10 | AI106: 10 tours 1plot | AJ106: 2 | AK106: 9 | AL106: 9 tours 2 plots | AM106: 5 | AN106: 8 | AO106: 8 tours 5 plots | AP106: 10 | AQ106: 7 | AR106: 7 tours 10 plots | AS106: 3 | AT106: 7 | AU106: 7 tours 3 plots | AV106: 11 | AW106: 6 | AX106: 6 tours 11 plots | AY106: 5 | AZ106: 6 | BA106: 6 tours 5 plots | BB106: 16 | BC106: 5 | BD106: 5 tours 16 plots | BE106: 11 | BF106: 5 | BG106: 5 tours 11 plots | BH106: 6 | BI106: 5 | BJ106: 5 tours 6 plots | BK106: 1 | BL106: 5 | BM106: 5 tours 1 plot | BP106: 726 | BQ106: 12 | BR106: 6
A107: 2448 | B107: 731.4833701 | C107: 4.186613638 | D107: 00:12:11.483 | E107: 15.0718091 | F107: 10 tours 2 plots | G107: 2448 | I107: 52 | J107: aller-retour | K107: 52 aller-retour | L107: 0 | M107: 34 | N107: 34 tours | O107: 2 | P107: 25 | Q107: 25 tours 2 plots | R107: 2 | S107: 20 | T107: 20 tours 2 plots | U107: 0 | V107: 17 | W107: 17 tours | X107: 4 | Y107: 14 | Z107: 14 tours 4 plots | AA107: 6 | AB107: 12 | AC107: 12 tours 6 plots | AD107: 3 | AE107: 11 | AF107: 11 tours 3 plots | AG107: 2 | AH107: 10 | AI107: 10 tours 2 plots | AJ107: 3 | AK107: 9 | AL107: 9 tours 3 plots | AM107: 6 | AN107: 8 | AO107: 8 tours 6 plots | AP107: 11 | AQ107: 7 | AR107: 7 tours 11 plots | AS107: 4 | AT107: 7 | AU107: 7 tours 4 plots | AV107: 12 | AW107: 6 | AX107: 6 tours 12 plots | AY107: 6 | AZ107: 6 | BA107: 6 tours 6 plots | BB107: 0 | BC107: 6 | BD107: 6 tours | BE107: 12 | BF107: 5 | BG107: 5 tours 12 plots | BH107: 7 | BI107: 5 | BJ107: 5 tours 7 plots | BK107: 2 | BL107: 5 | BM107: 5 tours 2 plots | BP107: 731 | BQ107: 12 | BR107: 11
A108: 2472 | B108: 737.1978428 | C108: 4.199862515 | D108: 00:12:17.198 | E108: 15.11950505 | F108: 10 tours 3 plots | G108: 2472 | J108: 1 plot | K108: 52 aller-retour1 plot | L108: 1 | M108: 34 | N108: 34 tours 1plot | O108: 3 | P108: 25 | Q108: 25 tours 3 plots | R108: 3 | S108: 20 | T108: 20 tours 3 plots | U108: 1 | V108: 17 | W108: 17 tours 1plot | X108: 5 | Y108: 14 | Z108: 14 tours 5 plots | AA108: 7 | AB108: 12 | AC108: 12 tours 7 plots | AD108: 4 | AE108: 11 | AF108: 11 tours 4 plots | AG108: 3 | AH108: 10 | AI108: 10 tours 3 plots | AJ108: 4 | AK108: 9 | AL108: 9 tours 4 plots | AM108: 7 | AN108: 8 | AO108: 8 tours 7 plots | AP108: 12 | AQ108: 7 | AR108: 7 tours 12 plots | AS108: 5 | AT108: 7 | AU108: 7 tours 5 plots | AV108: 13 | AW108: 6 | AX108: 6 tours 13 plots | AY108: 7 | AZ108: 6 | BA108: 6 tours 7 plots | BB108: 1 | BC108: 6 | BD108: 6 tours 1 plot | BE108: 13 | BF108: 5 | BG108: 5 tours 13 plots | BH108: 8 | BI108: 5 | BJ108: 5 tours 8 plots | BK108: 3 | BL108: 5 | BM108: 5 tours 3 plots | BP108: 737 | BQ108: 12 | BR108: 17
A109: 2496 | B109: 742.8944018 | C109: 4.213069728 | D109: 00:12:22.894 | E109: 15.16705102 | F109: 10 tours 4 plots | G109: 2496 | I109: 53 | J109: aller-retours | K109: 53 aller-retours | L109: 2 | M109: 34 | N109: 34 tours 2 plots | O109: 0 | P109: 26 | Q109: 26 tours | R109: 4 | S109: 20 | T109: 20 tours 4 plots | U109: 2 | V109: 17 | W109: 17 tours 2 plots | X109: 6 | Y109: 14 | Z109: 14 tours 6 plots | AA109: 0 | AB109: 13 | AC109: 13 tours | AD109: 5 | AE109: 11 | AF109: 11 tours 5 plots | AG109: 4 | AH109: 10 | AI109: 10 tours 4 plots | AJ109: 5 | AK109: 9 | AL109: 9 tours 5 plots | AM109: 8 | AN109: 8 | AO109: 8 tours 8 plots | AP109: 0 | AQ109: 8 | AR109: 8 tours | AS109: 6 | AT109: 7 | AU109: 7 tours 6 plots | AV109: 14 | AW109: 6 | AX109: 6 tours 14 plots | AY109: 8 | AZ109: 6 | BA109: 6 tours 8 plots | BB109: 2 | BC109: 6 | BD109: 6 tours 2 plots | BE109: 14 | BF109: 5 | BG109: 5 tours 14 plots | BH109: 9 | BI109: 5 | BJ109: 5 tours 9 plots | BK109: 4 | BL109: 5 | BM109: 5 tours 4 plots | BP109: 743 | BQ109: 12 | BR109: 23
A110: 2520 | B110: 748.5732143 | C110: 4.226235667 | D110: 00:12:28.573 | E110: 15.2144484 | F110: 10 tours 5 plots | G110: 2520 | J110: 1 plot | K110: 53 aller-retours 1 plot | L110: 0 | M110: 35 | N110: 35 tours | O110: 1 | P110: 26 | Q110: 26 tours 1plot | R110: 0 | S110: 21 | T110: 21 tours | U110: 3 | V110: 17 | W110: 17 tours 3 plots | X110: 0 | Y110: 15 | Z110: 15 tours | AA110: 1 | AB110: 13 | AC110: 13 tours 1plot | AD110: 6 | AE110: 11 | AF110: 11 tours 6 plots | AG110: 5 | AH110: 10 | AI110: 10 tours 5 plots | AJ110: 6 | AK110: 9 | AL110: 9 tours 6 plots | AM110: 9 | AN110: 8 | AO110: 8 tours 9 plots | AP110: 1 | AQ110: 8 | AR110: 8 tours 1 plot | AS110: 7 | AT110: 7 | AU110: 7 tours 7 plots | AV110: 0 | AW110: 7 | AX110: 7 tours | AY110: 9 | AZ110: 6 | BA110: 6 tours 9 plots | BB110: 3 | BC110: 6 | BD110: 6 tours 3 plots | BE110: 15 | BF110: 5 | BG110: 5 tours 15 plots | BH110: 10 | BI110: 5 | BJ110: 5 tours 10 plots | BK110: 5 | BL110: 5 | BM110: 5 tours 5 plots | BP110: 749 | BQ110: 12 | BR110: 29
A111: 2544 | B111: 754.2344452 | C111: 4.239360717 | D111: 00:12:34.234 | E111: 15.26169858 | F111: 10 tours 6 plots | G111: 2544 | I111: 54 | J111: aller-retours | K111: 54 aller-retours | L111: 1 | M111: 35 | N111: 35 tours 1plot | O111: 2 | P111: 26 | Q111: 26 tours 2 plots | R111: 1 | S111: 21 | T111: 21 tours 1plot | U111: 4 | V111: 17 | W111: 17 tours 4 plots | X111: 1 | Y111: 15 | Z111: 15 tours 1plot | AA111: 2 | AB111: 13 | AC111: 13 tours 2 plots | AD111: 7 | AE111: 11 | AF111: 11 tours 7 plots | AG111: 6 | AH111: 10 | AI111: 10 tours 6 plots | AJ111: 7 | AK111: 9 | AL111: 9 tours 7 plots | AM111: 10 | AN111: 8 | AO111: 8 tours 10 plots | AP111: 2 | AQ111: 8 | AR111: 8 tours 2 plots | AS111: 8 | AT111: 7 | AU111: 7 tours 8 plots | AV111: 1 | AW111: 7 | AX111: 7 tours 1 plot | AY111: 10 | AZ111: 6 | BA111: 6 tours 10 plots | BB111: 4 | BC111: 6 | BD111: 6 tours 4 plots | BE111: 16 | BF111: 5 | BG111: 5 tours 16 plots | BH111: 11 | BI111: 5 | BJ111: 5 tours 11 plots | BK111: 6 | BL111: 5 | BM111: 5 tours 6 plots | BP111: 754 | BQ111: 12 | BR111: 34
A112: 2568 | B112: 759.8782568 | C112: 4.252445257 | D112: 00:12:39.878 | E112: 15.30880293 | F112: 10 tours 7 plots | G112: 2568 | J112: 1 plot | K112: 54 aller-retours 1 plot | L112: 2 | M112: 35 | N112: 35 tours 2 plots | O112: 3 | P112: 26 | Q112: 26 tours 3 plots | R112: 2 | S112: 21 | T112: 21 tours 2 plots | U112: 5 | V112: 17 | W112: 17 tours 5 plots | X112: 2 | Y112: 15 | Z112: 15 tours 2 plots | AA112: 3 | AB112: 13 | AC112: 13 tours 3 plots | AD112: 8 | AE112: 11 | AF112: 11 tours 8 plots | AG112: 7 | AH112: 10 | AI112: 10 tours 7 plots | AJ112: 8 | AK112: 9 | AL112: 9 tours 8 plots | AM112: 11 | AN112: 8 | AO112: 8 tours 11 plots | AP112: 3 | AQ112: 8 | AR112: 8 tours 3 plots | AS112: 9 | AT112: 7 | AU112: 7 tours 9 plots | AV112: 2 | AW112: 7 | AX112: 7 tours 2 plots | AY112: 11 | AZ112: 6 | BA112: 6 tours 11 plots | BB112: 5 | BC112: 6 | BD112: 6 tours 5 plots | BE112: 17 | BF112: 5 | BG112: 5 tours 17 plots | BH112: 12 | BI112: 5 | BJ112: 5 tours 12 plots | BK112: 7 | BL112: 5 | BM112: 5 tours 7 plots | BP112: 760 | BQ112: 12 | BR112: 40
A113: 2592 | B113: 765.504809 | C113: 4.26548966 | D113: 00:12:45.505 | E113: 15.35576277 | F113: 10 tours 8 plots | G113: 2592 | I113: 55 | J113: aller-retours | K113: 55 aller-retours | L113: 0 | M113: 36 | N113: 36 tours | O113: 0 | P113: 27 | Q113: 27 tours | R113: 3 | S113: 21 | T113: 21 tours 3 plots | U113: 0 | V113: 18 | W113: 18 tours | X113: 3 | Y113: 15 | Z113: 15 tours 3 plots | AA113: 4 | AB113: 13 | AC113: 13 tours 4 plots | AD113: 0 | AE113: 12 | AF113: 12 tours | AG113: 8 | AH113: 10 | AI113: 10 tours 8 plots | AJ113: 9 | AK113: 9 | AL113: 9 tours 9 plots | AM113: 0 | AN113: 9 | AO113: 9 tours | AP113: 4 | AQ113: 8 | AR113: 8 tours 4 plots | AS113: 10 | AT113: 7 | AU113: 7 tours 10 plots | AV113: 3 | AW113: 7 | AX113: 7 tours 3 plots | AY113: 12 | AZ113: 6 | BA113: 6 tours 12 plots | BB113: 6 | BC113: 6 | BD113: 6 tours 6 plots | BE113: 0 | BF113: 6 | BG113: 6 tours | BH113: 13 | BI113: 5 | BJ113: 5 tours 13 plots | BK113: 8 | BL113: 5 | BM113: 5 tours 8 plots | BP113: 766 | BQ113: 12 | BR113: 46
A114: 2616 | B114: 771.114259 | C114: 4.278494292 | D114: 00:12:51.114 | E114: 15.40257945 | F114: 10 tours 9 plots | G114: 2616 | J114: 1 plot | K114: 55 aller-retours 1 plot | L114: 1 | M114: 36 | N114: 36 tours 1plot | O114: 1 | P114: 27 | Q114: 27 tours 1plot | R114: 4 | S114: 21 | T114: 21 tours 4 plots | U114: 1 | V114: 18 | W114: 18 tours 1plot | X114: 4 | Y114: 15 | Z114: 15 tours 4 plots | AA114: 5 | AB114: 13 | AC114: 13 tours 5 plots | AD114: 1 | AE114: 12 | AF114: 12 tours 1plot | AG114: 9 | AH114: 10 | AI114: 10 tours 9 plots | AJ114: 10 | AK114: 9 | AL114: 9 tours 10 plots | AM114: 1 | AN114: 9 | AO114: 9 tours 1 plot | AP114: 5 | AQ114: 8 | AR114: 8 tours 5 plots | AS114: 11 | AT114: 7 | AU114: 7 tours 11 plots | AV114: 4 | AW114: 7 | AX114: 7 tours 4 plots | AY114: 13 | AZ114: 6 | BA114: 6 tours 13 plots | BB114: 7 | BC114: 6 | BD114: 6 tours 7 plots | BE114: 1 | BF114: 6 | BG114: 6 tours 1 plot | BH114: 14 | BI114: 5 | BJ114: 5 tours 14 plots | BK114: 9 | BL114: 5 | BM114: 5 tours 9 plots | BP114: 771 | BQ114: 12 | BR114: 51
A115: 2640 | B115: 776.706762 | C115: 4.291459515 | D115: 00:12:56.707 | E115: 15.44925425 | F115: 11 tours | G115: 2640 | I115: 56 | J115: aller-retours | K115: 56 aller-retours | L115: 2 | M115: 36 | N115: 36 tours 2 plots | O115: 2 | P115: 27 | Q115: 27 tours 2 plots | R115: 0 | S115: 22 | T115: 22 tours | U115: 2 | V115: 18 | W115: 18 tours 2 plots | X115: 5 | Y115: 15 | Z115: 15 tours 5 plots | AA115: 6 | AB115: 13 | AC115: 13 tours 6 plots | AD115: 2 | AE115: 12 | AF115: 12 tours 2 plots | AG115: 0 | AH115: 11 | AI115: 11 tours | AJ115: 0 | AK115: 10 | AL115: 10 tours | AM115: 2 | AN115: 9 | AO115: 9 tours 2 plots | AP115: 6 | AQ115: 8 | AR115: 8 tours 6 plots | AS115: 12 | AT115: 7 | AU115: 7 tours 12 plots | AV115: 5 | AW115: 7 | AX115: 7 tours 5 plots | AY115: 14 | AZ115: 6 | BA115: 6 tours 14 plots | BB115: 8 | BC115: 6 | BD115: 6 tours 8 plots | BE115: 2 | BF115: 6 | BG115: 6 tours 2 plots | BH115: 15 | BI115: 5 | BJ115: 5 tours 15 plots | BK115: 10 | BL115: 5 | BM115: 5 tours 10 plots | BP115: 777 | BQ115: 12 | BR115: 57
A116: 2664 | B116: 782.2824705 | C116: 4.304385686 | D116: 00:13:02.282 | E116: 15.49578847 | F116: 11 tours 1plot | G116: 2664 | J116: 1 plot | K116: 56 aller-retours 1 plot | L116: 0 | M116: 37 | N116: 37 tours | O116: 3 | P116: 27 | Q116: 27 tours 3 plots | R116: 1 | S116: 22 | T116: 22 tours 1plot | U116: 3 | V116: 18 | W116: 18 tours 3 plots | X116: 6 | Y116: 15 | Z116: 15 tours 6 plots | AA116: 7 | AB116: 13 | AC116: 13 tours 7 plots | AD116: 3 | AE116: 12 | AF116: 12 tours 3 plots | AG116: 1 | AH116: 11 | AI116: 11 tours 1plot | AJ116: 1 | AK116: 10 | AL116: 10 tours 1 plot | AM116: 3 | AN116: 9 | AO116: 9 tours 3 plots | AP116: 7 | AQ116: 8 | AR116: 8 tours 7 plots | AS116: 13 | AT116: 7 | AU116: 7 tours 13 plots | AV116: 6 | AW116: 7 | AX116: 7 tours 6 plots | AY116: 15 | AZ116: 6 | BA116: 6 tours 15 plots | BB116: 9 | BC116: 6 | BD116: 6 tours 9 plots | BE116: 3 | BF116: 6 | BG116: 6 tours 3 plots | BH116: 16 | BI116: 5 | BJ116: 5 tours 16 plots | BK116: 11 | BL116: 5 | BM116: 5 tours 11 plots | BP116: 782 | BQ116: 13 | BR116: 2
A117: 2688 | B117: 787.841535 | C117: 4.317273155 | D117: 00:13:07.842 | E117: 15.54218336 | F117: 11 tours 2 plots | G117: 2688 | I117: 57 | J117: aller-retours | K117: 57 aller-retours | L117: 1 | M117: 37 | N117: 37 tours 1plot | O117: 0 | P117: 28 | Q117: 28 tours | R117: 2 | S117: 22 | T117: 22 tours 2 plots | U117: 4 | V117: 18 | W117: 18 tours 4 plots | X117: 0 | Y117: 16 | Z117: 16 tours | AA117: 0 | AB117: 14 | AC117: 14 tours | AD117: 4 | AE117: 12 | AF117: 12 tours 4 plots | AG117: 2 | AH117: 11 | AI117: 11 tours 2 plots | AJ117: 2 | AK117: 10 | AL117: 10 tours 2 plots | AM117: 4 | AN117: 9 | AO117: 9 tours 4 plots | AP117: 8 | AQ117: 8 | AR117: 8 tours 8 plots | AS117: 0 | AT117: 8 | AU117: 8 tours | AV117: 7 | AW117: 7 | AX117: 7 tours 7 plots | AY117: 0 | AZ117: 7 | BA117: 7 tours | BB117: 10 | BC117: 6 | BD117: 6 tours 10 plots | BE117: 4 | BF117: 6 | BG117: 6 tours 4 plots | BH117: 17 | BI117: 5 | BJ117: 5 tours 17 plots | BK117: 12 | BL117: 5 | BM117: 5 tours 12 plots | BP117: 788 | BQ117: 13 | BR117: 8
A118: 2712 | B118: 793.3841037 | C118: 4.330122267 | D118: 00:13:13.384 | E118: 15.58844016 | F118: 11 tours 3 plots | G118: 2712 | J118: 1 plot | K118: 57 aller-retours 1 plot | L118: 2 | M118: 37 | N118: 37 tours 2 plots | O118: 1 | P118: 28 | Q118: 28 tours 1plot | R118: 3 | S118: 22 | T118: 22 tours 3 plots | U118: 5 | V118: 18 | W118: 18 tours 5 plots | X118: 1 | Y118: 16 | Z118: 16 tours 1plot | AA118: 1 | AB118: 14 | AC118: 14 tours 1plot | AD118: 5 | AE118: 12 | AF118: 12 tours 5 plots | AG118: 3 | AH118: 11 | AI118: 11 tours 3 plots | AJ118: 3 | AK118: 10 | AL118: 10 tours 3 plots | AM118: 5 | AN118: 9 | AO118: 9 tours 5 plots | AP118: 9 | AQ118: 8 | AR118: 8 tours 9 plots | AS118: 1 | AT118: 8 | AU118: 8 tours 1 plot | AV118: 8 | AW118: 7 | AX118: 7 tours 8 plots | AY118: 1 | AZ118: 7 | BA118: 7 tours 1 plot | BB118: 11 | BC118: 6 | BD118: 6 tours 11 plots | BE118: 5 | BF118: 6 | BG118: 6 tours 5 plots | BH118: 18 | BI118: 5 | BJ118: 5 tours 18 plots | BK118: 13 | BL118: 5 | BM118: 5 tours 13 plots | BP118: 793 | BQ118: 13 | BR118: 13
A119: 2736 | B119: 798.9103225 | C119: 4.342933364 | D119: 00:13:18.910 | E119: 15.63456011 | F119: 11 tours 4 plots | G119: 2736 | I119: 58 | J119: aller-retours | K119: 58 aller-retours | L119: 0 | M119: 38 | N119: 38 tours | O119: 2 | P119: 28 | Q119: 28 tours 2 plots | R119: 4 | S119: 22 | T119: 22 tours 4 plots | U119: 0 | V119: 19 | W119: 19 tours | X119: 2 | Y119: 16 | Z119: 16 tours 2 plots | AA119: 2 | AB119: 14 | AC119: 14 tours 2 plots | AD119: 6 | AE119: 12 | AF119: 12 tours 6 plots | AG119: 4 | AH119: 11 | AI119: 11 tours 4 plots | AJ119: 4 | AK119: 10 | AL119: 10 tours 4 plots | AM119: 6 | AN119: 9 | AO119: 9 tours 6 plots | AP119: 10 | AQ119: 8 | AR119: 8 tours 10 plots | AS119: 2 | AT119: 8 | AU119: 8 tours 2 plots | AV119: 9 | AW119: 7 | AX119: 7 tours 9 plots | AY119: 2 | AZ119: 7 | BA119: 7 tours 2 plots | BB119: 12 | BC119: 6 | BD119: 6 tours 12 plots | BE119: 6 | BF119: 6 | BG119: 6 tours 6 plots | BH119: 0 | BI119: 6 | BJ119: 6 tours | BK119: 14 | BL119: 5 | BM119: 5 tours 14 plots | BP119: 799 | BQ119: 13 | BR119: 19
A120: 2760 | B120: 804.4203353 | C120: 4.35570678 | D120: 00:13:24.420 | E120: 15.68054441 | F120: 11 tours 5 plots | G120: 2760 | J120: 1 plot | K120: 58 aller-retours 1 plot | L120: 1 | M120: 38 | N120: 38 tours 1plot | O120: 3 | P120: 28 | Q120: 28 tours 3 plots | R120: 0 | S120: 23 | T120: 23 tours | U120: 1 | V120: 19 | W120: 19 tours 1plot | X120: 3 | Y120: 16 | Z120: 16 tours 3 plots | AA120: 3 | AB120: 14 | AC120: 14 tours 3 plots | AD120: 7 | AE120: 12 | AF120: 12 tours 7 plots | AG120: 5 | AH120: 11 | AI120: 11 tours 5 plots | AJ120: 5 | AK120: 10 | AL120: 10 tours 5 plots | AM120: 7 | AN120: 9 | AO120: 9 tours 7 plots | AP120: 11 | AQ120: 8 | AR120: 8 tours 11 plots | AS120: 3 | AT120: 8 | AU120: 8 tours 3 plots | AV120: 10 | AW120: 7 | AX120: 7 tours 10 plots | AY120: 3 | AZ120: 7 | BA120: 7 tours 3 plots | BB120: 13 | BC120: 6 | BD120: 6 tours 13 plots | BE120: 7 | BF120: 6 | BG120: 6 tours 7 plots | BH120: 1 | BI120: 6 | BJ120: 6 tours 1 plot | BK120: 15 | BL120: 5 | BM120: 5 tours 15 plots | BP120: 804 | BQ120: 13 | BR120: 24
A121: 2784 | B121: 809.9142838 | C121: 4.368442846 | D121: 00:13:29.914 | E121: 15.72639425 | F121: 11 tours 6 plots | G121: 2784 | I121: 59 | J121: aller-retours | K121: 59 aller-retours | L121: 2 | M121: 38 | N121: 38 tours 2 plots | O121: 0 | P121: 29 | Q121: 29 tours | R121: 1 | S121: 23 | T121: 23 tours 1plot | U121: 2 | V121: 19 | W121: 19 tours 2 plots | X121: 4 | Y121: 16 | Z121: 16 tours 4 plots | AA121: 4 | AB121: 14 | AC121: 14 tours 4 plots | AD121: 8 | AE121: 12 | AF121: 12 tours 8 plots | AG121: 6 | AH121: 11 | AI121: 11 tours 6 plots | AJ121: 6 | AK121: 10 | AL121: 10 tours 6 plots | AM121: 8 | AN121: 9 | AO121: 9 tours 8 plots | AP121: 12 | AQ121: 8 | AR121: 8 tours 12 plots | AS121: 4 | AT121: 8 | AU121: 8 tours 4 plots | AV121: 11 | AW121: 7 | AX121: 7 tours 11 plots | AY121: 4 | AZ121: 7 | BA121: 7 tours 4 plots | BB121: 14 | BC121: 6 | BD121: 6 tours 14 plots | BE121: 8 | BF121: 6 | BG121: 6 tours 8 plots | BH121: 2 | BI121: 6 | BJ121: 6 tours 2 plots | BK121: 16 | BL121: 5 | BM121: 5 tours 16 plots | BP121: 810 | BQ121: 13 | BR121: 30
A122: 2808 | B122: 815.3923077 | C122: 4.381141888 | D122: 00:13:35.392 | E122: 15.7721108 | F122: 11 tours 7 plots | G122: 2808 | J122: 1 plot | K122: 59 aller-retours 1 plot | L122: 0 | M122: 39 | N122: 39 tours | O122: 1 | P122: 29 | Q122: 29 tours 1plot | R122: 2 | S122: 23 | T122: 23 tours 2 plots | U122: 3 | V122: 19 | W122: 19 tours 3 plots | X122: 5 | Y122: 16 | Z122: 16 tours 5 plots | AA122: 5 | AB122: 14 | AC122: 14 tours 5 plots | AD122: 0 | AE122: 13 | AF122: 13 tours | AG122: 7 | AH122: 11 | AI122: 11 tours 7 plots | AJ122: 7 | AK122: 10 | AL122: 10 tours 7 plots | AM122: 9 | AN122: 9 | AO122: 9 tours 9 plots | AP122: 0 | AQ122: 9 | AR122: 9 tours | AS122: 5 | AT122: 8 | AU122: 8 tours 5 plots | AV122: 12 | AW122: 7 | AX122: 7 tours 12 plots | AY122: 5 | AZ122: 7 | BA122: 7 tours 5 plots | BB122: 15 | BC122: 6 | BD122: 6 tours 15 plots | BE122: 9 | BF122: 6 | BG122: 6 tours 9 plots | BH122: 3 | BI122: 6 | BJ122: 6 tours 3 plots | BK122: 17 | BL122: 5 | BM122: 5 tours 17 plots | BP122: 815 | BQ122: 13 | BR122: 35
A123: 2832 | B123: 820.8545447 | C123: 4.393804227 | D123: 00:13:40.855 | E123: 15.81769522 | F123: 11 tours 8 plots | G123: 2832 | I123: 60 | J123: aller-retours | K123: 60 aller-retours | L123: 1 | M123: 39 | N123: 39 tours 1plot | O123: 2 | P123: 29 | Q123: 29 tours 2 plots | R123: 3 | S123: 23 | T123: 23 tours 3 plots | U123: 4 | V123: 19 | W123: 19 tours 4 plots | X123: 6 | Y123: 16 | Z123: 16 tours 6 plots | AA123: 6 | AB123: 14 | AC123: 14 tours 6 plots | AD123: 1 | AE123: 13 | AF123: 13 tours 1plot | AG123: 8 | AH123: 11 | AI123: 11 tours 8 plots | AJ123: 8 | AK123: 10 | AL123: 10 tours 8 plots | AM123: 10 | AN123: 9 | AO123: 9 tours 10 plots | AP123: 1 | AQ123: 9 | AR123: 9 tours 1 plot | AS123: 6 | AT123: 8 | AU123: 8 tours 6 plots | AV123: 13 | AW123: 7 | AX123: 7 tours 13 plots | AY123: 6 | AZ123: 7 | BA123: 7 tours 6 plots | BB123: 16 | BC123: 6 | BD123: 6 tours 16 plots | BE123: 10 | BF123: 6 | BG123: 6 tours 10 plots | BH123: 4 | BI123: 6 | BJ123: 6 tours 4 plots | BK123: 18 | BL123: 5 | BM123: 5 tours 18 plots | BP123: 821 | BQ123: 13 | BR123: 41
A124: 2856 | B124: 826.3011305 | C124: 4.40643018 | D124: 00:13:46.301 | E124: 15.86314865 | F124: 11 tours 9 plots | G124: 2856 | J124: 1 plot | K124: 60 aller-retours 1 plot | L124: 2 | M124: 39 | N124: 39 tours 2 plots | O124: 3 | P124: 29 | Q124: 29 tours 3 plots | R124: 4 | S124: 23 | T124: 23 tours 4 plots | U124: 5 | V124: 19 | W124: 19 tours 5 plots | X124: 0 | Y124: 17 | Z124: 17 tours | AA124: 7 | AB124: 14 | AC124: 14 tours 7 plots | AD124: 2 | AE124: 13 | AF124: 13 tours 2 plots | AG124: 9 | AH124: 11 | AI124: 11 tours 9 plots | AJ124: 9 | AK124: 10 | AL124: 10 tours 9 plots | AM124: 11 | AN124: 9 | AO124: 9 tours 11 plots | AP124: 2 | AQ124: 9 | AR124: 9 tours 2 plots | AS124: 7 | AT124: 8 | AU124: 8 tours 7 plots | AV124: 14 | AW124: 7 | AX124: 7 tours 14 plots | AY124: 7 | AZ124: 7 | BA124: 7 tours 7 plots | BB124: 0 | BC124: 7 | BD124: 7 tours | BE124: 11 | BF124: 6 | BG124: 6 tours 11 plots | BH124: 5 | BI124: 6 | BJ124: 6 tours 5 plots | BK124: 19 | BL124: 5 | BM124: 5 tours 19 plots | BP124: =ROUND(B124,0) -> 826 | BQ124: 13 | BR124: 46
A125: 2880 | B125: 831.7321988 | C125: 4.419020057 | D125: 00:13:51.732 | E125: 15.90847221 | F125: 12 tours | G125: 2880 | I125: 61 | J125: aller-retours | K125: 61 aller-retours | L125: 0 | M125: 40 | N125: 40 tours | O125: 0 | P125: 30 | Q125: 30 tours | R125: 0 | S125: 24 | T125: 24 tours | U125: 0 | V125: 20 | W125: 20 tours | X125: 1 | Y125: 17 | Z125: 17 tours 1plot | AA125: 0 | AB125: 15 | AC125: 15 tours | AD125: 3 | AE125: 13 | AF125: 13 tours 3 plots | AG125: 0 | AH125: 12 | AI125: 12 tours | AJ125: 10 | AK125: 10 | AL125: 10 tours 10 plots | AM125: 0 | AN125: 10 | AO125: 10 tours | AP125: 3 | AQ125: 9 | AR125: 9 tours 3 plots | AS125: 8 | AT125: 8 | AU125: 8 tours 8 plots | AV125: 0 | AW125: 8 | AX125: 8 tours | AY125: 8 | AZ125: 7 | BA125: 7 tours 8 plots | BB125: 1 | BC125: 7 | BD125: 7 tours 1 plot | BE125: 12 | BF125: 6 | BG125: 6 tours 12 plots | BH125: 6 | BI125: 6 | BJ125: 6 tours 6 plots | BK125: 0 | BL125: 6 | BM125: 6 tours | BP125: =ROUND(B125,0) -> 832 | BQ125: 13 | BR125: 52
A126: 2904 | B126: 837.1478816 | C126: 4.431574167 | D126: 00:13:57.148 | E126: 15.953667 | F126: 12 tours 1plot | G126: 2904 | J126: 1 plot | K126: 61 aller-retours 1 plot | L126: 1 | M126: 40 | N126: 40 tours 1plot | O126: 1 | P126: 30 | Q126: 30 tours 1plot | R126: 1 | S126: 24 | T126: 24 tours 1plot | U126: 1 | V126: 20 | W126: 20 tours 1plot | X126: 2 | Y126: 17 | Z126: 17 tours 2 plots | AA126: 1 | AB126: 15 | AC126: 15 tours 1plot | AD126: 4 | AE126: 13 | AF126: 13 tours 4 plots | AG126: 1 | AH126: 12 | AI126: 12 tours 1plot | AJ126: 0 | AK126: 11 | AL126: 11 tours | AM126: 1 | AN126: 10 | AO126: 10 tours 1 plot | AP126: 4 | AQ126: 9 | AR126: 9 tours 4 plots | AS126: 9 | AT126: 8 | AU126: 8 tours 9 plots | AV126: 1 | AW126: 8 | AX126: 8 tours 1 plot | AY126: 9 | AZ126: 7 | BA126: 7 tours 9 plots | BB126: 2 | BC126: 7 | BD126: 7 tours 2 plots | BE126: 13 | BF126: 6 | BG126: 6 tours 13 plots | BH126: 7 | BI126: 6 | BJ126: 6 tours 7 plots | BK126: 1 | BL126: 6 | BM126: 6 tours 1 plot | BP126: =ROUND(B126,0) -> 837 | BQ126: 13 | BR126: 57
A127: 2928 | B127: 842.5483089 | C127: 4.444092813 | D127: 00:14:02.548 | E127: 15.99873413 | F127: 12 tours 2 plots | G127: 2928 | I127: 62 | J127: aller-retours | K127: 62 aller-retours | L127: 2 | M127: 40 | N127: 40 tours 2 plots | O127: 2 | P127: 30 | Q127: 30 tours 2 plots | R127: 2 | S127: 24 | T127: 24 tours 2 plots | U127: 2 | V127: 20 | W127: 20 tours 2 plots | X127: 3 | Y127: 17 | Z127: 17 tours 3 plots | AA127: 2 | AB127: 15 | AC127: 15 tours 2 plots | AD127: 5 | AE127: 13 | AF127: 13 tours 5 plots | AG127: 2 | AH127: 12 | AI127: 12 tours 2 plots | AJ127: 1 | AK127: 11 | AL127: 11 tours 1 plot | AM127: 2 | AN127: 10 | AO127: 10 tours 2 plots | AP127: 5 | AQ127: 9 | AR127: 9 tours 5 plots | AS127: 10 | AT127: 8 | AU127: 8 tours 10 plots | AV127: 2 | AW127: 8 | AX127: 8 tours 2 plots | AY127: 10 | AZ127: 7 | BA127: 7 tours 10 plots | BB127: 3 | BC127: 7 | BD127: 7 tours 3 plots | BE127: 14 | BF127: 6 | BG127: 6 tours 14 plots | BH127: 8 | BI127: 6 | BJ127: 6 tours 8 plots | BK127: 2 | BL127: 6 | BM127: 6 tours 2 plots | BP127: 843 | BQ127: 14 | BR127: 3
A128: 2952 | B128: 847.9336088 | C128: 4.456576294 | D128: 00:14:07.934 | E128: 16.04367466 | F128: 12 tours 3 plots | G128: 2952 | J128: 1 plot | K128: 62 aller-retours 1 plot | L128: 0 | M128: 41 | N128: 41 tours | O128: 3 | P128: 30 | Q128: 30 tours 3 plots | R128: 3 | S128: 24 | T128: 24 tours 3 plots | U128: 3 | V128: 20 | W128: 20 tours 3 plots | X128: 4 | Y128: 17 | Z128: 17 tours 4 plots | AA128: 3 | AB128: 15 | AC128: 15 tours 3 plots | AD128: 6 | AE128: 13 | AF128: 13 tours 6 plots | AG128: 3 | AH128: 12 | AI128: 12 tours 3 plots | AJ128: 2 | AK128: 11 | AL128: 11 tours 2 plots | AM128: 3 | AN128: 10 | AO128: 10 tours 3 plots | AP128: 6 | AQ128: 9 | AR128: 9 tours 6 plots | AS128: 11 | AT128: 8 | AU128: 8 tours 11 plots | AV128: 3 | AW128: 8 | AX128: 8 tours 3 plots | AY128: 11 | AZ128: 7 | BA128: 7 tours 11 plots | BB128: 4 | BC128: 7 | BD128: 7 tours 4 plots | BE128: 15 | BF128: 6 | BG128: 6 tours 15 plots | BH128: 9 | BI128: 6 | BJ128: 6 tours 9 plots | BK128: 3 | BL128: 6 | BM128: 6 tours 3 plots | BP128: 848 | BQ128: 14 | BR128: 8
A129: 2976 | B129: 853.3039078 | C129: 4.469024904 | D129: 00:14:13.304 | E129: 16.08848965 | F129: 12 tours 4 plots | G129: 2976 | I129: 63 | J129: aller-retours | K129: 63 aller-retours | L129: 1 | M129: 41 | N129: 41 tours 1plot | O129: 0 | P129: 31 | Q129: 31 tours | R129: 4 | S129: 24 | T129: 24 tours 4 plots | U129: 4 | V129: 20 | W129: 20 tours 4 plots | X129: 5 | Y129: 17 | Z129: 17 tours 5 plots | AA129: 4 | AB129: 15 | AC129: 15 tours 4 plots | AD129: 7 | AE129: 13 | AF129: 13 tours 7 plots | AG129: 4 | AH129: 12 | AI129: 12 tours 4 plots | AJ129: 3 | AK129: 11 | AL129: 11 tours 3 plots | AM129: 4 | AN129: 10 | AO129: 10 tours 4 plots | AP129: 7 | AQ129: 9 | AR129: 9 tours 7 plots | AS129: 12 | AT129: 8 | AU129: 8 tours 12 plots | AV129: 4 | AW129: 8 | AX129: 8 tours 4 plots | AY129: 12 | AZ129: 7 | BA129: 7 tours 12 plots | BB129: 5 | BC129: 7 | BD129: 7 tours 5 plots | BE129: 16 | BF129: 6 | BG129: 6 tours 16 plots | BH129: 10 | BI129: 6 | BJ129: 6 tours 10 plots | BK129: 4 | BL129: 6 | BM129: 6 tours 4 plots | BP129: 853 | BQ129: 14 | BR129: 13
A130: 3000 | B130: 858.6593306 | C130: 4.481438933 | D130: 00:14:18.659 | E130: 16.13318016 | F130: 12 tours 5 plots | G130: 3000 | J130: 1 plot | K130: 63 aller-retours 1 plot | L130: 2 | M130: 41 | N130: 41 tours 2 plots | O130: 1 | P130: 31 | Q130: 31 tours 1plot | R130: 0 | S130: 25 | T130: 25 tours | U130: 5 | V130: 20 | W130: 20 tours 5 plots | X130: 6 | Y130: 17 | Z130: 17 tours 6 plots | AA130: 5 | AB130: 15 | AC130: 15 tours 5 plots | AD130: 8 | AE130: 13 | AF130: 13 tours 8 plots | AG130: 5 | AH130: 12 | AI130: 12 tours 5 plots | AJ130: 4 | AK130: 11 | AL130: 11 tours 4 plots | AM130: 5 | AN130: 10 | AO130: 10 tours 5 plots | AP130: 8 | AQ130: 9 | AR130: 9 tours 8 plots | AS130: 13 | AT130: 8 | AU130: 8 tours 13 plots | AV130: 5 | AW130: 8 | AX130: 8 tours 5 plots | AY130: 13 | AZ130: 7 | BA130: 7 tours 13 plots | BB130: 6 | BC130: 7 | BD130: 7 tours 6 plots | BE130: 17 | BF130: 6 | BG130: 6 tours 17 plots | BH130: 11 | BI130: 6 | BJ130: 6 tours 11 plots | BK130: 5 | BL130: 6 | BM130: 6 tours 5 plots | BP130: 859 | BQ130: 14 | BR130: 19
A131: 3024 | B131: 864 | C131: 4.49381867 | D131: 00:14:24 | E131: 16.17774721 | F131: 12 tours 6 plots | G131: 3024 | I131: 64 | J131: aller-retours | K131: 64 aller-retours | L131: 0 | M131: 42 | N131: 42 tours | O131: 2 | P131: 31 | Q131: 31 tours 2 plots | R131: 1 | S131: 25 | T131: 25 tours 1plot | U131: 0 | V131: 21 | W131: 21 tours | X131: 0 | Y131: 18 | Z131: 18 tours | AA131: 6 | AB131: 15 | AC131: 15 tours 6 plots | AD131: 0 | AE131: 14 | AF131: 14 tours | AG131: 6 | AH131: 12 | AI131: 12 tours 6 plots | AJ131: 5 | AK131: 11 | AL131: 11 tours 5 plots | AM131: 6 | AN131: 10 | AO131: 10 tours 6 plots | AP131: 9 | AQ131: 9 | AR131: 9 tours 9 plots | AS131: 0 | AT131: 9 | AU131: 9 tours | AV131: 6 | AW131: 8 | AX131: 8 tours 6 plots | AY131: 14 | AZ131: 7 | BA131: 7 tours 14 plots | BB131: 7 | BC131: 7 | BD131: 7 tours 7 plots | BE131: 0 | BF131: 7 | BG131: 7 tours | BH131: 12 | BI131: 6 | BJ131: 6 tours 12 plots | BK131: 6 | BL131: 6 | BM131: 6 tours 6 plots | BP131: 864 | BQ131: 14 | BR131: 24
A132: 3048 | B132: 869.3260374 | C132: 4.506164395 | D132: 00:14:29.326 | E132: 16.22219182 | F132: 12 tours 7 plots | G132: 3048 | J132: 1 plot | K132: 64 aller-retours 1 plot | L132: 1 | M132: 42 | N132: 42 tours 1plot | O132: 3 | P132: 31 | Q132: 31 tours 3 plots | R132: 2 | S132: 25 | T132: 25 tours 2 plots | U132: 1 | V132: 21 | W132: 21 tours 1plot | X132: 1 | Y132: 18 | Z132: 18 tours 1plot | AA132: 7 | AB132: 15 | AC132: 15 tours 7 plots | AD132: 1 | AE132: 14 | AF132: 14 tours 1plot | AG132: 7 | AH132: 12 | AI132: 12 tours 7 plots | AJ132: 6 | AK132: 11 | AL132: 11 tours 6 plots | AM132: 7 | AN132: 10 | AO132: 10 tours 7 plots | AP132: 10 | AQ132: 9 | AR132: 9 tours 10 plots | AS132: 1 | AT132: 9 | AU132: 9 tours 1 plot | AV132: 7 | AW132: 8 | AX132: 8 tours 7 plots | AY132: 15 | AZ132: 7 | BA132: 7 tours 15 plots | BB132: 8 | BC132: 7 | BD132: 7 tours 8 plots | BE132: 1 | BF132: 7 | BG132: 7 tours 1 plot | BH132: 13 | BI132: 6 | BJ132: 6 tours 13 plots | BK132: 7 | BL132: 6 | BM132: 6 tours 7 plots | BP132: 869 | BQ132: 14 | BR132: 29
A133: 3072 | B133: 874.6375623 | C133: 4.518476389 | D133: 00:14:34.638 | E133: 16.266515 | F133: 12 tours 8 plots | G133: 3072 | I133: 65 | J133: aller-retour | K133: 65 aller-retour | L133: 2 | M133: 42 | N133: 42 tours 2 plots | O133: 0 | P133: 32 | Q133: 32 tours | R133: 3 | S133: 25 | T133: 25 tours 3 plots | U133: 2 | V133: 21 | W133: 21 tours 2 plots | X133: 2 | Y133: 18 | Z133: 18 tours 2 plots | AA133: 0 | AB133: 16 | AC133: 16 tours | AD133: 2 | AE133: 14 | AF133: 14 tours 2 plots | AG133: 8 | AH133: 12 | AI133: 12 tours 8 plots | AJ133: 7 | AK133: 11 | AL133: 11 tours 7 plots | AM133: 8 | AN133: 10 | AO133: 10 tours 8 plots | AP133: 11 | AQ133: 9 | AR133: 9 tours 11 plots | AS133: 2 | AT133: 9 | AU133: 9 tours 2 plots | AV133: 8 | AW133: 8 | AX133: 8 tours 8 plots | AY133: 0 | AZ133: 8 | BA133: 8 tours | BB133: 9 | BC133: 7 | BD133: 7 tours 9 plots | BE133: 2 | BF133: 7 | BG133: 7 tours 2 plots | BH133: 14 | BI133: 6 | BJ133: 6 tours 14 plots | BK133: 8 | BL133: 6 | BM133: 6 tours 8 plots | BP133: 875 | BQ133: 14 | BR133: 35
A134: 3096 | B134: 879.9346928 | C134: 4.530754925 | D134: 00:14:39.935 | E134: 16.31071773 | F134: =INDEX(F134:BM342, 1,$B$2*3) -> 12 tours 9 plots | G134: 3096 | J134: 1 plot | K134: 65 aller-retour1 plot | L134: 0 | M134: 43 | N134: 43 tours | O134: 1 | P134: 32 | Q134: 32 tours 1plot | R134: 4 | S134: 25 | T134: 25 tours 4 plots | U134: 3 | V134: 21 | W134: 21 tours 3 plots | X134: 3 | Y134: 18 | Z134: 18 tours 3 plots | AA134: 1 | AB134: 16 | AC134: 16 tours 1plot | AD134: 3 | AE134: 14 | AF134: 14 tours 3 plots | AG134: 9 | AH134: 12 | AI134: 12 tours 9 plots | AJ134: 8 | AK134: 11 | AL134: =IF(AK134=0,"",IF(AND(AJ134=0,AK134=1),AK134&" "&"tour",IF(AND(AJ134=0,AK134>1),AK134&" "&"tours",IF(AND(AK134>1,AJ134=1),AK134&" "&"tours"&" "&AJ134&" "&"plot",IF(AND(AK134=1,AJ134=1),AK134&" "&"tour"&" "&AJ134&" "&"plot",IF(AND(AK134=1,AJ134>0),AK134&" "&"tour"&" "&AJ134&" "&"plots",IF(AND(AK134>1,AJ134>1),AK134&" "&"tours"&" "&AJ134&" "&"plots"))))))) -> 11 tours 8 plots | AM134: 9 | AN134: 10 | AO134: 10 tours 9 plots | AP134: 12 | AQ134: 9 | AR134: 9 tours 12 plots | AS134: 3 | AT134: 9 | AU134: 9 tours 3 plots | AV134: 9 | AW134: 8 | AX134: 8 tours 9 plots | AY134: 1 | AZ134: 8 | BA134: 8 tours 1 plot | BB134: 10 | BC134: 7 | BD134: 7 tours 10 plots | BE134: 3 | BF134: 7 | BG134: 7 tours 3 plots | BH134: 15 | BI134: 6 | BJ134: 6 tours 15 plots | BK134: 9 | BL134: 6 | BM134: 6 tours 9 plots | BP134: 880 | BQ134: 14 | BR134: 40
A135: 3120 | B135: 885.2175452 | C135: 4.543000275 | D135: =B135*0.0000115740740740741 -> 00:14:45.218 | E135: =C135*3.6 -> 16.35480099 | F135: 13 tours | G135: 3120 | I135: 66 | J135: aller-retours | K135: 66 aller-retours | L135: 1 | M135: 43 | N135: 43 tours 1plot | O135: 2 | P135: 32 | Q135: 32 tours 2 plots | R135: 0 | S135: 26 | T135: 26 tours | U135: 4 | V135: 21 | W135: 21 tours 4 plots | X135: 4 | Y135: 18 | Z135: 18 tours 4 plots | AA135: 2 | AB135: 16 | AC135: 16 tours 2 plots | AD135: 4 | AE135: 14 | AF135: 14 tours 4 plots | AG135: 0 | AH135: 13 | AI135: 13 tours | AJ135: 9 | AK135: 11 | AL135: 11 tours 9 plots | AM135: 10 | AN135: 10 | AO135: 10 tours 10 plots | AP135: 0 | AQ135: 10 | AR135: 10 tours | AS135: 4 | AT135: 9 | AU135: 9 tours 4 plots | AV135: 10 | AW135: 8 | AX135: 8 tours 10 plots | AY135: 2 | AZ135: 8 | BA135: 8 tours 2 plots | BB135: 11 | BC135: 7 | BD135: 7 tours 11 plots | BE135: 4 | BF135: 7 | BG135: 7 tours 4 plots | BH135: 16 | BI135: 6 | BJ135: 6 tours 16 plots | BK135: 10 | BL135: 6 | BM135: 6 tours 10 plots | BP135: 885 | BQ135: =QUOTIENT(BP135,60) -> 14 | BR135: 45
A136: =A135+$A$6 -> 3144 | B136: =(-$C$3+SQRT($C$3*$C$3+(4*$F$1*A136)))/(2*$F$1) -> 890.4862344 | C136: 4.555212708 | D136: 00:14:50.486 | E136: 16.39876575 | F136: 13 tours 1plot | G136: 3144 | J136: 1 plot | K136: 66 aller-retours 1 plot | L136: 2 | M136: 43 | N136: 43 tours 2 plots | O136: 3 | P136: 32 | Q136: 32 tours 3 plots | R136: 1 | S136: 26 | T136: 26 tours 1plot | U136: 5 | V136: 21 | W136: 21 tours 5 plots | X136: 5 | Y136: 18 | Z136: 18 tours 5 plots | AA136: 3 | AB136: 16 | AC136: 16 tours 3 plots | AD136: 5 | AE136: 14 | AF136: 14 tours 5 plots | AG136: 1 | AH136: 13 | AI136: 13 tours 1plot | AJ136: 10 | AK136: 11 | AL136: 11 tours 10 plots | AM136: 11 | AN136: 10 | AO136: 10 tours 11 plots | AP136: 1 | AQ136: 10 | AR136: 10 tours 1 plot | AS136: 5 | AT136: 9 | AU136: 9 tours 5 plots | AV136: 11 | AW136: 8 | AX136: 8 tours 11 plots | AY136: 3 | AZ136: 8 | BA136: 8 tours 3 plots | BB136: 12 | BC136: 7 | BD136: 7 tours 12 plots | BE136: 5 | BF136: 7 | BG136: 7 tours 5 plots | BH136: 17 | BI136: 6 | BJ136: 6 tours 17 plots | BK136: 11 | BL136: 6 | BM136: 6 tours 11 plots | BP136: 890 | BQ136: 14 | BR136: 50
A137: 3168 | B137: 895.7408737 | C137: =$E$3/(B137-B136) -> 4.567392486 | D137: 00:14:55.741 | E137: 16.44261295 | F137: 13 tours 2 plots | G137: 3168 | I137: 67 | J137: aller-retours | K137: 67 aller-retours | L137: 0 | M137: 44 | N137: 44 tours | O137: 0 | P137: 33 | Q137: 33 tours | R137: 2 | S137: 26 | T137: 26 tours 2 plots | U137: 0 | V137: 22 | W137: 22 tours | X137: 6 | Y137: 18 | Z137: 18 tours 6 plots | AA137: 4 | AB137: 16 | AC137: 16 tours 4 plots | AD137: 6 | AE137: 14 | AF137: 14 tours 6 plots | AG137: 2 | AH137: 13 | AI137: 13 tours 2 plots | AJ137: 0 | AK137: 12 | AL137: 12 tours | AM137: 0 | AN137: 11 | AO137: 11 tours | AP137: 2 | AQ137: 10 | AR137: 10 tours 2 plots | AS137: 6 | AT137: 9 | AU137: 9 tours 6 plots | AV137: 12 | AW137: 8 | AX137: 8 tours 12 plots | AY137: 4 | AZ137: 8 | BA137: 8 tours 4 plots | BB137: 13 | BC137: 7 | BD137: 7 tours 13 plots | BE137: 6 | BF137: 7 | BG137: 7 tours 6 plots | BH137: 18 | BI137: 6 | BJ137: 6 tours 18 plots | BK137: 12 | BL137: 6 | BM137: 6 tours 12 plots | BP137: 896 | BQ137: 14 | BR137: =MOD(BP137,60) -> 56
A138: 3192 | B138: 900.9815749 | C138: 4.579539871 | D138: 00:15:00.982 | E138: 16.48634354 | F138: 13 tours 3 plots | G138: 3192 | J138: 1 plot | K138: 67 aller-retours 1 plot | L138: 1 | M138: 44 | N138: 44 tours 1plot | O138: 1 | P138: 33 | Q138: 33 tours 1plot | R138: 3 | S138: 26 | T138: 26 tours 3 plots | U138: 1 | V138: 22 | W138: 22 tours 1plot | X138: 0 | Y138: 19 | Z138: 19 tours | AA138: 5 | AB138: 16 | AC138: 16 tours 5 plots | AD138: 7 | AE138: 14 | AF138: 14 tours 7 plots | AG138: 3 | AH138: 13 | AI138: 13 tours 3 plots | AJ138: 1 | AK138: 12 | AL138: 12 tours 1 plot | AM138: 1 | AN138: 11 | AO138: 11 tours 1 plot | AP138: 3 | AQ138: 10 | AR138: 10 tours 3 plots | AS138: 7 | AT138: 9 | AU138: 9 tours 7 plots | AV138: 13 | AW138: 8 | AX138: 8 tours 13 plots | AY138: 5 | AZ138: 8 | BA138: 8 tours 5 plots | BB138: 14 | BC138: 7 | BD138: 7 tours 14 plots | BE138: 7 | BF138: 7 | BG138: 7 tours 7 plots | BH138: 0 | BI138: 7 | BJ138: 7 tours | BK138: 13 | BL138: 6 | BM138: 6 tours 13 plots | BP138: 901 | BQ138: 15 | BR138: 1
A139: 3216 | B139: 906.2084483 | C139: 4.591655119 | D139: 00:15:06.208 | E139: 16.52995843 | F139: 13 tours 4 plots | G139: 3216 | I139: 68 | J139: aller-retours | K139: 68 aller-retours | L139: 2 | M139: 44 | N139: 44 tours 2 plots | O139: 2 | P139: 33 | Q139: 33 tours 2 plots | R139: 4 | S139: 26 | T139: 26 tours 4 plots | U139: 2 | V139: 22 | W139: 22 tours 2 plots | X139: 1 | Y139: 19 | Z139: 19 tours 1plot | AA139: 6 | AB139: 16 | AC139: 16 tours 6 plots | AD139: 8 | AE139: 14 | AF139: 14 tours 8 plots | AG139: 4 | AH139: 13 | AI139: 13 tours 4 plots | AJ139: 2 | AK139: 12 | AL139: 12 tours 2 plots | AM139: 2 | AN139: 11 | AO139: 11 tours 2 plots | AP139: 4 | AQ139: 10 | AR139: 10 tours 4 plots | AS139: 8 | AT139: 9 | AU139: 9 tours 8 plots | AV139: 14 | AW139: 8 | AX139: 8 tours 14 plots | AY139: 6 | AZ139: 8 | BA139: 8 tours 6 plots | BB139: 15 | BC139: 7 | BD139: 7 tours 15 plots | BE139: 8 | BF139: 7 | BG139: 7 tours 8 plots | BH139: 1 | BI139: 7 | BJ139: 7 tours 1 plot | BK139: 14 | BL139: 6 | BM139: 6 tours 14 plots | BP139: 906 | BQ139: 15 | BR139: 6
A140: 3240 | B140: 911.4216028 | C140: 4.603738485 | D140: 00:15:11.422 | E140: 16.57345855 | F140: 13 tours 5 plots | G140: 3240 | J140: 1 plot | K140: =IF(I140="",K139&J140,IF(I140>0,I140&" "&J140)) -> 68 aller-retours 1 plot | L140: 0 | M140: 45 | N140: 45 tours | O140: 3 | P140: 33 | Q140: 33 tours 3 plots | R140: 0 | S140: 27 | T140: 27 tours | U140: 3 | V140: 22 | W140: 22 tours 3 plots | X140: 2 | Y140: 19 | Z140: 19 tours 2 plots | AA140: 7 | AB140: 16 | AC140: 16 tours 7 plots | AD140: 0 | AE140: 15 | AF140: 15 tours | AG140: 5 | AH140: 13 | AI140: 13 tours 5 plots | AJ140: 3 | AK140: 12 | AL140: 12 tours 3 plots | AM140: 3 | AN140: 11 | AO140: 11 tours 3 plots | AP140: 5 | AQ140: 10 | AR140: 10 tours 5 plots | AS140: 9 | AT140: 9 | AU140: 9 tours 9 plots | AV140: 0 | AW140: 9 | AX140: 9 tours | AY140: 7 | AZ140: 8 | BA140: 8 tours 7 plots | BB140: 16 | BC140: 7 | BD140: 7 tours 16 plots | BE140: 9 | BF140: 7 | BG140: 7 tours 9 plots | BH140: 2 | BI140: 7 | BJ140: 7 tours 2 plots | BK140: 15 | BL140: 6 | BM140: 6 tours 15 plots | BP140: 911 | BQ140: 15 | BR140: 11
A141: 3264 | B141: 916.6211458 | C141: 4.615790218 | D141: 00:15:16.621 | E141: 16.61684479 | F141: 13 tours 6 plots | G141: =A141 -> 3264 | I141: 69 | J141: aller-retours | K141: 69 aller-retours | L141: 1 | M141: 45 | N141: 45 tours 1plot | O141: 0 | P141: 34 | Q141: 34 tours | R141: 1 | S141: 27 | T141: 27 tours 1plot | U141: 4 | V141: 22 | W141: 22 tours 4 plots | X141: 3 | Y141: 19 | Z141: 19 tours 3 plots | AA141: 0 | AB141: 17 | AC141: 17 tours | AD141: 1 | AE141: 15 | AF141: 15 tours 1plot | AG141: 6 | AH141: 13 | AI141: 13 tours 6 plots | AJ141: 4 | AK141: 12 | AL141: 12 tours 4 plots | AM141: 4 | AN141: 11 | AO141: 11 tours 4 plots | AP141: 6 | AQ141: 10 | AR141: 10 tours 6 plots | AS141: 10 | AT141: 9 | AU141: 9 tours 10 plots | AV141: 1 | AW141: 9 | AX141: 9 tours 1 plot | AY141: 8 | AZ141: 8 | BA141: 8 tours 8 plots | BB141: 0 | BC141: 8 | BD141: 8 tours | BE141: 10 | BF141: 7 | BG141: 7 tours 10 plots | BH141: 3 | BI141: 7 | BJ141: 7 tours 3 plots | BK141: 16 | BL141: 6 | BM141: 6 tours 16 plots | BP141: 917 | BQ141: 15 | BR141: 17
A142: 3288 | B142: 921.8071835 | C142: 4.627810566 | D142: 00:15:21.807 | E142: 16.66011804 | F142: 13 tours 7 plots | G142: 3288 | J142: 1 plot | K142: 69 aller-retours 1 plot | L142: 2 | M142: 45 | N142: 45 tours 2 plots | O142: 1 | P142: 34 | Q142: 34 tours 1plot | R142: 2 | S142: 27 | T142: 27 tours 2 plots | U142: 5 | V142: 22 | W142: 22 tours 5 plots | X142: 4 | Y142: 19 | Z142: 19 tours 4 plots | AA142: 1 | AB142: 17 | AC142: 17 tours 1plot | AD142: 2 | AE142: 15 | AF142: 15 tours 2 plots | AG142: 7 | AH142: 13 | AI142: 13 tours 7 plots | AJ142: 5 | AK142: 12 | AL142: 12 tours 5 plots | AM142: 5 | AN142: 11 | AO142: 11 tours 5 plots | AP142: 7 | AQ142: 10 | AR142: 10 tours 7 plots | AS142: 11 | AT142: 9 | AU142: 9 tours 11 plots | AV142: 2 | AW142: 9 | AX142: 9 tours 2 plots | AY142: 9 | AZ142: 8 | BA142: 8 tours 9 plots | BB142: 1 | BC142: 8 | BD142: 8 tours 1 plot | BE142: 11 | BF142: 7 | BG142: 7 tours 11 plots | BH142: 4 | BI142: 7 | BJ142: 7 tours 4 plots | BK142: 17 | BL142: 6 | BM142: 6 tours 17 plots | BP142: 922 | BQ142: 15 | BR142: 22
A143: 3312 | B143: 926.9798205 | C143: 4.639799773 | D143: 00:15:26.980 | E143: 16.70327918 | F143: 13 tours 8 plots | G143: 3312 | I143: 70 | J143: aller-retours | K143: 70 aller-retours | L143: 0 | M143: 46 | N143: 46 tours | O143: 2 | P143: 34 | Q143: 34 tours 2 plots | R143: 3 | S143: 27 | T143: 27 tours 3 plots | U143: 0 | V143: 23 | W143: 23 tours | X143: 5 | Y143: 19 | Z143: 19 tours 5 plots | AA143: 2 | AB143: 17 | AC143: 17 tours 2 plots | AD143: 3 | AE143: 15 | AF143: 15 tours 3 plots | AG143: 8 | AH143: 13 | AI143: 13 tours 8 plots | AJ143: 6 | AK143: 12 | AL143: 12 tours 6 plots | AM143: 6 | AN143: 11 | AO143: 11 tours 6 plots | AP143: 8 | AQ143: 10 | AR143: 10 tours 8 plots | AS143: 12 | AT143: 9 | AU143: 9 tours 12 plots | AV143: 3 | AW143: 9 | AX143: 9 tours 3 plots | AY143: 10 | AZ143: 8 | BA143: 8 tours 10 plots | BB143: 2 | BC143: 8 | BD143: 8 tours 2 plots | BE143: 12 | BF143: 7 | BG143: 7 tours 12 plots | BH143: 5 | BI143: 7 | BJ143: 7 tours 5 plots | BK143: 18 | BL143: 6 | BM143: 6 tours 18 plots | BP143: 927 | BQ143: 15 | BR143: 27
A144: 3336 | B144: 932.1391602 | C144: 4.65175808 | D144: 00:15:32.139 | E144: 16.74632909 | F144: 13 tours 9 plots | G144: 3336 | J144: 1 plot | K144: 70 aller-retours 1 plot | L144: 1 | M144: 46 | N144: 46 tours 1plot | O144: 3 | P144: 34 | Q144: 34 tours 3 plots | R144: 4 | S144: 27 | T144: 27 tours 4 plots | U144: 1 | V144: 23 | W144: 23 tours 1plot | X144: 6 | Y144: 19 | Z144: 19 tours 6 plots | AA144: 3 | AB144: 17 | AC144: 17 tours 3 plots | AD144: 4 | AE144: 15 | AF144: 15 tours 4 plots | AG144: 9 | AH144: 13 | AI144: 13 tours 9 plots | AJ144: 7 | AK144: 12 | AL144: 12 tours 7 plots | AM144: 7 | AN144: 11 | AO144: 11 tours 7 plots | AP144: 9 | AQ144: 10 | AR144: 10 tours 9 plots | AS144: 13 | AT144: 9 | AU144: 9 tours 13 plots | AV144: 4 | AW144: 9 | AX144: 9 tours 4 plots | AY144: 11 | AZ144: 8 | BA144: 8 tours 11 plots | BB144: 3 | BC144: 8 | BD144: 8 tours 3 plots | BE144: 13 | BF144: 7 | BG144: 7 tours 13 plots | BH144: 6 | BI144: 7 | BJ144: 7 tours 6 plots | BK144: 19 | BL144: 6 | BM144: 6 tours 19 plots | BP144: 932 | BQ144: 15 | BR144: 32
A145: 3360 | B145: 937.2853046 | C145: 4.663685723 | D145: 00:15:37.285 | E145: 16.7892686 | F145: 14 tours | G145: 3360 | I145: 71 | J145: aller-retours | K145: 71 aller-retours | L145: 2 | M145: 46 | N145: 46 tours 2 plots | O145: 0 | P145: 35 | Q145: 35 tours | R145: 0 | S145: 28 | T145: 28 tours | U145: 2 | V145: 23 | W145: 23 tours 2 plots | X145: 0 | Y145: 20 | Z145: 20 tours | AA145: 4 | AB145: 17 | AC145: 17 tours 4 plots | AD145: 5 | AE145: 15 | AF145: 15 tours 5 plots | AG145: 0 | AH145: 14 | AI145: 14 tours | AJ145: 8 | AK145: 12 | AL145: 12 tours 8 plots | AM145: 8 | AN145: 11 | AO145: =IF(AN145=0,"",IF(AND(AM145=0,AN145=1),AN145&" "&"tour",IF(AND(AM145=0,AN145>1),AN145&" "&"tours",IF(AND(AN145>1,AM145=1),AN145&" "&"tours"&" "&AM145&" "&"plot",IF(AND(AN145=1,AM145=1),AN145&" "&"tour"&" "&AM145&" "&"plot",IF(AND(AN145=1,AM145>0),AN145&" "&"tour"&" "&AM145&" "&"plots",IF(AND(AN145>1,AM145>1),AN145&" "&"tours"&" "&AM145&" "&"plots"))))))) -> 11 tours 8 plots | AP145: 10 | AQ145: 10 | AR145: 10 tours 10 plots | AS145: 0 | AT145: 10 | AU145: 10 tours | AV145: 5 | AW145: 9 | AX145: 9 tours 5 plots | AY145: 12 | AZ145: 8 | BA145: 8 tours 12 plots | BB145: 4 | BC145: 8 | BD145: 8 tours 4 plots | BE145: 14 | BF145: 7 | BG145: 7 tours 14 plots | BH145: 7 | BI145: 7 | BJ145: 7 tours 7 plots | BK145: 0 | BL145: 7 | BM145: 7 tours | BP145: 937 | BQ145: 15 | BR145: 37
A146: 3384 | B146: 942.4183543 | C146: 4.675582939 | D146: 00:15:42.418 | E146: 16.83209858 | F146: 14 tours 1plot | G146: 3384 | J146: 1 plot | K146: 71 aller-retours 1 plot | L146: 0 | M146: 47 | N146: 47 tours | O146: 1 | P146: 35 | Q146: 35 tours 1plot | R146: 1 | S146: 28 | T146: 28 tours 1plot | U146: 3 | V146: 23 | W146: 23 tours 3 plots | X146: 1 | Y146: 20 | Z146: 20 tours 1plot | AA146: 5 | AB146: 17 | AC146: 17 tours 5 plots | AD146: 6 | AE146: 15 | AF146: 15 tours 6 plots | AG146: 1 | AH146: 14 | AI146: 14 tours 1plot | AJ146: 9 | AK146: 12 | AL146: 12 tours 9 plots | AM146: 9 | AN146: 11 | AO146: 11 tours 9 plots | AP146: 11 | AQ146: 10 | AR146: =IF(AQ146=0,"",IF(AND(AP146=0,AQ146=1),AQ146&" "&"tour",IF(AND(AP146=0,AQ146>1),AQ146&" "&"tours",IF(AND(AQ146>1,AP146=1),AQ146&" "&"tours"&" "&AP146&" "&"plot",IF(AND(AQ146=1,AP146=1),AQ146&" "&"tour"&" "&AP146&" "&"plot",IF(AND(AQ146=1,AP146>0),AQ146&" "&"tour"&" "&AP146&" "&"plots",IF(AND(AQ146>1,AP146>1),AQ146&" "&"tours"&" "&AP146&" "&"plots"))))))) -> 10 tours 11 plots | AS146: 1 | AT146: 10 | AU146: 10 tours 1 plot | AV146: 6 | AW146: 9 | AX146: 9 tours 6 plots | AY146: 13 | AZ146: 8 | BA146: 8 tours 13 plots | BB146: 5 | BC146: 8 | BD146: 8 tours 5 plots | BE146: 15 | BF146: 7 | BG146: 7 tours 15 plots | BH146: 8 | BI146: 7 | BJ146: 7 tours 8 plots | BK146: 1 | BL146: 7 | BM146: 7 tours 1 plot | BP146: =ROUND(B146,0) -> 942 | BQ146: 15 | BR146: 42
A147: 3408 | B147: 947.538409 | C147: 4.687449958 | D147: 00:15:47.538 | E147: 16.87481985 | F147: 14 tours 2 plots | G147: 3408 | I147: 72 | J147: aller-retours | K147: 72 aller-retours | L147: 1 | M147: 47 | N147: 47 tours 1plot | O147: 2 | P147: 35 | Q147: 35 tours 2 plots | R147: 2 | S147: 28 | T147: 28 tours 2 plots | U147: 4 | V147: 23 | W147: 23 tours 4 plots | X147: 2 | Y147: 20 | Z147: 20 tours 2 plots | AA147: 6 | AB147: 17 | AC147: 17 tours 6 plots | AD147: 7 | AE147: 15 | AF147: 15 tours 7 plots | AG147: 2 | AH147: 14 | AI147: 14 tours 2 plots | AJ147: 10 | AK147: 12 | AL147: 12 tours 10 plots | AM147: 10 | AN147: 11 | AO147: 11 tours 10 plots | AP147: 12 | AQ147: 10 | AR147: 10 tours 12 plots | AS147: 2 | AT147: 10 | AU147: =IF(AT147=0,"",IF(AND(AS147=0,AT147=1),AT147&" "&"tour",IF(AND(AS147=0,AT147>1),AT147&" "&"tours",IF(AND(AT147>1,AS147=1),AT147&" "&"tours"&" "&AS147&" "&"plot",IF(AND(AT147=1,AS147=1),AT147&" "&"tour"&" "&AS147&" "&"plot",IF(AND(AT147=1,AS147>0),AT147&" "&"tour"&" "&AS147&" "&"plots",IF(AND(AT147>1,AS147>1),AT147&" "&"tours"&" "&AS147&" "&"plots"))))))) -> 10 tours 2 plots | AV147: 7 | AW147: 9 | AX147: 9 tours 7 plots | AY147: 14 | AZ147: 8 | BA147: 8 tours 14 plots | BB147: 6 | BC147: 8 | BD147: 8 tours 6 plots | BE147: 16 | BF147: 7 | BG147: 7 tours 16 plots | BH147: 9 | BI147: 7 | BJ147: 7 tours 9 plots | BK147: 2 | BL147: 7 | BM147: 7 tours 2 plots | BP147: =ROUND(B147,0) -> 948 | BQ147: 15 | BR147: 48
A148: 3432 | B148: 952.6455667 | C148: 4.699287009 | D148: 00:15:52.646 | E148: 16.91743323 | F148: 14 tours 3 plots | G148: 3432 | J148: 1 plot | K148: 72 aller-retours 1 plot | L148: 2 | M148: 47 | N148: 47 tours 2 plots | O148: 3 | P148: 35 | Q148: 35 tours 3 plots | R148: 3 | S148: 28 | T148: 28 tours 3 plots | U148: 5 | V148: 23 | W148: 23 tours 5 plots | X148: 3 | Y148: 20 | Z148: 20 tours 3 plots | AA148: 7 | AB148: 17 | AC148: 17 tours 7 plots | AD148: 8 | AE148: 15 | AF148: 15 tours 8 plots | AG148: 3 | AH148: 14 | AI148: 14 tours 3 plots | AJ148: 0 | AK148: 13 | AL148: 13 tours | AM148: 11 | AN148: 11 | AO148: 11 tours 11 plots | AP148: 0 | AQ148: 11 | AR148: 11 tours | AS148: 3 | AT148: 10 | AU148: 10 tours 3 plots | AV148: 8 | AW148: 9 | AX148: =IF(AW148=0,"",IF(AND(AV148=0,AW148=1),AW148&" "&"tour",IF(AND(AV148=0,AW148>1),AW148&" "&"tours",IF(AND(AW148>1,AV148=1),AW148&" "&"tours"&" "&AV148&" "&"plot",IF(AND(AW148=1,AV148=1),AW148&" "&"tour"&" "&AV148&" "&"plot",IF(AND(AW148=1,AV148>0),AW148&" "&"tour"&" "&AV148&" "&"plots",IF(AND(AW148>1,AV148>1),AW148&" "&"tours"&" "&AV148&" "&"plots"))))))) -> 9 tours 8 plots | AY148: 15 | AZ148: 8 | BA148: 8 tours 15 plots | BB148: 7 | BC148: 8 | BD148: 8 tours 7 plots | BE148: 17 | BF148: 7 | BG148: 7 tours 17 plots | BH148: 10 | BI148: 7 | BJ148: 7 tours 10 plots | BK148: 3 | BL148: 7 | BM148: 7 tours 3 plots | BP148: =ROUND(B148,0) -> 953 | BQ148: 15 | BR148: 53
A149: 3456 | B149: 957.7399245 | C149: 4.711094319 | D149: 00:15:57.740 | E149: 16.95993955 | F149: 14 tours 4 plots | G149: 3456 | I149: 73 | J149: aller-retours | K149: 73 aller-retours | L149: 0 | M149: 48 | N149: 48 tours | O149: 0 | P149: 36 | Q149: 36 tours | R149: 4 | S149: 28 | T149: 28 tours 4 plots | U149: 0 | V149: 24 | W149: 24 tours | X149: 4 | Y149: 20 | Z149: 20 tours 4 plots | AA149: 0 | AB149: 18 | AC149: 18 tours | AD149: 0 | AE149: 16 | AF149: 16 tours | AG149: 4 | AH149: 14 | AI149: 14 tours 4 plots | AJ149: 1 | AK149: 13 | AL149: 13 tours 1 plot | AM149: 0 | AN149: 12 | AO149: 12 tours | AP149: 1 | AQ149: 11 | AR149: 11 tours 1 plot | AS149: 4 | AT149: 10 | AU149: 10 tours 4 plots | AV149: 9 | AW149: 9 | AX149: 9 tours 9 plots | AY149: 0 | AZ149: 9 | BA149: =IF(AZ149=0,"",IF(AND(AY149=0,AZ149=1),AZ149&" "&"tour",IF(AND(AY149=0,AZ149>1),AZ149&" "&"tours",IF(AND(AZ149>1,AY149=1),AZ149&" "&"tours"&" "&AY149&" "&"plot",IF(AND(AZ149=1,AY149=1),AZ149&" "&"tour"&" "&AY149&" "&"plot",IF(AND(AZ149=1,AY149>0),AZ149&" "&"tour"&" "&AY149&" "&"plots",IF(AND(AZ149>1,AY149>1),AZ149&" "&"tours"&" "&AY149&" "&"plots"))))))) -> 9 tours | BB149: 8 | BC149: 8 | BD149: 8 tours 8 plots | BE149: 0 | BF149: 8 | BG149: 8 tours | BH149: 11 | BI149: 7 | BJ149: 7 tours 11 plots | BK149: 4 | BL149: 7 | BM149: 7 tours 4 plots | BP149: 958 | BQ149: 15 | BR149: 58
A150: 3480 | B150: 962.8215781 | C150: 4.72287211 | D150: 00:16:02.822 | E150: 17.00233959 | F150: 14 tours 5 plots | G150: 3480 | J150: 1 plot | K150: 73 aller-retours 1 plot | L150: 1 | M150: 48 | N150: 48 tours 1plot | O150: 1 | P150: 36 | Q150: 36 tours 1plot | R150: 0 | S150: 29 | T150: 29 tours | U150: 1 | V150: 24 | W150: 24 tours 1plot | X150: 5 | Y150: 20 | Z150: 20 tours 5 plots | AA150: 1 | AB150: 18 | AC150: 18 tours 1plot | AD150: 1 | AE150: 16 | AF150: 16 tours 1plot | AG150: 5 | AH150: 14 | AI150: 14 tours 5 plots | AJ150: 2 | AK150: 13 | AL150: 13 tours 2 plots | AM150: 1 | AN150: 12 | AO150: 12 tours 1 plot | AP150: 2 | AQ150: 11 | AR150: 11 tours 2 plots | AS150: 5 | AT150: 10 | AU150: 10 tours 5 plots | AV150: 10 | AW150: 9 | AX150: 9 tours 10 plots | AY150: 1 | AZ150: 9 | BA150: 9 tours 1 plot | BB150: 9 | BC150: 8 | BD150: =IF(BC150=0,"",IF(AND(BB150=0,BC150=1),BC150&" "&"tour",IF(AND(BB150=0,BC150>1),BC150&" "&"tours",IF(AND(BC150>1,BB150=1),BC150&" "&"tours"&" "&BB150&" "&"plot",IF(AND(BC150=1,BB150=1),BC150&" "&"tour"&" "&BB150&" "&"plot",IF(AND(BC150=1,BB150>0),BC150&" "&"tour"&" "&BB150&" "&"plots",IF(AND(BC150>1,BB150>1),BC150&" "&"tours"&" "&BB150&" "&"plots"))))))) -> 8 tours 9 plots | BE150: 1 | BF150: 8 | BG150: 8 tours 1 plot | BH150: 12 | BI150: 7 | BJ150: 7 tours 12 plots | BK150: 5 | BL150: 7 | BM150: 7 tours 5 plots | BP150: 963 | BQ150: 16 | BR150: 3
A151: 3504 | B151: 967.8906221 | C151: 4.734620602 | D151: 00:16:07.891 | E151: 17.04463417 | F151: 14 tours 6 plots | G151: 3504 | I151: 74 | J151: aller-retours | K151: 74 aller-retours | L151: 2 | M151: 48 | N151: 48 tours 2 plots | O151: 2 | P151: 36 | Q151: 36 tours 2 plots | R151: 1 | S151: 29 | T151: 29 tours 1plot | U151: 2 | V151: 24 | W151: 24 tours 2 plots | X151: 6 | Y151: 20 | Z151: 20 tours 6 plots | AA151: 2 | AB151: 18 | AC151: 18 tours 2 plots | AD151: 2 | AE151: 16 | AF151: 16 tours 2 plots | AG151: 6 | AH151: 14 | AI151: 14 tours 6 plots | AJ151: 3 | AK151: 13 | AL151: 13 tours 3 plots | AM151: 2 | AN151: 12 | AO151: 12 tours 2 plots | AP151: 3 | AQ151: 11 | AR151: 11 tours 3 plots | AS151: 6 | AT151: 10 | AU151: 10 tours 6 plots | AV151: 11 | AW151: 9 | AX151: 9 tours 11 plots | AY151: 2 | AZ151: 9 | BA151: 9 tours 2 plots | BB151: 10 | BC151: 8 | BD151: 8 tours 10 plots | BE151: 2 | BF151: 8 | BG151: =IF(BF151=0,"",IF(AND(BE151=0,BF151=1),BF151&" "&"tour",IF(AND(BE151=0,BF151>1),BF151&" "&"tours",IF(AND(BF151>1,BE151=1),BF151&" "&"tours"&" "&BE151&" "&"plot",IF(AND(BF151=1,BE151=1),BF151&" "&"tour"&" "&BE151&" "&"plot",IF(AND(BF151=1,BE151>0),BF151&" "&"tour"&" "&BE151&" "&"plots",IF(AND(BF151>1,BE151>1),BF151&" "&"tours"&" "&BE151&" "&"plots"))))))) -> 8 tours 2 plots | BH151: 13 | BI151: 7 | BJ151: 7 tours 13 plots | BK151: 6 | BL151: 7 | BM151: 7 tours 6 plots | BP151: 968 | BQ151: 16 | BR151: 8
A152: 3528 | B152: 972.9471498 | C152: 4.746340014 | D152: 00:16:12.947 | E152: 17.08682405 | F152: 14 tours 7 plots | G152: 3528 | J152: 1 plot | K152: 74 aller-retours 1 plot | L152: 0 | M152: 49 | N152: 49 tours | O152: 3 | P152: 36 | Q152: 36 tours 3 plots | R152: 2 | S152: 29 | T152: 29 tours 2 plots | U152: 3 | V152: 24 | W152: 24 tours 3 plots | X152: 0 | Y152: 21 | Z152: 21 tours | AA152: 3 | AB152: 18 | AC152: 18 tours 3 plots | AD152: 3 | AE152: 16 | AF152: 16 tours 3 plots | AG152: 7 | AH152: 14 | AI152: 14 tours 7 plots | AJ152: 4 | AK152: 13 | AL152: 13 tours 4 plots | AM152: 3 | AN152: 12 | AO152: 12 tours 3 plots | AP152: 4 | AQ152: 11 | AR152: 11 tours 4 plots | AS152: 7 | AT152: 10 | AU152: 10 tours 7 plots | AV152: 12 | AW152: 9 | AX152: 9 tours 12 plots | AY152: 3 | AZ152: 9 | BA152: 9 tours 3 plots | BB152: 11 | BC152: 8 | BD152: 8 tours 11 plots | BE152: 3 | BF152: 8 | BG152: 8 tours 3 plots | BH152: 14 | BI152: 7 | BJ152: =IF(BI152=0,"",IF(AND(BH152=0,BI152=1),BI152&" "&"tour",IF(AND(BH152=0,BI152>1),BI152&" "&"tours",IF(AND(BI152>1,BH152=1),BI152&" "&"tours"&" "&BH152&" "&"plot",IF(AND(BI152=1,BH152=1),BI152&" "&"tour"&" "&BH152&" "&"plot",IF(AND(BI152=1,BH152>0),BI152&" "&"tour"&" "&BH152&" "&"plots",IF(AND(BI152>1,BH152>1),BI152&" "&"tours"&" "&BH152&" "&"plots"))))))) -> 7 tours 14 plots | BK152: 7 | BL152: 7 | BM152: 7 tours 7 plots | BP152: 973 | BQ152: 16 | BR152: 13
A153: 3552 | B153: 977.9912536 | C153: 4.75803056 | D153: 00:16:17.991 | E153: 17.12891001 | F153: 14 tours 8 plots | G153: 3552 | I153: 75 | J153: aller-retours | K153: 75 aller-retours | L153: 1 | M153: 49 | N153: 49 tours 1plot | O153: 0 | P153: 37 | Q153: 37 tours | R153: 3 | S153: 29 | T153: 29 tours 3 plots | U153: 4 | V153: 24 | W153: 24 tours 4 plots | X153: 1 | Y153: 21 | Z153: 21 tours 1plot | AA153: 4 | AB153: 18 | AC153: 18 tours 4 plots | AD153: 4 | AE153: 16 | AF153: 16 tours 4 plots | AG153: 8 | AH153: 14 | AI153: 14 tours 8 plots | AJ153: 5 | AK153: 13 | AL153: 13 tours 5 plots | AM153: 4 | AN153: 12 | AO153: 12 tours 4 plots | AP153: 5 | AQ153: 11 | AR153: 11 tours 5 plots | AS153: 8 | AT153: 10 | AU153: 10 tours 8 plots | AV153: 13 | AW153: 9 | AX153: 9 tours 13 plots | AY153: 4 | AZ153: 9 | BA153: 9 tours 4 plots | BB153: 12 | BC153: 8 | BD153: 8 tours 12 plots | BE153: 4 | BF153: 8 | BG153: 8 tours 4 plots | BH153: 15 | BI153: 7 | BJ153: 7 tours 15 plots | BK153: 8 | BL153: 7 | BM153: =IF(BL153=0,"",IF(AND(BK153=0,BL153=1),BL153&" "&"tour",IF(AND(BK153=0,BL153>1),BL153&" "&"tours",IF(AND(BL153>1,BK153=1),BL153&" "&"tours"&" "&BK153&" "&"plot",IF(AND(BL153=1,BK153=1),BL153&" "&"tour"&" "&BK153&" "&"plot",IF(AND(BL153=1,BK153>0),BL153&" "&"tour"&" "&BK153&" "&"plots",IF(AND(BL153>1,BK153>1),BL153&" "&"tours"&" "&BK153&" "&"plots"))))))) -> 7 tours 8 plots | BP153: 978 | BQ153: 16 | BR153: 18
A154: 3576 | B154: 983.0230246 | C154: 4.769692452 | D154: 00:16:23.023 | E154: 17.17089283 | F154: 14 tours 9 plots | G154: 3576 | J154: 1 plot | K154: 75 aller-retours 1 plot | L154: 2 | M154: 49 | N154: 49 tours 2 plots | O154: 1 | P154: 37 | Q154: 37 tours 1plot | R154: 4 | S154: 29 | T154: 29 tours 4 plots | U154: 5 | V154: 24 | W154: 24 tours 5 plots | X154: 2 | Y154: 21 | Z154: 21 tours 2 plots | AA154: 5 | AB154: 18 | AC154: 18 tours 5 plots | AD154: 5 | AE154: 16 | AF154: 16 tours 5 plots | AG154: 9 | AH154: 14 | AI154: 14 tours 9 plots | AJ154: 6 | AK154: 13 | AL154: 13 tours 6 plots | AM154: 5 | AN154: 12 | AO154: 12 tours 5 plots | AP154: 6 | AQ154: 11 | AR154: 11 tours 6 plots | AS154: 9 | AT154: 10 | AU154: 10 tours 9 plots | AV154: 14 | AW154: 9 | AX154: 9 tours 14 plots | AY154: 5 | AZ154: 9 | BA154: 9 tours 5 plots | BB154: 13 | BC154: 8 | BD154: 8 tours 13 plots | BE154: 5 | BF154: 8 | BG154: 8 tours 5 plots | BH154: 16 | BI154: 7 | BJ154: 7 tours 16 plots | BK154: 9 | BL154: 7 | BM154: 7 tours 9 plots | BP154: 983 | BQ154: 16 | BR154: 23
A155: 3600 | B155: 988.0425528 | C155: 4.7813259 | D155: 00:16:28.043 | E155: 17.21277324 | F155: 15 tours | G155: 3600 | I155: 76 | J155: aller-retours | K155: 76 aller-retours | L155: 0 | M155: 50 | N155: 50 tours | O155: 2 | P155: 37 | Q155: 37 tours 2 plots | R155: 0 | S155: 30 | T155: 30 tours | U155: 0 | V155: 25 | W155: 25 tours | X155: 3 | Y155: 21 | Z155: 21 tours 3 plots | AA155: 6 | AB155: 18 | AC155: 18 tours 6 plots | AD155: 6 | AE155: 16 | AF155: 16 tours 6 plots | AG155: 0 | AH155: 15 | AI155: 15 tours | AJ155: 7 | AK155: 13 | AL155: 13 tours 7 plots | AM155: 6 | AN155: 12 | AO155: 12 tours 6 plots | AP155: 7 | AQ155: 11 | AR155: 11 tours 7 plots | AS155: 10 | AT155: 10 | AU155: 10 tours 10 plots | AV155: 0 | AW155: 10 | AX155: 10 tours | AY155: 6 | AZ155: 9 | BA155: 9 tours 6 plots | BB155: 14 | BC155: 8 | BD155: 8 tours 14 plots | BE155: 6 | BF155: 8 | BG155: 8 tours 6 plots | BH155: 17 | BI155: 7 | BJ155: 7 tours 17 plots | BK155: 10 | BL155: 7 | BM155: 7 tours 10 plots | BP155: 988 | BQ155: 16 | BR155: 28
A156: 3624 | B156: 993.049927 | C156: 4.792931111 | D156: 00:16:33.050 | E156: 17.254552 | F156: 15 tours 1plot | G156: 3624 | J156: 1 plot | K156: 76 aller-retours 1 plot | L156: 1 | M156: 50 | N156: 50 tours 1plot | O156: 3 | P156: 37 | Q156: 37 tours 3 plots | R156: 1 | S156: 30 | T156: 30 tours 1plot | U156: 1 | V156: 25 | W156: 25 tours 1plot | X156: 4 | Y156: 21 | Z156: 21 tours 4 plots | AA156: 7 | AB156: 18 | AC156: 18 tours 7 plots | AD156: 7 | AE156: 16 | AF156: 16 tours 7 plots | AG156: 1 | AH156: 15 | AI156: 15 tours 1plot | AJ156: 8 | AK156: 13 | AL156: 13 tours 8 plots | AM156: 7 | AN156: 12 | AO156: 12 tours 7 plots | AP156: 8 | AQ156: 11 | AR156: 11 tours 8 plots | AS156: 11 | AT156: 10 | AU156: 10 tours 11 plots | AV156: 1 | AW156: 10 | AX156: 10 tours 1 plot | AY156: 7 | AZ156: 9 | BA156: 9 tours 7 plots | BB156: 15 | BC156: 8 | BD156: 8 tours 15 plots | BE156: 7 | BF156: 8 | BG156: 8 tours 7 plots | BH156: 18 | BI156: 7 | BJ156: 7 tours 18 plots | BK156: 11 | BL156: 7 | BM156: 7 tours 11 plots | BP156: 993 | BQ156: 16 | BR156: 33
A157: 3648 | B157: 998.0452353 | C157: 4.80450829 | D157: 00:16:38.045 | E157: 17.29622984 | F157: 15 tours 2 plots | G157: 3648 | I157: 78 | J157: aller-retours | K157: 78 aller-retours | L157: 2 | M157: 50 | N157: 50 tours 2 plots | O157: 0 | P157: 38 | Q157: 38 tours | R157: 2 | S157: 30 | T157: 30 tours 2 plots | U157: 2 | V157: 25 | W157: 25 tours 2 plots | X157: 5 | Y157: 21 | Z157: 21 tours 5 plots | AA157: 0 | AB157: 19 | AC157: 19 tours | AD157: 8 | AE157: 16 | AF157: 16 tours 8 plots | AG157: 2 | AH157: 15 | AI157: 15 tours 2 plots | AJ157: 9 | AK157: 13 | AL157: 13 tours 9 plots | AM157: 8 | AN157: 12 | AO157: 12 tours 8 plots | AP157: 9 | AQ157: 11 | AR157: 11 tours 9 plots | AS157: 12 | AT157: 10 | AU157: 10 tours 12 plots | AV157: 2 | AW157: 10 | AX157: 10 tours 2 plots | AY157: 8 | AZ157: 9 | BA157: 9 tours 8 plots | BB157: 16 | BC157: 8 | BD157: 8 tours 16 plots | BE157: 8 | BF157: 8 | BG157: 8 tours 8 plots | BH157: 0 | BI157: 8 | BJ157: 8 tours | BK157: 12 | BL157: 7 | BM157: 7 tours 12 plots | BP157: 998 | BQ157: 16 | BR157: 38
A158: 3672 | B158: 1003.028564 | C158: 4.816057639 | D158: 00:16:43.029 | E158: 17.3378075 | F158: 15 tours 3 plots | G158: 3672 | J158: 1 plot | K158: 78 aller-retours 1 plot | L158: 0 | M158: 51 | N158: 51 tours | O158: 1 | P158: 38 | Q158: 38 tours 1plot | R158: 3 | S158: 30 | T158: 30 tours 3 plots | U158: 3 | V158: 25 | W158: 25 tours 3 plots | X158: 6 | Y158: 21 | Z158: 21 tours 6 plots | AA158: 1 | AB158: 19 | AC158: 19 tours 1plot | AD158: 0 | AE158: 17 | AF158: 17 tours | AG158: 3 | AH158: 15 | AI158: 15 tours 3 plots | AJ158: 10 | AK158: 13 | AL158: 13 tours 10 plots | AM158: 9 | AN158: 12 | AO158: 12 tours 9 plots | AP158: 10 | AQ158: 11 | AR158: 11 tours 10 plots | AS158: 13 | AT158: 10 | AU158: 10 tours 13 plots | AV158: 3 | AW158: 10 | AX158: 10 tours 3 plots | AY158: 9 | AZ158: 9 | BA158: 9 tours 9 plots | BB158: 0 | BC158: 9 | BD158: 9 tours | BE158: 9 | BF158: 8 | BG158: 8 tours 9 plots | BH158: 1 | BI158: 8 | BJ158: 8 tours 1 plot | BK158: 13 | BL158: 7 | BM158: 7 tours 13 plots | BP158: 1003 | BQ158: 16 | BR158: 43
A159: 3696 | B159: 1008 | C159: 4.827579357 | D159: 00:16:48 | E159: 17.37928568 | F159: 15 tours 4 plots | G159: 3696 | I159: 79 | J159: aller-retours | K159: 79 aller-retours | L159: 1 | M159: 51 | N159: 51 tours 1plot | O159: 2 | P159: 38 | Q159: 38 tours 2 plots | R159: 4 | S159: 30 | T159: 30 tours 4 plots | U159: 4 | V159: 25 | W159: 25 tours 4 plots | X159: 0 | Y159: 22 | Z159: 22 tours | AA159: 2 | AB159: 19 | AC159: 19 tours 2 plots | AD159: 1 | AE159: 17 | AF159: 17 tours 1plot | AG159: 4 | AH159: 15 | AI159: 15 tours 4 plots | AJ159: 0 | AK159: 14 | AL159: 14 tours | AM159: 10 | AN159: 12 | AO159: 12 tours 10 plots | AP159: 11 | AQ159: 11 | AR159: 11 tours 11 plots | AS159: 0 | AT159: 11 | AU159: 11 tours | AV159: 4 | AW159: 10 | AX159: 10 tours 4 plots | AY159: 10 | AZ159: 9 | BA159: 9 tours 10 plots | BB159: 1 | BC159: 9 | BD159: 9 tours 1 plot | BE159: 10 | BF159: 8 | BG159: 8 tours 10 plots | BH159: 2 | BI159: 8 | BJ159: 8 tours 2 plots | BK159: 14 | BL159: 7 | BM159: 7 tours 14 plots | BP159: 1008 | BQ159: 16 | BR159: 48
A160: 3720 | B160: 1012.959627 | C160: 4.839073642 | D160: 00:16:52.960 | E160: 17.42066511 | F160: 15 tours 5 plots | G160: 3720 | J160: 1 plot | K160: 79 aller-retours 1 plot | L160: 2 | M160: 51 | N160: 51 tours 2 plots | O160: 3 | P160: 38 | Q160: 38 tours 3 plots | R160: 0 | S160: 31 | T160: 31 tours | U160: 5 | V160: 25 | W160: 25 tours 5 plots | X160: 1 | Y160: 22 | Z160: 22 tours 1plot | AA160: 3 | AB160: 19 | AC160: 19 tours 3 plots | AD160: 2 | AE160: 17 | AF160: 17 tours 2 plots | AG160: 5 | AH160: 15 | AI160: 15 tours 5 plots | AJ160: 1 | AK160: 14 | AL160: 14 tours 1 plot | AM160: 11 | AN160: 12 | AO160: 12 tours 11 plots | AP160: 12 | AQ160: 11 | AR160: 11 tours 12 plots | AS160: 1 | AT160: 11 | AU160: 11 tours 1 plot | AV160: 5 | AW160: 10 | AX160: 10 tours 5 plots | AY160: 11 | AZ160: 9 | BA160: 9 tours 11 plots | BB160: 2 | BC160: 9 | BD160: 9 tours 2 plots | BE160: 11 | BF160: 8 | BG160: 8 tours 11 plots | BH160: 3 | BI160: 8 | BJ160: 8 tours 3 plots | BK160: 15 | BL160: 7 | BM160: 7 tours 15 plots | BP160: 1013 | BQ160: 16 | BR160: 53
A161: 3744 | B161: 1017.907529 | C161: 4.85054069 | D161: 00:16:57.908 | E161: 17.46194648 | F161: 15 tours 6 plots | G161: 3744 | I161: 80 | J161: aller-retours | K161: 80 aller-retours | L161: 0 | M161: 52 | N161: 52 tours | O161: 0 | P161: 39 | Q161: 39 tours | R161: 1 | S161: 31 | T161: 31 tours 1plot | U161: 0 | V161: 26 | W161: 26 tours | X161: 2 | Y161: 22 | Z161: 22 tours 2 plots | AA161: 4 | AB161: 19 | AC161: 19 tours 4 plots | AD161: 3 | AE161: 17 | AF161: 17 tours 3 plots | AG161: 6 | AH161: 15 | AI161: 15 tours 6 plots | AJ161: 2 | AK161: 14 | AL161: 14 tours 2 plots | AM161: 0 | AN161: 13 | AO161: 13 tours | AP161: 0 | AQ161: 12 | AR161: 12 tours | AS161: 2 | AT161: 11 | AU161: 11 tours 2 plots | AV161: 6 | AW161: 10 | AX161: 10 tours 6 plots | AY161: 12 | AZ161: 9 | BA161: 9 tours 12 plots | BB161: 3 | BC161: 9 | BD161: 9 tours 3 plots | BE161: 12 | BF161: 8 | BG161: 8 tours 12 plots | BH161: 4 | BI161: 8 | BJ161: 8 tours 4 plots | BK161: 16 | BL161: 7 | BM161: 7 tours 16 plots | BP161: 1018 | BQ161: 16 | BR161: 58
A162: 3768 | B162: 1022.843789 | C162: 4.861980692 | D162: 00:17:02.844 | E162: 17.50313049 | F162: 15 tours 7 plots | G162: 3768 | J162: 1 plot | K162: 80 aller-retours 1 plot | L162: 1 | M162: 52 | N162: 52 tours 1plot | O162: 1 | P162: 39 | Q162: 39 tours 1plot | R162: 2 | S162: 31 | T162: 31 tours 2 plots | U162: 1 | V162: 26 | W162: 26 tours 1plot | X162: 3 | Y162: 22 | Z162: 22 tours 3 plots | AA162: 5 | AB162: 19 | AC162: 19 tours 5 plots | AD162: 4 | AE162: 17 | AF162: 17 tours 4 plots | AG162: 7 | AH162: 15 | AI162: 15 tours 7 plots | AJ162: 3 | AK162: 14 | AL162: 14 tours 3 plots | AM162: 1 | AN162: 13 | AO162: 13 tours 1 plot | AP162: 1 | AQ162: 12 | AR162: 12 tours 1 plot | AS162: 3 | AT162: 11 | AU162: 11 tours 3 plots | AV162: 7 | AW162: 10 | AX162: 10 tours 7 plots | AY162: 13 | AZ162: 9 | BA162: 9 tours 13 plots | BB162: 4 | BC162: 9 | BD162: 9 tours 4 plots | BE162: 13 | BF162: 8 | BG162: 8 tours 13 plots | BH162: 5 | BI162: 8 | BJ162: 8 tours 5 plots | BK162: 17 | BL162: 7 | BM162: 7 tours 17 plots | BP162: 1023 | BQ162: 17 | BR162: 3
A163: 3792 | B163: 1027.768488 | C163: 4.873393839 | D163: 00:17:07.768 | E163: 17.54421782 | F163: 15 tours 8 plots | G163: 3792 | I163: 81 | J163: aller-retours | K163: 81 aller-retours | L163: 2 | M163: 52 | N163: 52 tours 2 plots | O163: 2 | P163: 39 | Q163: 39 tours 2 plots | R163: 3 | S163: 31 | T163: 31 tours 3 plots | U163: 2 | V163: 26 | W163: 26 tours 2 plots | X163: 4 | Y163: 22 | Z163: 22 tours 4 plots | AA163: 6 | AB163: 19 | AC163: 19 tours 6 plots | AD163: 5 | AE163: 17 | AF163: 17 tours 5 plots | AG163: 8 | AH163: 15 | AI163: 15 tours 8 plots | AJ163: 4 | AK163: 14 | AL163: 14 tours 4 plots | AM163: 2 | AN163: 13 | AO163: 13 tours 2 plots | AP163: 2 | AQ163: 12 | AR163: 12 tours 2 plots | AS163: 4 | AT163: 11 | AU163: 11 tours 4 plots | AV163: 8 | AW163: 10 | AX163: 10 tours 8 plots | AY163: 14 | AZ163: 9 | BA163: 9 tours 14 plots | BB163: 5 | BC163: 9 | BD163: 9 tours 5 plots | BE163: 14 | BF163: 8 | BG163: 8 tours 14 plots | BH163: 6 | BI163: 8 | BJ163: 8 tours 6 plots | BK163: 18 | BL163: 7 | BM163: 7 tours 18 plots | BP163: 1028 | BQ163: 17 | BR163: 8
A164: 3816 | B164: 1032.681708 | C164: 4.88478032 | D164: 00:17:12.682 | E164: 17.58520915 | F164: 15 tours 9 plots | G164: 3816 | J164: 1 plot | K164: 81 aller-retours 1 plot | L164: 0 | M164: 53 | N164: 53 tours | O164: 3 | P164: 39 | Q164: 39 tours 3 plots | R164: 4 | S164: 31 | T164: 31 tours 4 plots | U164: 3 | V164: 26 | W164: 26 tours 3 plots | X164: 5 | Y164: 22 | Z164: 22 tours 5 plots | AA164: 7 | AB164: 19 | AC164: 19 tours 7 plots | AD164: 6 | AE164: 17 | AF164: 17 tours 6 plots | AG164: 9 | AH164: 15 | AI164: 15 tours 9 plots | AJ164: 5 | AK164: 14 | AL164: 14 tours 5 plots | AM164: 3 | AN164: 13 | AO164: 13 tours 3 plots | AP164: 3 | AQ164: 12 | AR164: 12 tours 3 plots | AS164: 5 | AT164: 11 | AU164: 11 tours 5 plots | AV164: 9 | AW164: 10 | AX164: 10 tours 9 plots | AY164: 15 | AZ164: 9 | BA164: 9 tours 15 plots | BB164: 6 | BC164: 9 | BD164: 9 tours 6 plots | BE164: 15 | BF164: 8 | BG164: 8 tours 15 plots | BH164: 7 | BI164: 8 | BJ164: 8 tours 7 plots | BK164: 19 | BL164: 7 | BM164: 7 tours 19 plots | BP164: 1033 | BQ164: 17 | BR164: 13
A165: 3840 | B165: 1037.583528 | C165: 4.89614032 | D165: 00:17:17.584 | E165: 17.62610515 | F165: 16 tours | G165: 3840 | I165: 82 | J165: aller-retours | K165: 82 aller-retours | L165: 1 | M165: 53 | N165: 53 tours 1plot | O165: 0 | P165: 40 | Q165: 40 tours | R165: 0 | S165: 32 | T165: 32 tours | U165: 4 | V165: 26 | W165: 26 tours 4 plots | X165: 6 | Y165: 22 | Z165: 22 tours 6 plots | AA165: 0 | AB165: 20 | AC165: 20 tours | AD165: 7 | AE165: 17 | AF165: 17 tours 7 plots | AG165: 0 | AH165: 16 | AI165: 16 tours | AJ165: 6 | AK165: 14 | AL165: 14 tours 6 plots | AM165: 4 | AN165: 13 | AO165: 13 tours 4 plots | AP165: 4 | AQ165: 12 | AR165: 12 tours 4 plots | AS165: 6 | AT165: 11 | AU165: 11 tours 6 plots | AV165: 10 | AW165: 10 | AX165: 10 tours 10 plots | AY165: 0 | AZ165: 10 | BA165: 10 tours | BB165: 7 | BC165: 9 | BD165: 9 tours 7 plots | BE165: 16 | BF165: 8 | BG165: 8 tours 16 plots | BH165: 8 | BI165: 8 | BJ165: 8 tours 8 plots | BK165: 0 | BL165: 8 | BM165: 8 tours | BP165: 1038 | BQ165: 17 | BR165: 18
A166: 3864 | B166: 1042.474028 | C166: 4.907474024 | D166: 00:17:22.474 | E166: 17.66690649 | F166: 16 tours 1plot | G166: 3864 | J166: 1 plot | K166: 82 aller-retours 1 plot | L166: 2 | M166: 53 | N166: 53 tours 2 plots | O166: 1 | P166: 40 | Q166: 40 tours 1plot | R166: 1 | S166: 32 | T166: 32 tours 1plot | U166: 5 | V166: 26 | W166: 26 tours 5 plots | X166: 0 | Y166: 23 | Z166: 23 tours | AA166: 1 | AB166: 20 | AC166: 20 tours 1plot | AD166: 8 | AE166: 17 | AF166: 17 tours 8 plots | AG166: 1 | AH166: 16 | AI166: 16 tours 1plot | AJ166: 7 | AK166: 14 | AL166: 14 tours 7 plots | AM166: 5 | AN166: 13 | AO166: 13 tours 5 plots | AP166: 5 | AQ166: 12 | AR166: 12 tours 5 plots | AS166: 7 | AT166: 11 | AU166: 11 tours 7 plots | AV166: 11 | AW166: 10 | AX166: 10 tours 11 plots | AY166: 1 | AZ166: 10 | BA166: 10 tours 1 plot | BB166: 8 | BC166: 9 | BD166: 9 tours 8 plots | BE166: 17 | BF166: 8 | BG166: 8 tours 17 plots | BH166: 9 | BI166: 8 | BJ166: 8 tours 9 plots | BK166: 1 | BL166: 8 | BM166: 8 tours 1 plot | BP166: 1042 | BQ166: 17 | BR166: 22
A167: 3888 | B167: 1047.353285 | C167: 4.918781613 | D167: 00:17:27.353 | E167: 17.70761381 | F167: 16 tours 2 plots | G167: 3888 | I167: 83 | J167: aller-retours | K167: 83 aller-retours | L167: 0 | M167: 54 | N167: 54 tours | O167: 2 | P167: 40 | Q167: 40 tours 2 plots | R167: 2 | S167: 32 | T167: 32 tours 2 plots | U167: 0 | V167: 27 | W167: 27 tours | X167: 1 | Y167: 23 | Z167: 23 tours 1plot | AA167: 2 | AB167: 20 | AC167: 20 tours 2 plots | AD167: 0 | AE167: 18 | AF167: 18 tours | AG167: 2 | AH167: 16 | AI167: 16 tours 2 plots | AJ167: 8 | AK167: 14 | AL167: 14 tours 8 plots | AM167: 6 | AN167: 13 | AO167: 13 tours 6 plots | AP167: 6 | AQ167: 12 | AR167: 12 tours 6 plots | AS167: 8 | AT167: 11 | AU167: 11 tours 8 plots | AV167: 12 | AW167: 10 | AX167: 10 tours 12 plots | AY167: 2 | AZ167: 10 | BA167: 10 tours 2 plots | BB167: 9 | BC167: 9 | BD167: 9 tours 9 plots | BE167: 0 | BF167: 9 | BG167: 9 tours | BH167: 10 | BI167: 8 | BJ167: 8 tours 10 plots | BK167: 2 | BL167: 8 | BM167: 8 tours 2 plots | BP167: 1047 | BQ167: 17 | BR167: 27
A168: 3912 | B168: 1052.221377 | C168: 4.930063266 | D168: 00:17:32.221 | E168: 17.74822776 | F168: 16 tours 3 plots | G168: 3912 | J168: 1 plot | K168: 83 aller-retours 1 plot | L168: 1 | M168: 54 | N168: 54 tours 1plot | O168: 3 | P168: 40 | Q168: 40 tours 3 plots | R168: 3 | S168: 32 | T168: 32 tours 3 plots | U168: 1 | V168: 27 | W168: 27 tours 1plot | X168: 2 | Y168: 23 | Z168: 23 tours 2 plots | AA168: 3 | AB168: 20 | AC168: 20 tours 3 plots | AD168: 1 | AE168: 18 | AF168: 18 tours 1plot | AG168: 3 | AH168: 16 | AI168: 16 tours 3 plots | AJ168: 9 | AK168: 14 | AL168: 14 tours 9 plots | AM168: 7 | AN168: 13 | AO168: 13 tours 7 plots | AP168: 7 | AQ168: 12 | AR168: 12 tours 7 plots | AS168: 9 | AT168: 11 | AU168: 11 tours 9 plots | AV168: 13 | AW168: 10 | AX168: 10 tours 13 plots | AY168: 3 | AZ168: 10 | BA168: 10 tours 3 plots | BB168: 10 | BC168: 9 | BD168: 9 tours 10 plots | BE168: 1 | BF168: 9 | BG168: 9 tours 1 plot | BH168: 11 | BI168: 8 | BJ168: 8 tours 11 plots | BK168: 3 | BL168: 8 | BM168: 8 tours 3 plots | BP168: 1052 | BQ168: 17 | BR168: 32
A169: 3936 | B169: 1057.078379 | C169: 4.941319162 | D169: 00:17:37.078 | E169: 17.78874898 | F169: 16 tours 4 plots | G169: 3936 | I169: 84 | J169: aller-retours | K169: 84 aller-retours | L169: 2 | M169: 54 | N169: 54 tours 2 plots | O169: 0 | P169: 41 | Q169: 41 tours | R169: 4 | S169: 32 | T169: 32 tours 4 plots | U169: 2 | V169: 27 | W169: 27 tours 2 plots | X169: 3 | Y169: 23 | Z169: 23 tours 3 plots | AA169: 4 | AB169: 20 | AC169: 20 tours 4 plots | AD169: 2 | AE169: 18 | AF169: 18 tours 2 plots | AG169: 4 | AH169: 16 | AI169: 16 tours 4 plots | AJ169: 10 | AK169: 14 | AL169: 14 tours 10 plots | AM169: 8 | AN169: 13 | AO169: 13 tours 8 plots | AP169: 8 | AQ169: 12 | AR169: 12 tours 8 plots | AS169: 10 | AT169: 11 | AU169: 11 tours 10 plots | AV169: 14 | AW169: 10 | AX169: 10 tours 14 plots | AY169: 4 | AZ169: 10 | BA169: 10 tours 4 plots | BB169: 11 | BC169: 9 | BD169: 9 tours 11 plots | BE169: 2 | BF169: 9 | BG169: 9 tours 2 plots | BH169: 12 | BI169: 8 | BJ169: 8 tours 12 plots | BK169: 4 | BL169: 8 | BM169: 8 tours 4 plots | BP169: 1057 | BQ169: 17 | BR169: 37
A170: 3960 | B170: 1061.924368 | C170: 4.952549477 | D170: 00:17:41.924 | E170: 17.82917812 | F170: 16 tours 5 plots | G170: 3960 | J170: 1 plot | K170: 84 aller-retours 1 plot | L170: 0 | M170: 55 | N170: 55 tours | O170: 1 | P170: 41 | Q170: 41 tours 1plot | R170: 0 | S170: 33 | T170: 33 tours | U170: 3 | V170: 27 | W170: 27 tours 3 plots | X170: 4 | Y170: 23 | Z170: 23 tours 4 plots | AA170: 5 | AB170: 20 | AC170: 20 tours 5 plots | AD170: 3 | AE170: 18 | AF170: 18 tours 3 plots | AG170: 5 | AH170: 16 | AI170: 16 tours 5 plots | AJ170: 0 | AK170: 15 | AL170: 15 tours | AM170: 9 | AN170: 13 | AO170: 13 tours 9 plots | AP170: 9 | AQ170: 12 | AR170: 12 tours 9 plots | AS170: 11 | AT170: 11 | AU170: 11 tours 11 plots | AV170: 0 | AW170: 11 | AX170: 11 tours | AY170: 5 | AZ170: 10 | BA170: 10 tours 5 plots | BB170: 12 | BC170: 9 | BD170: 9 tours 12 plots | BE170: 3 | BF170: 9 | BG170: 9 tours 3 plots | BH170: 13 | BI170: 8 | BJ170: 8 tours 13 plots | BK170: 5 | BL170: 8 | BM170: 8 tours 5 plots | BP170: 1062 | BQ170: 17 | BR170: 42
A171: 3984 | B171: 1066.759418 | C171: 4.963754383 | D171: 00:17:46.759 | E171: 17.86951578 | F171: 16 tours 6 plots | G171: 3984 | I171: 85 | J171: aller-retours | K171: 85 aller-retours | L171: 1 | M171: 55 | N171: 55 tours 1plot | O171: 2 | P171: 41 | Q171: 41 tours 2 plots | R171: 1 | S171: 33 | T171: 33 tours 1plot | U171: 4 | V171: 27 | W171: 27 tours 4 plots | X171: 5 | Y171: 23 | Z171: 23 tours 5 plots | AA171: 6 | AB171: 20 | AC171: 20 tours 6 plots | AD171: 4 | AE171: 18 | AF171: 18 tours 4 plots | AG171: 6 | AH171: 16 | AI171: 16 tours 6 plots | AJ171: 1 | AK171: 15 | AL171: 15 tours 1 plot | AM171: 10 | AN171: 13 | AO171: 13 tours 10 plots | AP171: 10 | AQ171: 12 | AR171: 12 tours 10 plots | AS171: 12 | AT171: 11 | AU171: 11 tours 12 plots | AV171: 1 | AW171: 11 | AX171: 11 tours 1 plot | AY171: 6 | AZ171: 10 | BA171: 10 tours 6 plots | BB171: 13 | BC171: 9 | BD171: 9 tours 13 plots | BE171: 4 | BF171: 9 | BG171: 9 tours 4 plots | BH171: 14 | BI171: 8 | BJ171: 8 tours 14 plots | BK171: 6 | BL171: 8 | BM171: 8 tours 6 plots | BP171: 1067 | BQ171: 17 | BR171: 47
A172: 4008 | B172: 1071.583603 | C172: 4.974934052 | D172: 00:17:51.584 | E172: 17.90976259 | F172: 16 tours 7 plots | G172: 4008 | J172: 1 plot | K172: 85 aller-retours 1 plot | L172: 2 | M172: 55 | N172: 55 tours 2 plots | O172: 3 | P172: 41 | Q172: 41 tours 3 plots | R172: 2 | S172: 33 | T172: 33 tours 2 plots | U172: 5 | V172: 27 | W172: 27 tours 5 plots | X172: 6 | Y172: 23 | Z172: 23 tours 6 plots | AA172: 7 | AB172: 20 | AC172: 20 tours 7 plots | AD172: 5 | AE172: 18 | AF172: 18 tours 5 plots | AG172: 7 | AH172: 16 | AI172: 16 tours 7 plots | AJ172: 2 | AK172: 15 | AL172: 15 tours 2 plots | AM172: 11 | AN172: 13 | AO172: 13 tours 11 plots | AP172: 11 | AQ172: 12 | AR172: 12 tours 11 plots | AS172: 13 | AT172: 11 | AU172: 11 tours 13 plots | AV172: 2 | AW172: 11 | AX172: 11 tours 2 plots | AY172: 7 | AZ172: 10 | BA172: 10 tours 7 plots | BB172: 14 | BC172: 9 | BD172: 9 tours 14 plots | BE172: 5 | BF172: 9 | BG172: 9 tours 5 plots | BH172: 15 | BI172: 8 | BJ172: 8 tours 15 plots | BK172: 7 | BL172: 8 | BM172: 8 tours 7 plots | BP172: 1072 | BQ172: 17 | BR172: 52
A173: 4032 | B173: 1076.396995 | C173: 4.986088655 | D173: 00:17:56.397 | E173: 17.94991916 | F173: 16 tours 8 plots | G173: 4032 | I173: 86 | J173: aller-retours | K173: 86 aller-retours | L173: 0 | M173: 56 | N173: 56 tours | O173: 0 | P173: 42 | Q173: 42 tours | R173: 3 | S173: 33 | T173: 33 tours 3 plots | U173: 0 | V173: 28 | W173: 28 tours | X173: 0 | Y173: 24 | Z173: 24 tours | AA173: 0 | AB173: 21 | AC173: 21 tours | AD173: 6 | AE173: 18 | AF173: 18 tours 6 plots | AG173: 8 | AH173: 16 | AI173: 16 tours 8 plots | AJ173: 3 | AK173: 15 | AL173: 15 tours 3 plots | AM173: 0 | AN173: 14 | AO173: 14 tours | AP173: 12 | AQ173: 12 | AR173: 12 tours 12 plots | AS173: 0 | AT173: 12 | AU173: 12 tours | AV173: 3 | AW173: 11 | AX173: 11 tours 3 plots | AY173: 8 | AZ173: 10 | BA173: 10 tours 8 plots | BB173: 15 | BC173: 9 | BD173: 9 tours 15 plots | BE173: 6 | BF173: 9 | BG173: 9 tours 6 plots | BH173: 16 | BI173: 8 | BJ173: 8 tours 16 plots | BK173: 8 | BL173: 8 | BM173: 8 tours 8 plots | BP173: 1076 | BQ173: 17 | BR173: 56
A174: 4056 | B174: 1081.199667 | C174: 4.997218359 | D174: 00:18:01.200 | E174: 17.98998609 | F174: 16 tours 9 plots | G174: 4056 | J174: 1 plot | K174: 86 aller-retours 1 plot | L174: 1 | M174: 56 | N174: 56 tours 1plot | O174: 1 | P174: 42 | Q174: 42 tours 1plot | R174: 4 | S174: 33 | T174: 33 tours 4 plots | U174: 1 | V174: 28 | W174: 28 tours 1plot | X174: 1 | Y174: 24 | Z174: 24 tours 1plot | AA174: 1 | AB174: 21 | AC174: 21 tours 1plot | AD174: 7 | AE174: 18 | AF174: 18 tours 7 plots | AG174: 9 | AH174: 16 | AI174: 16 tours 9 plots | AJ174: 4 | AK174: 15 | AL174: 15 tours 4 plots | AM174: 1 | AN174: 14 | AO174: 14 tours 1 plot | AP174: 0 | AQ174: 13 | AR174: 13 tours | AS174: 1 | AT174: 12 | AU174: 12 tours 1 plot | AV174: 4 | AW174: 11 | AX174: 11 tours 4 plots | AY174: 9 | AZ174: 10 | BA174: 10 tours 9 plots | BB174: 16 | BC174: 9 | BD174: 9 tours 16 plots | BE174: 7 | BF174: 9 | BG174: 9 tours 7 plots | BH174: 17 | BI174: 8 | BJ174: 8 tours 17 plots | BK174: 9 | BL174: 8 | BM174: 8 tours 9 plots | BP174: 1081 | BQ174: 18 | BR174: 1
A175: 4080 | B175: 1085.99169 | C175: 5.008323329 | D175: 00:18:05.992 | E175: 18.02996399 | F175: 17 tours | G175: 4080 | I175: 87 | J175: aller-retours | K175: 87 aller-retours | L175: 2 | M175: 56 | N175: 56 tours 2 plots | O175: 2 | P175: 42 | Q175: 42 tours 2 plots | R175: 0 | S175: 34 | T175: 34 tours | U175: 2 | V175: 28 | W175: 28 tours 2 plots | X175: 2 | Y175: 24 | Z175: 24 tours 2 plots | AA175: 2 | AB175: 21 | AC175: 21 tours 2 plots | AD175: 8 | AE175: 18 | AF175: 18 tours 8 plots | AG175: 0 | AH175: 17 | AI175: 17 tours | AJ175: 5 | AK175: 15 | AL175: 15 tours 5 plots | AM175: 2 | AN175: 14 | AO175: 14 tours 2 plots | AP175: 1 | AQ175: 13 | AR175: 13 tours 1 plot | AS175: 2 | AT175: 12 | AU175: 12 tours 2 plots | AV175: 5 | AW175: 11 | AX175: 11 tours 5 plots | AY175: 10 | AZ175: 10 | BA175: 10 tours 10 plots | BB175: 0 | BC175: 10 | BD175: 10 tours | BE175: 8 | BF175: 9 | BG175: 9 tours 8 plots | BH175: 18 | BI175: 8 | BJ175: 8 tours 18 plots | BK175: 10 | BL175: 8 | BM175: 8 tours 10 plots | BP175: 1086 | BQ175: 18 | BR175: 6
A176: 4104 | B176: 1090.773134 | C176: 5.019403731 | D176: 00:18:10.773 | E176: 18.06985343 | F176: 17 tours 1plot | G176: 4104 | J176: 1 plot | K176: 87 aller-retours 1 plot | L176: 0 | M176: 57 | N176: 57 tours | O176: 3 | P176: 42 | Q176: 42 tours 3 plots | R176: 1 | S176: 34 | T176: 34 tours 1plot | U176: 3 | V176: 28 | W176: 28 tours 3 plots | X176: 3 | Y176: 24 | Z176: 24 tours 3 plots | AA176: 3 | AB176: 21 | AC176: 21 tours 3 plots | AD176: 0 | AE176: 19 | AF176: 19 tours | AG176: 1 | AH176: 17 | AI176: 17 tours 1plot | AJ176: 6 | AK176: 15 | AL176: 15 tours 6 plots | AM176: 3 | AN176: 14 | AO176: 14 tours 3 plots | AP176: 2 | AQ176: 13 | AR176: 13 tours 2 plots | AS176: 3 | AT176: 12 | AU176: 12 tours 3 plots | AV176: 6 | AW176: 11 | AX176: 11 tours 6 plots | AY176: 11 | AZ176: 10 | BA176: 10 tours 11 plots | BB176: 1 | BC176: 10 | BD176: 10 tours 1 plot | BE176: 9 | BF176: 9 | BG176: 9 tours 9 plots | BH176: 0 | BI176: 9 | BJ176: 9 tours | BK176: 11 | BL176: 8 | BM176: 8 tours 11 plots | BP176: 1091 | BQ176: 18 | BR176: 11
A177: 4128 | B177: 1095.54407 | C177: 5.030459727 | D177: 00:18:15.544 | E177: 18.10965502 | F177: 17 tours 2 plots | G177: 4128 | I177: 88 | J177: aller-retours | K177: 88 aller-retours | L177: 1 | M177: 57 | N177: 57 tours 1plot | O177: 0 | P177: 43 | Q177: 43 tours | R177: 2 | S177: 34 | T177: 34 tours 2 plots | U177: 4 | V177: 28 | W177: 28 tours 4 plots | X177: 4 | Y177: 24 | Z177: 24 tours 4 plots | AA177: 4 | AB177: 21 | AC177: 21 tours 4 plots | AD177: 1 | AE177: 19 | AF177: 19 tours 1plot | AG177: 2 | AH177: 17 | AI177: 17 tours 2 plots | AJ177: 7 | AK177: 15 | AL177: 15 tours 7 plots | AM177: 4 | AN177: 14 | AO177: 14 tours 4 plots | AP177: 3 | AQ177: 13 | AR177: 13 tours 3 plots | AS177: 4 | AT177: 12 | AU177: 12 tours 4 plots | AV177: 7 | AW177: 11 | AX177: 11 tours 7 plots | AY177: 12 | AZ177: 10 | BA177: 10 tours 12 plots | BB177: 2 | BC177: 10 | BD177: 10 tours 2 plots | BE177: 10 | BF177: 9 | BG177: 9 tours 10 plots | BH177: 1 | BI177: 9 | BJ177: 9 tours 1 plot | BK177: 12 | BL177: 8 | BM177: 8 tours 12 plots | BP177: 1096 | BQ177: 18 | BR177: 16
A178: 4152 | B178: 1100.304566 | C178: 5.041491477 | D178: 00:18:20.305 | E178: 18.14936932 | F178: 17 tours 3 plots | G178: 4152 | J178: 1 plot | K178: 88 aller-retours 1 plot | L178: 2 | M178: 57 | N178: 57 tours 2 plots | O178: 1 | P178: 43 | Q178: 43 tours 1plot | R178: 3 | S178: 34 | T178: 34 tours 3 plots | U178: 5 | V178: 28 | W178: 28 tours 5 plots | X178: 5 | Y178: 24 | Z178: 24 tours 5 plots | AA178: 5 | AB178: 21 | AC178: 21 tours 5 plots | AD178: 2 | AE178: 19 | AF178: 19 tours 2 plots | AG178: 3 | AH178: 17 | AI178: 17 tours 3 plots | AJ178: 8 | AK178: 15 | AL178: 15 tours 8 plots | AM178: 5 | AN178: 14 | AO178: 14 tours 5 plots | AP178: 4 | AQ178: 13 | AR178: 13 tours 4 plots | AS178: 5 | AT178: 12 | AU178: 12 tours 5 plots | AV178: 8 | AW178: 11 | AX178: 11 tours 8 plots | AY178: 13 | AZ178: 10 | BA178: 10 tours 13 plots | BB178: 3 | BC178: 10 | BD178: 10 tours 3 plots | BE178: 11 | BF178: 9 | BG178: 9 tours 11 plots | BH178: 2 | BI178: 9 | BJ178: 9 tours 2 plots | BK178: 13 | BL178: 8 | BM178: 8 tours 13 plots | BP178: 1100 | BQ178: 18 | BR178: 20
A179: 4176 | B179: 1105.05469 | C179: 5.052499139 | D179: 00:18:25.055 | E179: 18.1889969 | F179: 17 tours 4 plots | G179: 4176 | I179: 89 | J179: aller-retours | K179: 89 aller-retours | L179: 0 | M179: 58 | N179: 58 tours | O179: 2 | P179: 43 | Q179: 43 tours 2 plots | R179: 4 | S179: 34 | T179: 34 tours 4 plots | U179: 0 | V179: 29 | W179: 29 tours | X179: 6 | Y179: 24 | Z179: 24 tours 6 plots | AA179: 6 | AB179: 21 | AC179: 21 tours 6 plots | AD179: 3 | AE179: 19 | AF179: 19 tours 3 plots | AG179: 4 | AH179: 17 | AI179: 17 tours 4 plots | AJ179: 9 | AK179: 15 | AL179: 15 tours 9 plots | AM179: 6 | AN179: 14 | AO179: 14 tours 6 plots | AP179: 5 | AQ179: 13 | AR179: 13 tours 5 plots | AS179: 6 | AT179: 12 | AU179: 12 tours 6 plots | AV179: 9 | AW179: 11 | AX179: 11 tours 9 plots | AY179: 14 | AZ179: 10 | BA179: 10 tours 14 plots | BB179: 4 | BC179: 10 | BD179: 10 tours 4 plots | BE179: 12 | BF179: 9 | BG179: 9 tours 12 plots | BH179: 3 | BI179: 9 | BJ179: 9 tours 3 plots | BK179: 14 | BL179: 8 | BM179: 8 tours 14 plots | BP179: 1105 | BQ179: 18 | BR179: 25
A180: 4200 | B180: 1109.794511 | C180: 5.063482872 | D180: 00:18:29.795 | E180: 18.22853834 | F180: 17 tours 5 plots | G180: 4200 | J180: 1 plot | K180: 89 aller-retours 1 plot | L180: 1 | M180: 58 | N180: 58 tours 1plot | O180: 3 | P180: 43 | Q180: 43 tours 3 plots | R180: 0 | S180: 35 | T180: 35 tours | U180: 1 | V180: 29 | W180: 29 tours 1plot | X180: 0 | Y180: 25 | Z180: 25 tours | AA180: 7 | AB180: 21 | AC180: 21 tours 7 plots | AD180: 4 | AE180: 19 | AF180: 19 tours 4 plots | AG180: 5 | AH180: 17 | AI180: 17 tours 5 plots | AJ180: 10 | AK180: 15 | AL180: 15 tours 10 plots | AM180: 7 | AN180: 14 | AO180: 14 tours 7 plots | AP180: 6 | AQ180: 13 | AR180: 13 tours 6 plots | AS180: 7 | AT180: 12 | AU180: 12 tours 7 plots | AV180: 10 | AW180: 11 | AX180: 11 tours 10 plots | AY180: 15 | AZ180: 10 | BA180: 10 tours 15 plots | BB180: 5 | BC180: 10 | BD180: 10 tours 5 plots | BE180: 13 | BF180: 9 | BG180: 9 tours 13 plots | BH180: 4 | BI180: 9 | BJ180: 9 tours 4 plots | BK180: 15 | BL180: 8 | BM180: 8 tours 15 plots | BP180: 1110 | BQ180: 18 | BR180: 30
A181: 4224 | B181: 1114.524094 | C181: 5.07444283 | D181: 00:18:34.524 | E181: 18.26799419 | F181: 17 tours 6 plots | G181: 4224 | I181: 90 | J181: aller-retour | K181: 90 aller-retour | L181: 2 | M181: 58 | N181: 58 tours 2 plots | O181: 0 | P181: 44 | Q181: 44 tours | R181: 1 | S181: 35 | T181: 35 tours 1plot | U181: 2 | V181: 29 | W181: 29 tours 2 plots | X181: 1 | Y181: 25 | Z181: 25 tours 1plot | AA181: 0 | AB181: 22 | AC181: 22 tours | AD181: 5 | AE181: 19 | AF181: 19 tours 5 plots | AG181: 6 | AH181: 17 | AI181: 17 tours 6 plots | AJ181: 0 | AK181: 16 | AL181: 16 tours | AM181: 8 | AN181: 14 | AO181: 14 tours 8 plots | AP181: 7 | AQ181: 13 | AR181: 13 tours 7 plots | AS181: 8 | AT181: 12 | AU181: 12 tours 8 plots | AV181: 11 | AW181: 11 | AX181: 11 tours 11 plots | AY181: 0 | AZ181: 11 | BA181: 11 tours | BB181: 6 | BC181: 10 | BD181: 10 tours 6 plots | BE181: 14 | BF181: 9 | BG181: 9 tours 14 plots | BH181: 5 | BI181: 9 | BJ181: 9 tours 5 plots | BK181: 16 | BL181: 8 | BM181: 8 tours 16 plots | BP181: 1115 | BQ181: 18 | BR181: 35
A182: 4248 | B182: 1119.243506 | C182: 5.085379167 | D182: 00:18:39.244 | E182: 18.307365 | F182: 17 tours 7 plots | G182: 4248 | J182: 1 plot | K182: 90 aller-retour1 plot | L182: 0 | M182: 59 | N182: 59 tours | O182: 1 | P182: 44 | Q182: 44 tours 1plot | R182: 2 | S182: 35 | T182: 35 tours 2 plots | U182: 3 | V182: 29 | W182: 29 tours 3 plots | X182: 2 | Y182: 25 | Z182: 25 tours 2 plots | AA182: 1 | AB182: 22 | AC182: 22 tours 1plot | AD182: 6 | AE182: 19 | AF182: 19 tours 6 plots | AG182: 7 | AH182: 17 | AI182: 17 tours 7 plots | AJ182: 1 | AK182: 16 | AL182: 16 tours 1 plot | AM182: 9 | AN182: 14 | AO182: 14 tours 9 plots | AP182: 8 | AQ182: 13 | AR182: 13 tours 8 plots | AS182: 9 | AT182: 12 | AU182: 12 tours 9 plots | AV182: 12 | AW182: 11 | AX182: 11 tours 12 plots | AY182: 1 | AZ182: 11 | BA182: 11 tours 1 plot | BB182: 7 | BC182: 10 | BD182: 10 tours 7 plots | BE182: 15 | BF182: 9 | BG182: 9 tours 15 plots | BH182: 6 | BI182: 9 | BJ182: 9 tours 6 plots | BK182: 17 | BL182: 8 | BM182: 8 tours 17 plots | BP182: 1119 | BQ182: 18 | BR182: 39
A183: 4272 | B183: 1123.952813 | C183: 5.096292036 | D183: 00:18:43.953 | E183: 18.34665133 | F183: 17 tours 8 plots | G183: 4272 | I183: 91 | J183: aller-retours | K183: 91 aller-retours | L183: 1 | M183: 59 | N183: 59 tours 1plot | O183: 2 | P183: 44 | Q183: 44 tours 2 plots | R183: 3 | S183: 35 | T183: 35 tours 3 plots | U183: 4 | V183: 29 | W183: 29 tours 4 plots | X183: 3 | Y183: 25 | Z183: 25 tours 3 plots | AA183: 2 | AB183: 22 | AC183: 22 tours 2 plots | AD183: 7 | AE183: 19 | AF183: 19 tours 7 plots | AG183: 8 | AH183: 17 | AI183: 17 tours 8 plots | AJ183: 2 | AK183: 16 | AL183: 16 tours 2 plots | AM183: 10 | AN183: 14 | AO183: 14 tours 10 plots | AP183: 9 | AQ183: 13 | AR183: 13 tours 9 plots | AS183: 10 | AT183: 12 | AU183: 12 tours 10 plots | AV183: 13 | AW183: 11 | AX183: 11 tours 13 plots | AY183: 2 | AZ183: 11 | BA183: 11 tours 2 plots | BB183: 8 | BC183: 10 | BD183: 10 tours 8 plots | BE183: 16 | BF183: 9 | BG183: 9 tours 16 plots | BH183: 7 | BI183: 9 | BJ183: 9 tours 7 plots | BK183: 18 | BL183: 8 | BM183: 8 tours 18 plots | BP183: 1124 | BQ183: 18 | BR183: 44
A184: 4296 | B184: 1128.652078 | C184: 5.107181586 | D184: 00:18:48.652 | E184: 18.38585371 | F184: 17 tours 9 plots | G184: 4296 | J184: 1 plot | K184: 91 aller-retours 1 plot | L184: 2 | M184: 59 | N184: 59 tours 2 plots | O184: 3 | P184: 44 | Q184: 44 tours 3 plots | R184: 4 | S184: 35 | T184: 35 tours 4 plots | U184: 5 | V184: 29 | W184: 29 tours 5 plots | X184: 4 | Y184: 25 | Z184: 25 tours 4 plots | AA184: 3 | AB184: 22 | AC184: 22 tours 3 plots | AD184: 8 | AE184: 19 | AF184: 19 tours 8 plots | AG184: 9 | AH184: 17 | AI184: 17 tours 9 plots | AJ184: 3 | AK184: 16 | AL184: 16 tours 3 plots | AM184: 11 | AN184: 14 | AO184: 14 tours 11 plots | AP184: 10 | AQ184: 13 | AR184: 13 tours 10 plots | AS184: 11 | AT184: 12 | AU184: 12 tours 11 plots | AV184: 14 | AW184: 11 | AX184: 11 tours 14 plots | AY184: 3 | AZ184: 11 | BA184: 11 tours 3 plots | BB184: 9 | BC184: 10 | BD184: 10 tours 9 plots | BE184: 17 | BF184: 9 | BG184: 9 tours 17 plots | BH184: 8 | BI184: 9 | BJ184: 9 tours 8 plots | BK184: 19 | BL184: 8 | BM184: 8 tours 19 plots | BP184: 1129 | BQ184: 18 | BR184: 49
A185: 4320 | B185: 1133.341365 | C185: 5.118047967 | D185: 00:18:53.341 | E185: 18.42497268 | F185: 18 tours | G185: 4320 | I185: 92 | J185: aller-retours | K185: 92 aller-retours | L185: 0 | M185: 60 | N185: 60 tours | O185: 0 | P185: 45 | Q185: 45 tours | R185: 0 | S185: 36 | T185: 36 tours | U185: 0 | V185: 30 | W185: 30 tours | X185: 5 | Y185: 25 | Z185: 25 tours 5 plots | AA185: 4 | AB185: 22 | AC185: 22 tours 4 plots | AD185: 0 | AE185: 20 | AF185: 20 tours | AG185: 0 | AH185: 18 | AI185: 18 tours | AJ185: 4 | AK185: 16 | AL185: 16 tours 4 plots | AM185: 0 | AN185: 15 | AO185: 15 tours | AP185: 11 | AQ185: 13 | AR185: 13 tours 11 plots | AS185: 12 | AT185: 12 | AU185: 12 tours 12 plots | AV185: 0 | AW185: 12 | AX185: 12 tours | AY185: 4 | AZ185: 11 | BA185: 11 tours 4 plots | BB185: 10 | BC185: 10 | BD185: 10 tours 10 plots | BE185: 0 | BF185: 10 | BG185: 10 tours | BH185: 9 | BI185: 9 | BJ185: 9 tours 9 plots | BK185: 0 | BL185: 9 | BM185: 9 tours | BP185: 1133 | BQ185: 18 | BR185: 53
A186: 4344 | B186: 1138.020739 | C186: 5.128891325 | D186: 00:18:58.021 | E186: 18.46400877 | F186: 18 tours 1plot | G186: 4344 | J186: 1 plot | K186: 92 aller-retours 1 plot | L186: 1 | M186: 60 | N186: 60 tours 1plot | O186: 1 | P186: 45 | Q186: 45 tours 1plot | R186: 1 | S186: 36 | T186: 36 tours 1plot | U186: 1 | V186: 30 | W186: 30 tours 1plot | X186: 6 | Y186: 25 | Z186: 25 tours 6 plots | AA186: 5 | AB186: 22 | AC186: 22 tours 5 plots | AD186: 1 | AE186: 20 | AF186: 20 tours 1plot | AG186: 1 | AH186: 18 | AI186: 18 tours 1plot | AJ186: 5 | AK186: 16 | AL186: 16 tours 5 plots | AM186: 1 | AN186: 15 | AO186: 15 tours 1 plot | AP186: 12 | AQ186: 13 | AR186: 13 tours 12 plots | AS186: 13 | AT186: 12 | AU186: 12 tours 13 plots | AV186: 1 | AW186: 12 | AX186: 12 tours 1 plot | AY186: 5 | AZ186: 11 | BA186: 11 tours 5 plots | BB186: 11 | BC186: 10 | BD186: 10 tours 11 plots | BE186: 1 | BF186: 10 | BG186: 10 tours 1 plot | BH186: 10 | BI186: 9 | BJ186: 9 tours 10 plots | BK186: 1 | BL186: 9 | BM186: 9 tours 1 plot | BP186: 1138 | BQ186: 18 | BR186: 58
A187: 4368 | B187: 1142.690262 | C187: 5.139711807 | D187: 00:19:02.690 | E187: 18.5029625 | F187: 18 tours 2 plots | G187: 4368 | I187: 93 | J187: aller-retours | K187: 93 aller-retours | L187: 2 | M187: 60 | N187: 60 tours 2 plots | O187: 2 | P187: 45 | Q187: 45 tours 2 plots | R187: 2 | S187: 36 | T187: 36 tours 2 plots | U187: 2 | V187: 30 | W187: 30 tours 2 plots | X187: 0 | Y187: 26 | Z187: 26 tours | AA187: 6 | AB187: 22 | AC187: 22 tours 6 plots | AD187: 2 | AE187: 20 | AF187: 20 tours 2 plots | AG187: 2 | AH187: 18 | AI187: 18 tours 2 plots | AJ187: 6 | AK187: 16 | AL187: 16 tours 6 plots | AM187: 2 | AN187: 15 | AO187: 15 tours 2 plots | AP187: 0 | AQ187: 14 | AR187: 14 tours | AS187: 0 | AT187: 13 | AU187: 13 tours | AV187: 2 | AW187: 12 | AX187: 12 tours 2 plots | AY187: 6 | AZ187: 11 | BA187: 11 tours 6 plots | BB187: 12 | BC187: 10 | BD187: 10 tours 12 plots | BE187: 2 | BF187: 10 | BG187: 10 tours 2 plots | BH187: 11 | BI187: 9 | BJ187: 9 tours 11 plots | BK187: 2 | BL187: 9 | BM187: 9 tours 2 plots | BP187: 1143 | BQ187: 19 | BR187: 3
A188: 4392 | B188: 1147.349995 | C188: 5.150509556 | D188: 00:19:07.350 | E188: 18.5418344 | F188: 18 tours 3 plots | G188: 4392 | J188: 1 plot | K188: 93 aller-retours 1 plot | L188: 0 | M188: 61 | N188: 61 tours | O188: 3 | P188: 45 | Q188: 45 tours 3 plots | R188: 3 | S188: 36 | T188: 36 tours 3 plots | U188: 3 | V188: 30 | W188: 30 tours 3 plots | X188: 1 | Y188: 26 | Z188: 26 tours 1plot | AA188: 7 | AB188: 22 | AC188: 22 tours 7 plots | AD188: 3 | AE188: 20 | AF188: 20 tours 3 plots | AG188: 3 | AH188: 18 | AI188: 18 tours 3 plots | AJ188: 7 | AK188: 16 | AL188: 16 tours 7 plots | AM188: 3 | AN188: 15 | AO188: 15 tours 3 plots | AP188: 1 | AQ188: 14 | AR188: 14 tours 1 plot | AS188: 1 | AT188: 13 | AU188: 13 tours 1 plot | AV188: 3 | AW188: 12 | AX188: 12 tours 3 plots | AY188: 7 | AZ188: 11 | BA188: 11 tours 7 plots | BB188: 13 | BC188: 10 | BD188: 10 tours 13 plots | BE188: 3 | BF188: 10 | BG188: 10 tours 3 plots | BH188: 12 | BI188: 9 | BJ188: 9 tours 12 plots | BK188: 3 | BL188: 9 | BM188: 9 tours 3 plots | BP188: 1147 | BQ188: 19 | BR188: 7
A189: 4416 | B189: 1152 | C189: 5.161284716 | D189: 00:19:12 | E189: 18.58062498 | F189: 18 tours 4 plots | G189: 4416 | I189: 94 | J189: aller-retours | K189: 94 aller-retours | L189: 1 | M189: 61 | N189: 61 tours 1plot | O189: 0 | P189: 46 | Q189: 46 tours | R189: 4 | S189: 36 | T189: 36 tours 4 plots | U189: 4 | V189: 30 | W189: 30 tours 4 plots | X189: 2 | Y189: 26 | Z189: 26 tours 2 plots | AA189: 0 | AB189: 23 | AC189: 23 tours | AD189: 4 | AE189: 20 | AF189: 20 tours 4 plots | AG189: 4 | AH189: 18 | AI189: 18 tours 4 plots | AJ189: 8 | AK189: 16 | AL189: 16 tours 8 plots | AM189: 4 | AN189: 15 | AO189: 15 tours 4 plots | AP189: 2 | AQ189: 14 | AR189: 14 tours 2 plots | AS189: 2 | AT189: 13 | AU189: 13 tours 2 plots | AV189: 4 | AW189: 12 | AX189: 12 tours 4 plots | AY189: 8 | AZ189: 11 | BA189: 11 tours 8 plots | BB189: 14 | BC189: 10 | BD189: 10 tours 14 plots | BE189: 4 | BF189: 10 | BG189: 10 tours 4 plots | BH189: 13 | BI189: 9 | BJ189: 9 tours 13 plots | BK189: 4 | BL189: 9 | BM189: 9 tours 4 plots | BP189: 1152 | BQ189: 19 | BR189: 12
A190: 4440 | B190: 1156.640338 | C190: 5.172037428 | D190: 00:19:16.640 | E190: 18.61933474 | F190: 18 tours 5 plots | G190: 4440 | J190: 1 plot | K190: 94 aller-retours 1 plot | L190: 2 | M190: 61 | N190: 61 tours 2 plots | O190: 1 | P190: 46 | Q190: 46 tours 1plot | R190: 0 | S190: 37 | T190: 37 tours | U190: 5 | V190: 30 | W190: 30 tours 5 plots | X190: 3 | Y190: 26 | Z190: 26 tours 3 plots | AA190: 1 | AB190: 23 | AC190: 23 tours 1plot | AD190: 5 | AE190: 20 | AF190: 20 tours 5 plots | AG190: 5 | AH190: 18 | AI190: 18 tours 5 plots | AJ190: 9 | AK190: 16 | AL190: 16 tours 9 plots | AM190: 5 | AN190: 15 | AO190: 15 tours 5 plots | AP190: 3 | AQ190: 14 | AR190: 14 tours 3 plots | AS190: 3 | AT190: 13 | AU190: 13 tours 3 plots | AV190: 5 | AW190: 12 | AX190: 12 tours 5 plots | AY190: 9 | AZ190: 11 | BA190: 11 tours 9 plots | BB190: 15 | BC190: 10 | BD190: 10 tours 15 plots | BE190: 5 | BF190: 10 | BG190: 10 tours 5 plots | BH190: 14 | BI190: 9 | BJ190: 9 tours 14 plots | BK190: 5 | BL190: 9 | BM190: 9 tours 5 plots | BP190: 1157 | BQ190: 19 | BR190: 17
A191: 4464 | B191: 1161.271068 | C191: 5.182767831 | D191: 00:19:21.271 | E191: 18.65796419 | F191: 18 tours 6 plots | G191: 4464 | I191: 95 | J191: aller-retours | K191: 95 aller-retours | L191: 0 | M191: 62 | N191: 62 tours | O191: 2 | P191: 46 | Q191: 46 tours 2 plots | R191: 1 | S191: 37 | T191: 37 tours 1plot | U191: 0 | V191: 31 | W191: 31 tours | X191: 4 | Y191: 26 | Z191: 26 tours 4 plots | AA191: 2 | AB191: 23 | AC191: 23 tours 2 plots | AD191: 6 | AE191: 20 | AF191: 20 tours 6 plots | AG191: 6 | AH191: 18 | AI191: 18 tours 6 plots | AJ191: 10 | AK191: 16 | AL191: 16 tours 10 plots | AM191: 6 | AN191: 15 | AO191: 15 tours 6 plots | AP191: 4 | AQ191: 14 | AR191: 14 tours 4 plots | AS191: 4 | AT191: 13 | AU191: 13 tours 4 plots | AV191: 6 | AW191: 12 | AX191: 12 tours 6 plots | AY191: 10 | AZ191: 11 | BA191: 11 tours 10 plots | BB191: 16 | BC191: 10 | BD191: 10 tours 16 plots | BE191: 6 | BF191: 10 | BG191: 10 tours 6 plots | BH191: 15 | BI191: 9 | BJ191: 9 tours 15 plots | BK191: 6 | BL191: 9 | BM191: 9 tours 6 plots | BP191: 1161 | BQ191: 19 | BR191: 21
A192: 4488 | B192: 1165.89225 | C192: 5.193476063 | D192: 00:19:25.892 | E192: 18.69651383 | F192: 18 tours 7 plots | G192: 4488 | J192: 1 plot | K192: 95 aller-retours 1 plot | L192: 1 | M192: 62 | N192: 62 tours 1plot | O192: 3 | P192: 46 | Q192: 46 tours 3 plots | R192: 2 | S192: 37 | T192: 37 tours 2 plots | U192: 1 | V192: 31 | W192: 31 tours 1plot | X192: 5 | Y192: 26 | Z192: 26 tours 5 plots | AA192: 3 | AB192: 23 | AC192: 23 tours 3 plots | AD192: 7 | AE192: 20 | AF192: 20 tours 7 plots | AG192: 7 | AH192: 18 | AI192: 18 tours 7 plots | AJ192: 0 | AK192: 17 | AL192: 17 tours | AM192: 7 | AN192: 15 | AO192: 15 tours 7 plots | AP192: 5 | AQ192: 14 | AR192: 14 tours 5 plots | AS192: 5 | AT192: 13 | AU192: 13 tours 5 plots | AV192: 7 | AW192: 12 | AX192: 12 tours 7 plots | AY192: 11 | AZ192: 11 | BA192: 11 tours 11 plots | BB192: 0 | BC192: 11 | BD192: 11 tours | BE192: 7 | BF192: 10 | BG192: 10 tours 7 plots | BH192: 16 | BI192: 9 | BJ192: 9 tours 16 plots | BK192: 7 | BL192: 9 | BM192: 9 tours 7 plots | BP192: 1166 | BQ192: 19 | BR192: 26
A193: 4512 | B193: 1170.503944 | C193: 5.204162261 | D193: 00:19:30.504 | E193: 18.73498414 | F193: 18 tours 8 plots | G193: 4512 | I193: 96 | J193: aller-retours | K193: 96 aller-retours | L193: 2 | M193: 62 | N193: 62 tours 2 plots | O193: 0 | P193: 47 | Q193: 47 tours | R193: 3 | S193: 37 | T193: 37 tours 3 plots | U193: 2 | V193: 31 | W193: 31 tours 2 plots | X193: 6 | Y193: 26 | Z193: 26 tours 6 plots | AA193: 4 | AB193: 23 | AC193: 23 tours 4 plots | AD193: 8 | AE193: 20 | AF193: 20 tours 8 plots | AG193: 8 | AH193: 18 | AI193: 18 tours 8 plots | AJ193: 1 | AK193: 17 | AL193: 17 tours 1 plot | AM193: 8 | AN193: 15 | AO193: 15 tours 8 plots | AP193: 6 | AQ193: 14 | AR193: 14 tours 6 plots | AS193: 6 | AT193: 13 | AU193: 13 tours 6 plots | AV193: 8 | AW193: 12 | AX193: 12 tours 8 plots | AY193: 12 | AZ193: 11 | BA193: 11 tours 12 plots | BB193: 1 | BC193: 11 | BD193: 11 tours 1 plot | BE193: 8 | BF193: 10 | BG193: 10 tours 8 plots | BH193: 17 | BI193: 9 | BJ193: 9 tours 17 plots | BK193: 8 | BL193: 9 | BM193: 9 tours 8 plots | BP193: 1171 | BQ193: 19 | BR193: 31
A194: 4536 | B194: 1175.106206 | C194: 5.214826562 | D194: 00:19:35.106 | E194: 18.77337562 | F194: 18 tours 9 plots | G194: 4536 | J194: 1 plot | K194: 96 aller-retours 1 plot | L194: 0 | M194: 63 | N194: 63 tours | O194: 1 | P194: 47 | Q194: 47 tours 1plot | R194: 4 | S194: 37 | T194: 37 tours 4 plots | U194: 3 | V194: 31 | W194: 31 tours 3 plots | X194: 0 | Y194: 27 | Z194: 27 tours | AA194: 5 | AB194: 23 | AC194: 23 tours 5 plots | AD194: 0 | AE194: 21 | AF194: 21 tours | AG194: 9 | AH194: 18 | AI194: 18 tours 9 plots | AJ194: 2 | AK194: 17 | AL194: 17 tours 2 plots | AM194: 9 | AN194: 15 | AO194: 15 tours 9 plots | AP194: 7 | AQ194: 14 | AR194: 14 tours 7 plots | AS194: 7 | AT194: 13 | AU194: 13 tours 7 plots | AV194: 9 | AW194: 12 | AX194: 12 tours 9 plots | AY194: 13 | AZ194: 11 | BA194: 11 tours 13 plots | BB194: 2 | BC194: 11 | BD194: 11 tours 2 plots | BE194: 9 | BF194: 10 | BG194: 10 tours 9 plots | BH194: 18 | BI194: 9 | BJ194: 9 tours 18 plots | BK194: 9 | BL194: 9 | BM194: 9 tours 9 plots | BP194: 1175 | BQ194: 19 | BR194: 35
A195: 4560 | B195: 1179.699095 | C195: 5.225469098 | D195: 00:19:39.699 | E195: 18.81168875 | F195: 19 tours | G195: 4560 | I195: 97 | J195: aller-retours | K195: 97 aller-retours | L195: 1 | M195: 63 | N195: 63 tours 1plot | O195: 2 | P195: 47 | Q195: 47 tours 2 plots | R195: 0 | S195: 38 | T195: 38 tours | U195: 4 | V195: 31 | W195: 31 tours 4 plots | X195: 1 | Y195: 27 | Z195: 27 tours 1plot | AA195: 6 | AB195: 23 | AC195: 23 tours 6 plots | AD195: 1 | AE195: 21 | AF195: 21 tours 1plot | AG195: 0 | AH195: 19 | AI195: 19 tours | AJ195: 3 | AK195: 17 | AL195: 17 tours 3 plots | AM195: 10 | AN195: 15 | AO195: 15 tours 10 plots | AP195: 8 | AQ195: 14 | AR195: 14 tours 8 plots | AS195: 8 | AT195: 13 | AU195: 13 tours 8 plots | AV195: 10 | AW195: 12 | AX195: 12 tours 10 plots | AY195: 14 | AZ195: 11 | BA195: 11 tours 14 plots | BB195: 3 | BC195: 11 | BD195: 11 tours 3 plots | BE195: 10 | BF195: 10 | BG195: 10 tours 10 plots | BH195: 0 | BI195: 10 | BJ195: 10 tours | BK195: 10 | BL195: 9 | BM195: 9 tours 10 plots | BP195: 1180 | BQ195: 19 | BR195: 40
A196: 4584 | B196: 1184.282668 | C196: 5.236090003 | D196: 00:19:44.283 | E196: 18.84992401 | F196: 19 tours 1plot | G196: 4584 | J196: 1 plot | K196: 97 aller-retours 1 plot | L196: 2 | M196: 63 | N196: 63 tours 2 plots | O196: 3 | P196: 47 | Q196: 47 tours 3 plots | R196: 1 | S196: 38 | T196: 38 tours 1plot | U196: 5 | V196: 31 | W196: 31 tours 5 plots | X196: 2 | Y196: 27 | Z196: 27 tours 2 plots | AA196: 7 | AB196: 23 | AC196: 23 tours 7 plots | AD196: 2 | AE196: 21 | AF196: 21 tours 2 plots | AG196: 1 | AH196: 19 | AI196: 19 tours 1plot | AJ196: 4 | AK196: 17 | AL196: 17 tours 4 plots | AM196: 11 | AN196: 15 | AO196: 15 tours 11 plots | AP196: 9 | AQ196: 14 | AR196: 14 tours 9 plots | AS196: 9 | AT196: 13 | AU196: 13 tours 9 plots | AV196: 11 | AW196: 12 | AX196: 12 tours 11 plots | AY196: 15 | AZ196: 11 | BA196: 11 tours 15 plots | BB196: 4 | BC196: 11 | BD196: 11 tours 4 plots | BE196: 11 | BF196: 10 | BG196: 10 tours 11 plots | BH196: 1 | BI196: 10 | BJ196: 10 tours 1 plot | BK196: 11 | BL196: 9 | BM196: 9 tours 11 plots | BP196: 1184 | BQ196: 19 | BR196: 44
A197: 4608 | B197: 1188.856981 | C197: 5.246689408 | D197: 00:19:48.857 | E197: 18.88808187 | F197: 19 tours 2 plots | G197: 4608 | I197: 98 | J197: aller-retours | K197: 98 aller-retours | L197: 0 | M197: 64 | N197: 64 tours | O197: 0 | P197: 48 | Q197: 48 tours | R197: 2 | S197: 38 | T197: 38 tours 2 plots | U197: 0 | V197: 32 | W197: 32 tours | X197: 3 | Y197: 27 | Z197: 27 tours 3 plots | AA197: 0 | AB197: 24 | AC197: 24 tours | AD197: 3 | AE197: 21 | AF197: 21 tours 3 plots | AG197: 2 | AH197: 19 | AI197: 19 tours 2 plots | AJ197: 5 | AK197: 17 | AL197: 17 tours 5 plots | AM197: 0 | AN197: 16 | AO197: 16 tours | AP197: 10 | AQ197: 14 | AR197: 14 tours 10 plots | AS197: 10 | AT197: 13 | AU197: 13 tours 10 plots | AV197: 12 | AW197: 12 | AX197: 12 tours 12 plots | AY197: 0 | AZ197: 12 | BA197: 12 tours | BB197: 5 | BC197: 11 | BD197: 11 tours 5 plots | BE197: 12 | BF197: 10 | BG197: 10 tours 12 plots | BH197: 2 | BI197: 10 | BJ197: 10 tours 2 plots | BK197: 12 | BL197: 9 | BM197: 9 tours 12 plots | BP197: 1189 | BQ197: 19 | BR197: 49
A198: 4632 | B198: 1193.42209 | C198: 5.257267443 | D198: 00:19:53.422 | E198: 18.9261628 | F198: =INDEX(F198:BM406, 1,$B$2*3) -> 19 tours 3 plots | G198: 4632 | J198: 1 plot | K198: 98 aller-retours 1 plot | L198: 1 | M198: 64 | N198: 64 tours 1plot | O198: 1 | P198: 48 | Q198: 48 tours 1plot | R198: 3 | S198: 38 | T198: 38 tours 3 plots | U198: 1 | V198: 32 | W198: 32 tours 1plot | X198: 4 | Y198: 27 | Z198: 27 tours 4 plots | AA198: 1 | AB198: 24 | AC198: 24 tours 1plot | AD198: 4 | AE198: 21 | AF198: 21 tours 4 plots | AG198: 3 | AH198: 19 | AI198: 19 tours 3 plots | AJ198: 6 | AK198: 17 | AL198: =IF(AK198=0,"",IF(AND(AJ198=0,AK198=1),AK198&" "&"tour",IF(AND(AJ198=0,AK198>1),AK198&" "&"tours",IF(AND(AK198>1,AJ198=1),AK198&" "&"tours"&" "&AJ198&" "&"plot",IF(AND(AK198=1,AJ198=1),AK198&" "&"tour"&" "&AJ198&" "&"plot",IF(AND(AK198=1,AJ198>0),AK198&" "&"tour"&" "&AJ198&" "&"plots",IF(AND(AK198>1,AJ198>1),AK198&" "&"tours"&" "&AJ198&" "&"plots"))))))) -> 17 tours 6 plots | AM198: 1 | AN198: 16 | AO198: 16 tours 1 plot | AP198: 11 | AQ198: 14 | AR198: 14 tours 11 plots | AS198: 11 | AT198: 13 | AU198: 13 tours 11 plots | AV198: 13 | AW198: 12 | AX198: 12 tours 13 plots | AY198: 1 | AZ198: 12 | BA198: 12 tours 1 plot | BB198: 6 | BC198: 11 | BD198: 11 tours 6 plots | BE198: 13 | BF198: 10 | BG198: 10 tours 13 plots | BH198: 3 | BI198: 10 | BJ198: 10 tours 3 plots | BK198: 13 | BL198: 9 | BM198: 9 tours 13 plots | BP198: 1193 | BQ198: 19 | BR198: 53
A199: 4656 | B199: 1197.978051 | C199: 5.267824237 | D199: =B199*0.0000115740740740741 -> 00:19:57.978 | E199: =C199*3.6 -> 18.96416725 | F199: 19 tours 4 plots | G199: 4656 | I199: 99 | J199: aller-retours | K199: 99 aller-retours | L199: 2 | M199: 64 | N199: 64 tours 2 plots | O199: 2 | P199: 48 | Q199: 48 tours 2 plots | R199: 4 | S199: 38 | T199: 38 tours 4 plots | U199: 2 | V199: 32 | W199: 32 tours 2 plots | X199: 5 | Y199: 27 | Z199: 27 tours 5 plots | AA199: 2 | AB199: 24 | AC199: 24 tours 2 plots | AD199: 5 | AE199: 21 | AF199: 21 tours 5 plots | AG199: 4 | AH199: 19 | AI199: 19 tours 4 plots | AJ199: 7 | AK199: 17 | AL199: 17 tours 7 plots | AM199: 2 | AN199: 16 | AO199: 16 tours 2 plots | AP199: 12 | AQ199: 14 | AR199: 14 tours 12 plots | AS199: 12 | AT199: 13 | AU199: 13 tours 12 plots | AV199: 14 | AW199: 12 | AX199: 12 tours 14 plots | AY199: 2 | AZ199: 12 | BA199: 12 tours 2 plots | BB199: 7 | BC199: 11 | BD199: 11 tours 7 plots | BE199: 14 | BF199: 10 | BG199: 10 tours 14 plots | BH199: 4 | BI199: 10 | BJ199: 10 tours 4 plots | BK199: 14 | BL199: 9 | BM199: 9 tours 14 plots | BP199: 1198 | BQ199: =QUOTIENT(BP199,60) -> 19 | BR199: 58
A200: =A199+$A$6 -> 4680 | B200: =(-$C$3+SQRT($C$3*$C$3+(4*$F$1*A200)))/(2*$F$1) -> 1202.524918 | C200: 5.278359917 | D200: 00:20:02.525 | E200: 19.0020957 | F200: 19 tours 5 plots | G200: 4680 | J200: 1 plot | K200: 99 aller-retours 1 plot | L200: 0 | M200: 65 | N200: 65 tours | O200: 3 | P200: 48 | Q200: 48 tours 3 plots | R200: 0 | S200: 39 | T200: 39 tours | U200: 3 | V200: 32 | W200: 32 tours 3 plots | X200: 6 | Y200: 27 | Z200: 27 tours 6 plots | AA200: 3 | AB200: 24 | AC200: 24 tours 3 plots | AD200: 6 | AE200: 21 | AF200: 21 tours 6 plots | AG200: 5 | AH200: 19 | AI200: 19 tours 5 plots | AJ200: 8 | AK200: 17 | AL200: 17 tours 8 plots | AM200: 3 | AN200: 16 | AO200: 16 tours 3 plots | AP200: 0 | AQ200: 15 | AR200: 15 tours | AS200: 13 | AT200: 13 | AU200: 13 tours 13 plots | AV200: 0 | AW200: 13 | AX200: 13 tours | AY200: 3 | AZ200: 12 | BA200: 12 tours 3 plots | BB200: 8 | BC200: 11 | BD200: 11 tours 8 plots | BE200: 15 | BF200: 10 | BG200: 10 tours 15 plots | BH200: 5 | BI200: 10 | BJ200: 10 tours 5 plots | BK200: 15 | BL200: 9 | BM200: 9 tours 15 plots | BP200: 1203 | BQ200: 20 | BR200: 3
... 15 more rows

Sheet Vitesses de Travail
B1: =Classe!A1 -> 303
C2: Test | D2: 0.85 | E2: 0.9 | F2: 0.95 | G2: 1 | H2: 1.05 | I2: 1.1
C3: VMA
A4: 1 | B4: =Classe!A4 -> AHMED Rouchdati | C4: =IF(Classe!H4="","",Classe!H4) ->  | D4: =IF($C4="","",$C4*D$2) ->  | E4: =IF($C4="","",$C4*E$2) -> 
A5: 2 | B5: =Classe!A5 -> ALAMELE Emeline | C5: =IF(Classe!H5="","",Classe!H5) ->  | D5: =IF($C5="","",$C5*D$2) -> 
A6: 3 | B6: =Classe!A6 -> ALLAMELE Gregory | C6: =IF(Classe!H6="","",Classe!H6) ->  | D6: =IF($C6="","",$C6*D$2) -> 
A7: 4 | B7: =Classe!A7 -> BABIN Estelle | C7: =IF(Classe!H7="","",Classe!H7) -> 
A8: 5 | B8: =Classe!A8 -> BERNOT Rachel | C8: =IF(Classe!H8="","",Classe!H8) -> 
A9: 6 | B9: =Classe!A9 -> BOINA Clifford | C9: =IF(Classe!H9="","",Classe!H9) -> 
A10: 7 | B10: =Classe!A10 -> BOURLY Marie-Lise | C10: =IF(Classe!H10="","",Classe!H10) -> 
A11: 8 | B11: =Classe!A11 -> BOURLY Nicolas | C11: =IF(Classe!H11="","",Classe!H11) -> 
A12: 9 | B12: =Classe!A12 -> CHAN-WING-YEN Xavier | C12: =IF(Classe!H12="","",Classe!H12) -> 
A13: 10 | B13: =Classe!A13 -> DE GUIGNE Alexandre | C13: =IF(Classe!H13="","",Classe!H13) -> 
A14: 11 | B14: =Classe!A14 -> DUBART Benoit | C14: =IF(Classe!H14="","",Classe!H14) -> 
A15: 12 | B15: =Classe!A15 -> DUCHEMANN Gregory | C15: =IF(Classe!H15="","",Classe!H15) -> 
A16: 13 | B16: =Classe!A16 -> EVRIN Yann | C16: =IF(Classe!H16="","",Classe!H16) -> 
A17: 14 | B17: =Classe!A17 -> GRONDIN Laurene | C17: =IF(Classe!H17="","",Classe!H17) -> 
A18: 15 | B18: =Classe!A18 -> HOAREAU M-Samantha | C18: =IF(Classe!H18="","",Classe!H18) -> 
A19: 16 | B19: =Classe!A19 -> JEAN-JACQUES Oceane | C19: =IF(Classe!H19="","",Classe!H19) -> 
A20: 17 | B20: =Classe!A20 -> LAVANILLE Lorraine | C20: =IF(Classe!H20="","",Classe!H20) -> 
A21: 18 | B21: =Classe!A21 -> MAILLOT Samuel | C21: =IF(Classe!H21="","",Classe!H21) -> 
A22: 19 | B22: =Classe!A22 -> MOMBRUN Rene | C22: =IF(Classe!H22="","",Classe!H22) -> 
A23: 20 | B23: =Classe!A23 -> MULOT Laetitia | C23: =IF(Classe!H23="","",Classe!H23) -> 
A24: 21 | B24: =Classe!A24 -> PAUSE Jean Mathieu | C24: =IF(Classe!H24="","",Classe!H24) -> 
A25: 22 | B25: =Classe!A25 -> RAZAKARIVONY Anthony | C25: =IF(Classe!H25="","",Classe!H25) -> 
A26: 23 | B26: =Classe!A26 -> SAVIGNAN Loriane | C26: =IF(Classe!H26="","",Classe!H26) -> 
A27: 24 | B27: =Classe!A27 -> TATEYA Bryan | C27: =IF(Classe!H27="","",Classe!H27) -> 
A28: 25 | B28: =Classe!A28 -> VIDOT Frederique | C28: =IF(Classe!H28="","",Classe!H28) -> 
A29: 26 | B29: =Classe!A29 -> VOISIN Kathy | C29: =IF(Classe!H29="","",Classe!H29) -> 
A30: 27 | B30: =Classe!A30 -> 0 | C30: =IF(Classe!H30="","",Classe!H30) -> 
A31: 28 | B31: =Classe!A31 -> 0 | C31: =IF(Classe!H31="","",Classe!H31) -> 
A32: 29 | B32: =Classe!A32 -> 0 | C32: =IF(Classe!H32="","",Classe!H32) -> 
F35: Distance de Travail
B36: =Classe!A1 -> 303 | D36: 200 | K36: 30/30
C37: Test | D37: 0.85 | E37: 0.9 | F37: 0.95 | G37: 1 | H37: 1.05 | I37: 1.1 | J37: 30/30 | K37: 30/30 | L37: 30/30
C38: VMA | J38: 1 | K38: 1.05 | L38: 1.1
A39: 1 | B39: =Classe!A4 -> AHMED Rouchdati | C39: =IF(Classe!H4="","",Classe!H4) ->  | D39: =IF($C39="","",IF(LEN(CONCATENATE(QUOTIENT($D$36*3600/($C39*D$37*1000),60),"'",ROUND(MOD($D$36*3600/($C39*D$37*1000),60),0)))=3,CONCATENATE(QUOTIENT($D$36*3600/($C39*D$37*1000),60),"'0",ROUND(MOD($D$36*3600/($C39*D$37*1000),60),0)),CONCATENATE(QUOTIENT($D$36*3600/($C39*D$37*1000),60),"'",ROUND(MOD($D$36*3600/($C39*D$37*1000),60),0)))) ->  | E39: =IF($C39="","",IF(LEN(CONCATENATE(QUOTIENT($D$36*3600/($C39*E$37*1000),60),"'",ROUND(MOD($D$36*3600/($C39*E$37*1000),60),0)))=3,CONCATENATE(QUOTIENT($D$36*3600/($C39*E$37*1000),60),"'0",ROUND(MOD($D$36*3600/($C39*E$37*1000),60),0)),CONCATENATE(QUOTIENT($D$36*3600/($C39*E$37*1000),60),"'",ROUND(MOD($D$36*3600/($C39*E$37*1000),60),0)))) ->  | J39: =IF($C39="","",$C39*G$37*1000/3600*30) -> 
A40: 2 | B40: =Classe!A5 -> ALAMELE Emeline | C40: =IF(Classe!H5="","",Classe!H5) ->  | D40: =IF($C40="","",IF(LEN(CONCATENATE(QUOTIENT($D$36*3600/($C40*D$37*1000),60),"'",ROUND(MOD($D$36*3600/($C40*D$37*1000),60),0)))=3,CONCATENATE(QUOTIENT($D$36*3600/($C40*D$37*1000),60),"'0",ROUND(MOD($D$36*3600/($C40*D$37*1000),60),0)),CONCATENATE(QUOTIENT($D$36*3600/($C40*D$37*1000),60),"'",ROUND(MOD($D$36*3600/($C40*D$37*1000),60),0)))) -> 
A41: 3 | B41: =Classe!A6 -> ALLAMELE Gregory | C41: =IF(Classe!H6="","",Classe!H6) ->  | D41: =IF($C41="","",IF(LEN(CONCATENATE(QUOTIENT($D$36*3600/($C41*D$37*1000),60),"'",ROUND(MOD($D$36*3600/($C41*D$37*1000),60),0)))=3,CONCATENATE(QUOTIENT($D$36*3600/($C41*D$37*1000),60),"'0",ROUND(MOD($D$36*3600/($C41*D$37*1000),60),0)),CONCATENATE(QUOTIENT($D$36*3600/($C41*D$37*1000),60),"'",ROUND(MOD($D$36*3600/($C41*D$37*1000),60),0)))) -> 
A42: 4 | B42: =Classe!A7 -> BABIN Estelle | C42: =IF(Classe!H7="","",Classe!H7) -> 
A43: 5 | B43: =Classe!A8 -> BERNOT Rachel | C43: =IF(Classe!H8="","",Classe!H8) -> 
A44: 6 | B44: =Classe!A9 -> BOINA Clifford | C44: =IF(Classe!H9="","",Classe!H9) -> 
A45: 7 | B45: =Classe!A10 -> BOURLY Marie-Lise | C45: =IF(Classe!H10="","",Classe!H10) -> 
A46: 8 | B46: =Classe!A11 -> BOURLY Nicolas | C46: =IF(Classe!H11="","",Classe!H11) -> 
A47: 9 | B47: =Classe!A12 -> CHAN-WING-YEN Xavier | C47: =IF(Classe!H12="","",Classe!H12) -> 
A48: 10 | B48: =Classe!A13 -> DE GUIGNE Alexandre | C48: =IF(Classe!H13="","",Classe!H13) -> 
A49: 11 | B49: =Classe!A14 -> DUBART Benoit | C49: =IF(Classe!H14="","",Classe!H14) -> 
A50: 12 | B50: =Classe!A15 -> DUCHEMANN Gregory | C50: =IF(Classe!H15="","",Classe!H15) -> 
A51: 13 | B51: =Classe!A16 -> EVRIN Yann | C51: =IF(Classe!H16="","",Classe!H16) -> 
A52: 14 | B52: =Classe!A17 -> GRONDIN Laurene | C52: =IF(Classe!H17="","",Classe!H17) -> 
A53: 15 | B53: =Classe!A18 -> HOAREAU M-Samantha | C53: =IF(Classe!H18="","",Classe!H18) -> 
A54: 16 | B54: =Classe!A19 -> JEAN-JACQUES Oceane | C54: =IF(Classe!H19="","",Classe!H19) -> 
A55: 17 | B55: =Classe!A20 -> LAVANILLE Lorraine | C55: =IF(Classe!H20="","",Classe!H20) -> 
A56: 18 | B56: =Classe!A21 -> MAILLOT Samuel | C56: =IF(Classe!H21="","",Classe!H21) -> 
A57: 19 | B57: =Classe!A22 -> MOMBRUN Rene | C57: =IF(Classe!H22="","",Classe!H22) -> 
A58: 20 | B58: =Classe!A23 -> MULOT Laetitia | C58: =IF(Classe!H23="","",Classe!H23) -> 
A59: 21 | B59: =Classe!A24 -> PAUSE Jean Mathieu | C59: =IF(Classe!H24="","",Classe!H24) -> 
A60: 22 | B60: =Classe!A25 -> RAZAKARIVONY Anthony | C60: =IF(Classe!H25="","",Classe!H25) -> 
A61: 23 | B61: =Classe!A26 -> SAVIGNAN Loriane | C61: =IF(Classe!H26="","",Classe!H26) -> 
A62: 24 | B62: =Classe!A27 -> TATEYA Bryan | C62: =IF(Classe!H27="","",Classe!H27) -> 
A63: 25 | B63: =Classe!A28 -> VIDOT Frederique | C63: =IF(Classe!H28="","",Classe!H28) -> 
A64: 26 | B64: =Classe!A29 -> VOISIN Kathy | C64: =IF(Classe!H29="","",Classe!H29) -> 
A65: 27 | B65: =Classe!A30 -> 0 | C65: =IF(Classe!H30="","",Classe!H30) ->  | J65: =IF($C65="","",$C65*G$37*1000/3600*30) -> 
A66: 28 | B66: =Classe!A31 -> 0 | C66: =IF(Classe!H31="","",Classe!H31) -> 
A67: 29 | B67: =Classe!A32 -> 0 | C67: =IF(Classe!H32="","",Classe!H32) -> 

Sheet Feuille Observation
A1: Temps de passage | B1: Nombre de tours | C1: VMA en Km/h | D1: Dist. En m | E1: ="Résultats "&" "&"Test VMA "&'Caractéristiques test'!$B$5 &" "&"Km/h" -> Résultats Test VMA 9 Km/h | F1: Temps de passage | G1: Nombre de tours | H1: VMA en Km/h | I1: Dist. En m | J1: ="Résultats "&" "&"Test VMA "&'Caractéristiques test'!$B$5 &" "&"Km/h" -> Résultats Test VMA 9 Km/h | K1: Test VMA 8 temps de passage | L1: Nombre de tours | O1: VMA en Km/h | Q1: Test VMA 8 temps de passage | R1: Nombre de tours | U1: VMA en Km/h
A3: ='Calculs pour VMA'!D6 -> 00:00:09.558 | B3: ='Calculs pour VMA'!F6 -> 1 plot | C3: ='Calculs pour VMA'!E6 -> 9.039823785 | D3: ='Caractéristiques test'!B6 -> 24 | F3: ='Calculs pour VMA'!D57 -> 00:06:58.223 | G3: ='Calculs pour VMA'!F57 -> 5 tours 2 plots | H3: ='Calculs pour VMA'!E57 -> 12.45629017 | I3: =$D$3+D53 -> 1248 | K3: 00:00:18 | N3: 1 plot | O3: 8 | Q3: 00:11:19 | R3: 16 | S3: T | T3: 2 plots | U3: 14
A4: ='Calculs pour VMA'!D7 -> 00:00:19.032 | B4: ='Calculs pour VMA'!F7 -> 2 plots | C4: ='Calculs pour VMA'!E7 -> 9.119125042 | D4: =$D$3+D3 -> 48 | F4: ='Calculs pour VMA'!D58 -> 00:07:05.127 | G4: ='Calculs pour VMA'!F58 -> 5 tours 3 plots | H4: ='Calculs pour VMA'!E58 -> 12.5139591 | I4: =$D$3+I3 -> 1272 | K4: 00:00:36 | N4: 2 plots | O4: 8 | Q4: 00:11:30 | R4: 17 | S4: T | U4: 14
A5: ='Calculs pour VMA'!D8 -> 00:00:28.426 | B5: ='Calculs pour VMA'!F8 -> 3 plots | C5: ='Calculs pour VMA'!E8 -> 9.197742552 | D5: =$D$3+D4 -> 72 | F5: ='Calculs pour VMA'!D59 -> 00:07:12 | G5: ='Calculs pour VMA'!F59 -> 5 tours 4 plots | H5: ='Calculs pour VMA'!E59 -> 12.57136349 | I5: =$D$3+I4 -> 1296 | K5: 00:00:54 | L5: 1 | M5: T | O5: 8 | Q5: 00:11:40 | R5: 17 | S5: T | T5: 1 plot | U5: 14
A6: ='Calculs pour VMA'!D9 -> 00:00:37.741 | B6: ='Calculs pour VMA'!F9 -> 4 plots | C6: ='Calculs pour VMA'!E9 -> 9.275693704 | D6: 96 | F6: ='Calculs pour VMA'!D60 -> 00:07:18.842 | G6: ='Calculs pour VMA'!F60 -> 5 tours 5 plots | H6: ='Calculs pour VMA'!E60 -> 12.62850693 | I6: 1320 | K6: 00:01:11 | L6: 1 | M6: T | N6: 1 plot | O6: 9 | Q6: 00:11:51 | R6: 17 | S6: T | T6: 2 plots | U6: 14
A7: ='Calculs pour VMA'!D10 -> 00:00:46.978 | B7: ='Calculs pour VMA'!F10 -> 5 plots | C7: ='Calculs pour VMA'!E10 -> 9.352995162 | D7: 120 | F7: ='Calculs pour VMA'!D61 -> 00:07:25.653 | G7: ='Calculs pour VMA'!F61 -> 5 tours 6 plots | H7: ='Calculs pour VMA'!E61 -> 12.68539296 | I7: 1344 | K7: 00:01:28 | L7: 1 | M7: T | N7: 2 plots | O7: 9 | Q7: 00:12:01 | R7: 18 | S7: T | U7: 14
A8: ='Calculs pour VMA'!D11 -> 00:00:56.141 | B8: ='Calculs pour VMA'!F11 -> 6 plots | C8: ='Calculs pour VMA'!E11 -> 9.429662904 | D8: 144 | F8: ='Calculs pour VMA'!D62 -> 00:07:32.433 | G8: ='Calculs pour VMA'!F62 -> 5 tours 7 plots | H8: ='Calculs pour VMA'!E62 -> 12.74202503 | I8: 1368 | K8: 00:01:45 | L8: 2 | M8: T | O8: 9 | Q8: 00:12:12 | R8: 18 | S8: T | T8: 1 plot | U8: 14.5
A9: ='Calculs pour VMA'!D12 -> 00:01:05.230 | B9: ='Calculs pour VMA'!F12 -> 7 plots | C9: ='Calculs pour VMA'!E12 -> 9.505712268 | D9: 168 | F9: ='Calculs pour VMA'!D63 -> 00:07:39.184 | G9: ='Calculs pour VMA'!F63 -> 5 tours 8 plots | H9: ='Calculs pour VMA'!E63 -> 12.79840649 | I9: 1392 | K9: 00:02:01 | L9: 2 | M9: T | N9: 1 plot | O9: 9 | Q9: 00:12:22 | R9: 18 | S9: T | T9: 2 plots | U9: 14.5
A10: ='Calculs pour VMA'!D13 -> 00:01:14.248 | B10: ='Calculs pour VMA'!F13 -> 8 plots | C10: ='Calculs pour VMA'!E13 -> 9.581157979 | D10: 192 | F10: ='Calculs pour VMA'!D64 -> 00:07:45.906 | G10: ='Calculs pour VMA'!F64 -> 5 tours 9 plots | H10: ='Calculs pour VMA'!E64 -> 12.85454066 | I10: 1416 | K10: 00:02:17 | L10: 2 | M10: T | N10: 2 plots | O10: 9.5 | Q10: 00:12:33 | R10: 19 | S10: T | U10: 14.5
A11: ='Calculs pour VMA'!D14 -> 00:01:23.196 | B11: ='Calculs pour VMA'!F14 -> 9 plots | C11: ='Calculs pour VMA'!E14 -> 9.656014189 | D11: 216 | F11: ='Calculs pour VMA'!D65 -> 00:07:52.598 | G11: ='Calculs pour VMA'!F65 -> 6 tours | H11: ='Calculs pour VMA'!E65 -> 12.91043076 | I11: 1440 | K11: 00:02:33 | L11: 3 | M11: T | O11: 9.5 | Q11: 00:12:43 | R11: 19 | S11: T | T11: 1 plot | U11: 14.5
A12: ='Calculs pour VMA'!D15 -> 00:01:32.075 | B12: ='Calculs pour VMA'!F15 -> 1 tour | C12: ='Calculs pour VMA'!E15 -> 9.730294505 | D12: 240 | F12: ='Calculs pour VMA'!D66 -> 00:07:59.261 | G12: ='Calculs pour VMA'!F66 -> 6 tours 1plot | H12: ='Calculs pour VMA'!E66 -> 12.96607994 | I12: 1464 | K12: 00:02:49 | L12: 3 | M12: T | N12: 1 plot | O12: 9.5 | Q12: 00:12:53 | R12: 19 | S12: T | T12: 2 plots | U12: 14.5
A13: ='Calculs pour VMA'!D16 -> 00:01:40.888 | B13: ='Calculs pour VMA'!F16 -> 1 tour 1plot | C13: ='Calculs pour VMA'!E16 -> 9.804012019 | D13: 264 | F13: ='Calculs pour VMA'!D67 -> 00:08:05.897 | G13: ='Calculs pour VMA'!F67 -> 6 tours 2 plots | H13: ='Calculs pour VMA'!E67 -> 13.0214913 | I13: 1488 | K13: 00:03:04 | L13: 3 | M13: T | N13: 2 plots | O13: 10 | Q13: 00:13:03 | R13: 20 | S13: T | U13: 15
A14: ='Calculs pour VMA'!D17 -> 00:01:49.635 | B14: ='Calculs pour VMA'!F17 -> 1 tour 2 plots | C14: ='Calculs pour VMA'!E17 -> 9.877179333 | D14: 288 | F14: ='Calculs pour VMA'!D68 -> 00:08:12.504 | G14: ='Calculs pour VMA'!F68 -> 6 tours 3 plots | H14: ='Calculs pour VMA'!E68 -> 13.07666785 | I14: 1512 | K14: 00:03:20 | L14: 4 | M14: T | O14: 10 | Q14: 00:13:13 | R14: 20 | S14: T | T14: 1 plot | U14: 15
A15: ='Calculs pour VMA'!D18 -> 00:01:58.319 | B15: ='Calculs pour VMA'!F18 -> 1 tour 3 plots | C15: ='Calculs pour VMA'!E18 -> 9.949808586 | D15: 312 | F15: ='Calculs pour VMA'!D69 -> 00:08:19.083 | G15: ='Calculs pour VMA'!F69 -> 6 tours 4 plots | H15: ='Calculs pour VMA'!E69 -> 13.13161256 | I15: 1536 | K15: 00:03:35 | L15: 4 | M15: T | N15: 1 plot | O15: 10 | Q15: 00:13:23 | R15: 20 | S15: T | T15: 2 plots | U15: 15
A16: ='Calculs pour VMA'!D19 -> 00:02:06.940 | B16: ='Calculs pour VMA'!F19 -> 1 tour 4 plots | C16: ='Calculs pour VMA'!E19 -> 10.02191148 | D16: 336 | F16: ='Calculs pour VMA'!D70 -> 00:08:25.636 | G16: ='Calculs pour VMA'!F70 -> 6 tours 5 plots | H16: ='Calculs pour VMA'!E70 -> 13.18632832 | I16: 1560 | K16: 00:03:50 | L16: 4 | M16: T | N16: 2 plots | O16: 10 | Q16: 00:13:33 | R16: 21 | S16: T | U16: 15
A17: ='Calculs pour VMA'!D20 -> 00:02:15.500 | B17: ='Calculs pour VMA'!F20 -> 1 tour 5 plots | C17: ='Calculs pour VMA'!E20 -> 10.09349929 | D17: 360 | F17: ='Calculs pour VMA'!D71 -> 00:08:32.161 | G17: ='Calculs pour VMA'!F71 -> 6 tours 6 plots | H17: ='Calculs pour VMA'!E71 -> 13.24081798 | I17: 1584 | K17: 00:04:05 | L17: 5 | M17: T | O17: 10.5 | Q17: 00:13:43 | R17: 21 | S17: T | T17: 1 plot | U17: 15
A18: ='Calculs pour VMA'!D21 -> 00:02:24 | B18: ='Calculs pour VMA'!F21 -> 1 tour 6 plots | C18: ='Calculs pour VMA'!E21 -> 10.1645829 | D18: 384 | F18: ='Calculs pour VMA'!D72 -> 00:08:38.659 | G18: ='Calculs pour VMA'!F72 -> 6 tours 7 plots | H18: ='Calculs pour VMA'!E72 -> 13.29508431 | I18: 1608 | K18: 00:04:19 | L18: 5 | M18: T | N18: 1 plot | O18: 10.5 | Q18: 00:13:53 | R18: 21 | S18: T | T18: 2 plots | U18: 15
A19: ='Calculs pour VMA'!D22 -> 00:02:32.441 | B19: ='Calculs pour VMA'!F22 -> 1 tour 7 plots | C19: ='Calculs pour VMA'!E22 -> 10.23517283 | D19: 408 | F19: ='Calculs pour VMA'!D73 -> 00:08:45.132 | G19: ='Calculs pour VMA'!F73 -> 6 tours 8 plots | H19: ='Calculs pour VMA'!E73 -> 13.34913004 | I19: 1632 | K19: 00:04:33 | L19: 5 | M19: T | N19: 2 plots | O19: 10.5 | Q19: 00:14:03 | R19: 22 | S19: T | U19: 15.5
A20: ='Calculs pour VMA'!D23 -> 00:02:40.826 | B20: ='Calculs pour VMA'!F23 -> 1 tour 8 plots | C20: ='Calculs pour VMA'!E23 -> 10.30527921 | D20: 432 | F20: ='Calculs pour VMA'!D74 -> 00:08:51.578 | G20: ='Calculs pour VMA'!F74 -> 6 tours 9 plots | H20: ='Calculs pour VMA'!E74 -> 13.40295783 | I20: 1656 | K20: 00:04:48 | L20: 6 | M20: T | O20: 10.5 | Q20: 00:14:13 | R20: 22 | S20: T | T20: 1 plot | U20: 15.5
A21: ='Calculs pour VMA'!D24 -> 00:02:49.153 | B21: ='Calculs pour VMA'!F24 -> 1 tour 9 plots | C21: ='Calculs pour VMA'!E24 -> 10.37491185 | D21: 456 | F21: ='Calculs pour VMA'!D75 -> 00:08:57.999 | G21: ='Calculs pour VMA'!F75 -> 7 tours | H21: ='Calculs pour VMA'!E75 -> 13.4565703 | I21: 1680 | K21: 00:05:02 | L21: 6 | M21: T | N21: 1 plot | O21: 11 | Q21: 00:14:22 | R21: 22 | S21: T | T21: 2 plots | U21: 15.5
A22: ='Calculs pour VMA'!D25 -> 00:02:57.426 | B22: ='Calculs pour VMA'!F25 -> 2 tours | C22: ='Calculs pour VMA'!E25 -> 10.44408023 | D22: 480 | F22: ='Calculs pour VMA'!D76 -> 00:09:04.394 | G22: ='Calculs pour VMA'!F76 -> 7 tours 1plot | H22: ='Calculs pour VMA'!E76 -> 13.50997002 | I22: 1704 | K22: 00:05:16 | L22: 6 | M22: T | N22: 2 plots | O22: 11 | Q22: 00:14:32 | R22: 23 | S22: T | U22: 15.5
A23: ='Calculs pour VMA'!D26 -> 00:03:05.644 | B23: ='Calculs pour VMA'!F26 -> 2 tours 1plot | C23: ='Calculs pour VMA'!E26 -> 10.51279351 | D23: 504 | F23: ='Calculs pour VMA'!D77 -> 00:09:10.764 | G23: ='Calculs pour VMA'!F77 -> 7 tours 2 plots | H23: ='Calculs pour VMA'!E77 -> 13.5631595 | I23: 1728 | K23: 00:05:29 | L23: 7 | M23: T | O23: 11 | Q23: 00:14:42 | R23: 23 | S23: T | T23: 1 plot | U23: 15.5
A24: ='Calculs pour VMA'!D27 -> 00:03:13.810 | B24: ='Calculs pour VMA'!F27 -> 2 tours 2 plots | C24: ='Calculs pour VMA'!E27 -> 10.58106055 | D24: 528 | F24: ='Calculs pour VMA'!D78 -> 00:09:17.110 | G24: ='Calculs pour VMA'!F78 -> 7 tours 3 plots | H24: ='Calculs pour VMA'!E78 -> 13.61614119 | I24: 1752 | K24: 00:05:43 | L24: 7 | M24: T | N24: 1 plot | O24: 11 | Q24: 00:14:51 | R24: 23 | S24: T | T24: 2 plots | U24: 15.5
A25: ='Calculs pour VMA'!D28 -> 00:03:21.924 | B25: ='Calculs pour VMA'!F28 -> 2 tours 3 plots | C25: ='Calculs pour VMA'!E28 -> 10.64888995 | D25: 552 | F25: ='Calculs pour VMA'!D79 -> 00:09:23.431 | G25: ='Calculs pour VMA'!F79 -> 7 tours 4 plots | H25: ='Calculs pour VMA'!E79 -> 13.66891753 | I25: 1776 | K25: 00:05:56 | L25: 7 | M25: T | N25: 2 plots | O25: 11 | Q25: 00:15:01 | R25: 24 | S25: T | U25: 16
A26: ='Calculs pour VMA'!D29 -> 00:03:29.986 | B26: ='Calculs pour VMA'!F29 -> 2 tours 4 plots | C26: ='Calculs pour VMA'!E29 -> 10.71629 | D26: 576 | F26: ='Calculs pour VMA'!D80 -> 00:09:29.727 | G26: ='Calculs pour VMA'!F80 -> 7 tours 5 plots | H26: ='Calculs pour VMA'!E80 -> 13.72149087 | I26: 1800 | K26: 00:06:10 | L26: 8 | M26: T | O26: 11.5 | Q26: 00:15:10 | R26: 24 | S26: T | T26: 1 plot | U26: 16
A27: ='Calculs pour VMA'!D30 -> 00:03:37.998 | B27: ='Calculs pour VMA'!F30 -> 2 tours 5 plots | C27: ='Calculs pour VMA'!E30 -> 10.78326877 | D27: 600 | F27: ='Calculs pour VMA'!D81 -> 00:09:36 | G27: ='Calculs pour VMA'!F81 -> 7 tours 6 plots | H27: ='Calculs pour VMA'!E81 -> 13.77386354 | I27: 1824 | K27: 00:06:23 | L27: 8 | M27: T | N27: 1 plot | O27: 11.5 | Q27: 00:15:19 | R27: 24 | S27: T | T27: 2 plots | U27: 16
A28: ='Calculs pour VMA'!D31 -> 00:03:45.962 | B28: ='Calculs pour VMA'!F31 -> 2 tours 6 plots | C28: ='Calculs pour VMA'!E31 -> 10.84983406 | D28: 624 | F28: ='Calculs pour VMA'!D82 -> 00:09:42.249 | G28: ='Calculs pour VMA'!F82 -> 7 tours 7 plots | H28: ='Calculs pour VMA'!E82 -> 13.82603783 | I28: 1848 | K28: 00:06:36 | L28: 8 | M28: T | N28: 2 plots | O28: 11.5 | Q28: 00:15:29 | R28: 25 | S28: T | U28: 16
A29: ='Calculs pour VMA'!D32 -> 00:03:53.877 | B29: ='Calculs pour VMA'!F32 -> 2 tours 7 plots | C29: ='Calculs pour VMA'!E32 -> 10.91599342 | D29: 648 | F29: ='Calculs pour VMA'!D83 -> 00:09:48.475 | G29: ='Calculs pour VMA'!F83 -> 7 tours 8 plots | H29: ='Calculs pour VMA'!E83 -> 13.87801596 | I29: 1872 | K29: 00:06:49 | L29: 9 | M29: T | O29: 11.5 | Q29: 00:15:38 | R29: 25 | S29: T | T29: 1 plot | U29: 16
A30: ='Calculs pour VMA'!D33 -> 00:04:01.744 | B30: ='Calculs pour VMA'!F33 -> 2 tours 8 plots | C30: ='Calculs pour VMA'!E33 -> 10.9817542 | D30: 672 | F30: ='Calculs pour VMA'!D84 -> 00:09:54.677 | G30: ='Calculs pour VMA'!F84 -> 7 tours 9 plots | H30: ='Calculs pour VMA'!E84 -> 13.92980015 | I30: 1896 | K30: 00:07:02 | L30: 9 | M30: T | N30: 1 plot | O30: 12 | Q30: 00:15:47 | R30: 25 | S30: T | T30: 2 plots | U30: 16
A31: ='Calculs pour VMA'!D34 -> 00:04:09.565 | B31: ='Calculs pour VMA'!F34 -> 2 tours 9 plots | C31: ='Calculs pour VMA'!E34 -> 11.04712352 | D31: 696 | F31: ='Calculs pour VMA'!D85 -> 00:10:00.857 | G31: ='Calculs pour VMA'!F85 -> 8 tours | H31: ='Calculs pour VMA'!E85 -> 13.98139253 | I31: 1920 | K31: 00:07:15 | L31: 9 | M31: T | N31: 2 plots | O31: 12 | Q31: 00:15:57 | R31: 26 | S31: T | U31: 16
A32: ='Calculs pour VMA'!D35 -> 00:04:17.341 | B32: ='Calculs pour VMA'!F35 -> 3 tours | C32: ='Calculs pour VMA'!E35 -> 11.11210828 | D32: 720 | F32: ='Calculs pour VMA'!D86 -> 00:10:07.014 | G32: ='Calculs pour VMA'!F86 -> 8 tours 1plot | H32: ='Calculs pour VMA'!E86 -> 14.03279523 | I32: 1944 | K32: 00:07:27 | L32: 10 | M32: T | O32: 12 | Q32: 00:16:06 | R32: 26 | S32: T | T32: 1 plot | U32: 16.5
A33: ='Calculs pour VMA'!D36 -> 00:04:25.071 | B33: ='Calculs pour VMA'!F36 -> 3 tours 1plot | C33: ='Calculs pour VMA'!E36 -> 11.17671519 | D33: 744 | F33: ='Calculs pour VMA'!D87 -> 00:10:13.149 | G33: ='Calculs pour VMA'!F87 -> 8 tours 2 plots | H33: ='Calculs pour VMA'!E87 -> 14.08401032 | I33: 1968 | K33: 00:07:40 | L33: 10 | M33: T | N33: 1 plot | O33: 12 | Q33: 00:16:15 | R33: 26 | S33: T | T33: 2 plots | U33: 16.5
A34: ='Calculs pour VMA'!D37 -> 00:04:32.757 | B34: ='Calculs pour VMA'!F37 -> 3 tours 2 plots | C34: ='Calculs pour VMA'!E37 -> 11.24095078 | D34: 768 | F34: ='Calculs pour VMA'!D88 -> 00:10:19.261 | G34: ='Calculs pour VMA'!F88 -> 8 tours 3 plots | H34: ='Calculs pour VMA'!E88 -> 14.13503984 | I34: 1992 | K34: 00:07:52 | L34: 10 | M34: T | N34: 2 plots | O34: 12 | Q34: 00:16:24 | R34: 27 | S34: T | U34: 16.5
A35: ='Calculs pour VMA'!D38 -> 00:04:40.400 | B35: ='Calculs pour VMA'!F38 -> 3 tours 3 plots | C35: ='Calculs pour VMA'!E38 -> 11.30482136 | D35: 792 | F35: ='Calculs pour VMA'!D89 -> 00:10:25.352 | G35: ='Calculs pour VMA'!F89 -> 8 tours 4 plots | H35: ='Calculs pour VMA'!E89 -> 14.1858858 | I35: 2016 | K35: 00:08:04 | L35: 11 | M35: T | O35: 12.5 | Q35: 00:16:33 | R35: 27 | S35: T | T35: 1 plot | U35: 16.5
A36: ='Calculs pour VMA'!D39 -> 00:04:48 | B36: ='Calculs pour VMA'!F39 -> 3 tours 4 plots | C36: ='Calculs pour VMA'!E39 -> 11.36833309 | D36: 816 | F36: ='Calculs pour VMA'!D90 -> 00:10:31.420 | G36: ='Calculs pour VMA'!F90 -> 8 tours 5 plots | H36: ='Calculs pour VMA'!E90 -> 14.23655016 | I36: 2040 | K36: 00:08:16 | L36: 11 | M36: T | N36: 1 plot | O36: 12.5 | Q36: 00:16:42 | R36: 27 | S36: T | T36: 2 plots | U36: 16.5
A37: ='Calculs pour VMA'!D40 -> 00:04:55.558 | B37: ='Calculs pour VMA'!F40 -> 3 tours 5 plots | C37: ='Calculs pour VMA'!E40 -> 11.43149195 | D37: 840 | F37: ='Calculs pour VMA'!D91 -> 00:10:37.468 | G37: ='Calculs pour VMA'!F91 -> 8 tours 6 plots | H37: ='Calculs pour VMA'!E91 -> 14.28703486 | I37: 2064 | K37: 00:08:28 | L37: 11 | M37: T | N37: 2 plots | O37: 12.5 | Q37: 00:16:51 | R37: 28 | S37: T | U37: 16.5
A38: ='Calculs pour VMA'!D41 -> 00:05:03.075 | B38: ='Calculs pour VMA'!F41 -> 3 tours 6 plots | C38: ='Calculs pour VMA'!E41 -> 11.49430377 | D38: 864 | F38: ='Calculs pour VMA'!D92 -> 00:10:43.494 | G38: ='Calculs pour VMA'!F92 -> 8 tours 7 plots | H38: ='Calculs pour VMA'!E92 -> 14.33734179 | I38: 2088 | K38: 00:08:40 | L38: 12 | M38: T | O38: 12.5 | Q38: 00:17:00 | R38: 28 | S38: T | T38: 1 plot | U38: 17
A39: ='Calculs pour VMA'!D42 -> 00:05:10.551 | B39: ='Calculs pour VMA'!F42 -> 3 tours 7 plots | C39: ='Calculs pour VMA'!E42 -> 11.55677419 | D39: 888 | F39: ='Calculs pour VMA'!D93 -> 00:10:49.499 | G39: ='Calculs pour VMA'!F93 -> 8 tours 8 plots | H39: ='Calculs pour VMA'!E93 -> 14.38747281 | I39: 2112 | K39: 00:08:52 | L39: 12 | M39: T | N39: 1 plot | O39: 12.5 | Q39: 00:17:09 | R39: 28 | S39: T | T39: 2 plots | U39: 17
A40: ='Calculs pour VMA'!D43 -> 00:05:17.987 | B40: ='Calculs pour VMA'!F43 -> 3 tours 8 plots | C40: ='Calculs pour VMA'!E43 -> 11.61890873 | D40: 912 | F40: ='Calculs pour VMA'!D94 -> 00:10:55.484 | G40: ='Calculs pour VMA'!F94 -> 8 tours 9 plots | H40: ='Calculs pour VMA'!E94 -> 14.43742977 | I40: 2136 | K40: 00:09:04 | L40: 12 | M40: T | N40: 2 plots | O40: 13 | Q40: 00:17:18 | R40: 29 | S40: T | U40: 17
A41: ='Calculs pour VMA'!D44 -> 00:05:25.384 | B41: ='Calculs pour VMA'!F44 -> 3 tours 9 plots | C41: ='Calculs pour VMA'!E44 -> 11.68071274 | D41: 936 | F41: ='Calculs pour VMA'!D95 -> 00:11:01.448 | G41: ='Calculs pour VMA'!F95 -> 9 tours | H41: ='Calculs pour VMA'!E95 -> 14.48721445 | I41: 2160 | K41: 00:09:16 | L41: 13 | M41: T | O41: 13 | Q41: 00:17:27 | R41: 29 | S41: T | T41: 1 plot | U41: 17
A42: ='Calculs pour VMA'!D45 -> 00:05:32.742 | B42: ='Calculs pour VMA'!F45 -> 4 tours | C42: ='Calculs pour VMA'!E45 -> 11.74219145 | D42: 960 | F42: ='Calculs pour VMA'!D96 -> 00:11:07.391 | G42: ='Calculs pour VMA'!F96 -> 9 tours 1plot | H42: ='Calculs pour VMA'!E96 -> 14.53682863 | I42: 2184 | K42: 00:09:27 | L42: 13 | M42: T | N42: 1 plot | O42: 13 | Q42: 00:17:35 | R42: 29 | S42: T | T42: 2 plots | U42: 17
A43: ='Calculs pour VMA'!D46 -> 00:05:40.062 | B43: ='Calculs pour VMA'!F46 -> 4 tours 1plot | C43: ='Calculs pour VMA'!E46 -> 11.80334994 | D43: 984 | F43: ='Calculs pour VMA'!D97 -> 00:11:13.315 | G43: ='Calculs pour VMA'!F97 -> 9 tours 2 plots | H43: ='Calculs pour VMA'!E97 -> 14.58627406 | I43: 2208 | K43: 00:09:39 | L43: 13 | M43: T | N43: 2 plots | O43: 13 | Q43: 00:17:44 | R43: 30 | S43: T | U43: 17
A44: ='Calculs pour VMA'!D47 -> 00:05:47.344 | B44: ='Calculs pour VMA'!F47 -> 4 tours 2 plots | C44: ='Calculs pour VMA'!E47 -> 11.86419316 | D44: 1008 | F44: ='Calculs pour VMA'!D98 -> 00:11:19.218 | G44: ='Calculs pour VMA'!F98 -> 9 tours 3 plots | H44: ='Calculs pour VMA'!E98 -> 14.63555243 | I44: 2232 | K44: 00:09:50 | L44: 14 | M44: T | O44: 13 | Q44: 00:17:53 | R44: 30 | S44: T | T44: 1 plot | U44: 17
A45: ='Calculs pour VMA'!D48 -> 00:05:54.590 | B45: ='Calculs pour VMA'!F48 -> 4 tours 3 plots | C45: ='Calculs pour VMA'!E48 -> 11.92472593 | D45: 1032 | F45: ='Calculs pour VMA'!D99 -> 00:11:25.102 | G45: ='Calculs pour VMA'!F99 -> 9 tours 4 plots | H45: ='Calculs pour VMA'!E99 -> 14.68466544 | I45: 2256 | K45: 00:10:02 | L45: 14 | M45: T | N45: 1 plot | O45: 13 | Q45: 00:18:01 | R45: 30 | S45: T | T45: 2 plots | U45: 17.5
A46: ='Calculs pour VMA'!D49 -> 00:06:01.799 | B46: ='Calculs pour VMA'!F49 -> 4 tours 4 plots | C46: ='Calculs pour VMA'!E49 -> 11.98495297 | D46: 1056 | F46: ='Calculs pour VMA'!D100 -> 00:11:30.966 | G46: ='Calculs pour VMA'!F100 -> 9 tours 5 plots | H46: ='Calculs pour VMA'!E100 -> 14.73361473 | I46: 2280 | K46: 00:10:13 | L46: 14 | M46: T | N46: 2 plots | O46: 13.5 | Q46: 00:18:10 | R46: 31 | S46: T | U46: 17.5
A47: ='Calculs pour VMA'!D50 -> 00:06:08.972 | B47: ='Calculs pour VMA'!F50 -> 4 tours 5 plots | C47: ='Calculs pour VMA'!E50 -> 12.04487886 | D47: 1080 | F47: ='Calculs pour VMA'!D101 -> 00:11:36.811 | G47: ='Calculs pour VMA'!F101 -> 9 tours 6 plots | H47: ='Calculs pour VMA'!E101 -> 14.78240193 | I47: 2304 | K47: 00:10:24 | L47: 15 | M47: T | O47: 13.5 | Q47: 00:18:19 | R47: 31 | S47: T | T47: 1 plot | U47: 17.5
A48: ='Calculs pour VMA'!D51 -> 00:06:16.110 | B48: ='Calculs pour VMA'!F51 -> 4 tours 6 plots | C48: ='Calculs pour VMA'!E51 -> 12.10450806 | D48: 1104 | F48: ='Calculs pour VMA'!D102 -> 00:11:42.636 | G48: ='Calculs pour VMA'!F102 -> 9 tours 7 plots | H48: ='Calculs pour VMA'!E102 -> 14.83102865 | I48: 2328 | K48: 00:10:35 | L48: 15 | M48: T | N48: 1 plot | O48: 13.5 | Q48: 00:18:27 | R48: 31 | S48: T | T48: 2 plots | U48: 17.5
A49: ='Calculs pour VMA'!D52 -> 00:06:23.213 | B49: ='Calculs pour VMA'!F52 -> 4 tours 7 plots | C49: ='Calculs pour VMA'!E52 -> 12.16384495 | D49: 1128 | F49: ='Calculs pour VMA'!D103 -> 00:11:48.443 | G49: ='Calculs pour VMA'!F103 -> 9 tours 8 plots | H49: ='Calculs pour VMA'!E103 -> 14.87949645 | I49: 2352 | K49: 00:10:46 | L49: 15 | M49: T | N49: 2 plots | O49: 13.5 | Q49: 00:18:36 | R49: 32 | S49: T | U49: 17.5
A50: ='Calculs pour VMA'!D53 -> 00:06:30.282 | B50: ='Calculs pour VMA'!F53 -> 4 tours 8 plots | C50: ='Calculs pour VMA'!E53 -> 12.22289379 | D50: 1152 | F50: ='Calculs pour VMA'!D104 -> 00:11:54.231 | G50: ='Calculs pour VMA'!F104 -> 9 tours 9 plots | H50: ='Calculs pour VMA'!E104 -> 14.92780689 | I50: 2376 | K50: 00:10:57 | L50: 16 | M50: T | O50: 13.5 | Q50: 00:18:44 | R50: 32 | S50: T | T50: 1 plot | U50: 17.5
A51: ='Calculs pour VMA'!D54 -> 00:06:37.316 | B51: ='Calculs pour VMA'!F54 -> 4 tours 9 plots | C51: ='Calculs pour VMA'!E54 -> 12.28165872 | D51: 1176 | F51: ='Calculs pour VMA'!D105 -> 00:12:00 | G51: ='Calculs pour VMA'!F105 -> 10 tours | H51: ='Calculs pour VMA'!E105 -> 14.97596148 | I51: 2400
A52: ='Calculs pour VMA'!D55 -> 00:06:44.318 | B52: ='Calculs pour VMA'!F55 -> 5 tours | C52: ='Calculs pour VMA'!E55 -> 12.3401438 | D52: 1200 | F52: ='Calculs pour VMA'!D106 -> 00:12:05.751 | G52: ='Calculs pour VMA'!F106 -> 10 tours 1plot | H52: ='Calculs pour VMA'!E106 -> 15.02396172 | I52: 2424
A53: ='Calculs pour VMA'!D56 -> 00:06:51.287 | B53: ='Calculs pour VMA'!F56 -> 5 tours 1plot | C53: ='Calculs pour VMA'!E56 -> 12.39835299 | D53: 1224 | F53: ='Calculs pour VMA'!D107 -> 00:12:11.483 | G53: ='Calculs pour VMA'!F107 -> 10 tours 2 plots | H53: ='Calculs pour VMA'!E107 -> 15.0718091 | I53: 2448 | K53: 00:11:08 | L53: 16 | M53: T | N53: 1 plot | O53: 14 | Q53: 00:18:53 | R53: 32 | S53: T | T53: 2 plots | U53: 17.5
A54: Temps de passage | B54: Nombre de tours | C54: VMA en Km/h | E54: ="Résultats "&" "&"Test VMA "&'Caractéristiques test'!$B$5 &" "&"Km/h" -> Résultats Test VMA 9 Km/h | F54: Temps de passage | G54: Nombre de tours | H54: VMA en Km/h | J54: ="Résultats "&" "&"Test VMA "&'Caractéristiques test'!$B$5 &" "&"Km/h" -> Résultats Test VMA 9 Km/h
A56: ='Calculs pour VMA'!D108 -> 00:12:17.198 | B56: ='Calculs pour VMA'!F108 -> 10 tours 3 plots | C56: ='Calculs pour VMA'!E108 -> 15.11950505 | F56: ='Calculs pour VMA'!D159 -> 00:16:48 | G56: ='Calculs pour VMA'!F159 -> 15 tours 4 plots | H56: ='Calculs pour VMA'!E159 -> 17.37928568
A57: ='Calculs pour VMA'!D109 -> 00:12:22.894 | B57: ='Calculs pour VMA'!F109 -> 10 tours 4 plots | C57: ='Calculs pour VMA'!E109 -> 15.16705102 | F57: ='Calculs pour VMA'!D160 -> 00:16:52.960 | G57: ='Calculs pour VMA'!F160 -> 15 tours 5 plots | H57: ='Calculs pour VMA'!E160 -> 17.42066511
A58: ='Calculs pour VMA'!D110 -> 00:12:28.573 | B58: ='Calculs pour VMA'!F110 -> 10 tours 5 plots | C58: ='Calculs pour VMA'!E110 -> 15.2144484 | F58: ='Calculs pour VMA'!D161 -> 00:16:57.908 | G58: ='Calculs pour VMA'!F161 -> 15 tours 6 plots | H58: ='Calculs pour VMA'!E161 -> 17.46194648
A59: ='Calculs pour VMA'!D111 -> 00:12:34.234 | B59: ='Calculs pour VMA'!F111 -> 10 tours 6 plots | C59: ='Calculs pour VMA'!E111 -> 15.26169858 | F59: ='Calculs pour VMA'!D162 -> 00:17:02.844 | G59: ='Calculs pour VMA'!F162 -> 15 tours 7 plots | H59: ='Calculs pour VMA'!E162 -> 17.50313049
A60: ='Calculs pour VMA'!D112 -> 00:12:39.878 | B60: ='Calculs pour VMA'!F112 -> 10 tours 7 plots | C60: ='Calculs pour VMA'!E112 -> 15.30880293 | F60: ='Calculs pour VMA'!D163 -> 00:17:07.768 | G60: ='Calculs pour VMA'!F163 -> 15 tours 8 plots | H60: ='Calculs pour VMA'!E163 -> 17.54421782
A61: ='Calculs pour VMA'!D113 -> 00:12:45.505 | B61: ='Calculs pour VMA'!F113 -> 10 tours 8 plots | C61: ='Calculs pour VMA'!E113 -> 15.35576277 | F61: ='Calculs pour VMA'!D164 -> 00:17:12.682 | G61: ='Calculs pour VMA'!F164 -> 15 tours 9 plots | H61: ='Calculs pour VMA'!E164 -> 17.58520915
A62: ='Calculs pour VMA'!D114 -> 00:12:51.114 | B62: ='Calculs pour VMA'!F114 -> 10 tours 9 plots | C62: ='Calculs pour VMA'!E114 -> 15.40257945 | F62: ='Calculs pour VMA'!D165 -> 00:17:17.584 | G62: ='Calculs pour VMA'!F165 -> 16 tours | H62: ='Calculs pour VMA'!E165 -> 17.62610515
A63: ='Calculs pour VMA'!D115 -> 00:12:56.707 | B63: ='Calculs pour VMA'!F115 -> 11 tours | C63: ='Calculs pour VMA'!E115 -> 15.44925425 | F63: ='Calculs pour VMA'!D166 -> 00:17:22.474 | G63: ='Calculs pour VMA'!F166 -> 16 tours 1plot | H63: ='Calculs pour VMA'!E166 -> 17.66690649
A64: ='Calculs pour VMA'!D116 -> 00:13:02.282 | B64: ='Calculs pour VMA'!F116 -> 11 tours 1plot | C64: ='Calculs pour VMA'!E116 -> 15.49578847 | F64: ='Calculs pour VMA'!D167 -> 00:17:27.353 | G64: ='Calculs pour VMA'!F167 -> 16 tours 2 plots | H64: ='Calculs pour VMA'!E167 -> 17.70761381
A65: ='Calculs pour VMA'!D117 -> 00:13:07.842 | B65: ='Calculs pour VMA'!F117 -> 11 tours 2 plots | C65: ='Calculs pour VMA'!E117 -> 15.54218336 | F65: ='Calculs pour VMA'!D168 -> 00:17:32.221 | G65: ='Calculs pour VMA'!F168 -> 16 tours 3 plots | H65: ='Calculs pour VMA'!E168 -> 17.74822776
A66: ='Calculs pour VMA'!D118 -> 00:13:13.384 | B66: ='Calculs pour VMA'!F118 -> 11 tours 3 plots | C66: ='Calculs pour VMA'!E118 -> 15.58844016 | F66: ='Calculs pour VMA'!D169 -> 00:17:37.078 | G66: ='Calculs pour VMA'!F169 -> 16 tours 4 plots | H66: ='Calculs pour VMA'!E169 -> 17.78874898
A67: ='Calculs pour VMA'!D119 -> 00:13:18.910 | B67: ='Calculs pour VMA'!F119 -> 11 tours 4 plots | C67: ='Calculs pour VMA'!E119 -> 15.63456011 | F67: ='Calculs pour VMA'!D170 -> 00:17:41.924 | G67: ='Calculs pour VMA'!F170 -> 16 tours 5 plots | H67: ='Calculs pour VMA'!E170 -> 17.82917812
A68: ='Calculs pour VMA'!D120 -> 00:13:24.420 | B68: ='Calculs pour VMA'!F120 -> 11 tours 5 plots | C68: ='Calculs pour VMA'!E120 -> 15.68054441 | F68: ='Calculs pour VMA'!D171 -> 00:17:46.759 | G68: ='Calculs pour VMA'!F171 -> 16 tours 6 plots | H68: ='Calculs pour VMA'!E171 -> 17.86951578
A69: ='Calculs pour VMA'!D121 -> 00:13:29.914 | B69: ='Calculs pour VMA'!F121 -> 11 tours 6 plots | C69: ='Calculs pour VMA'!E121 -> 15.72639425 | F69: ='Calculs pour VMA'!D172 -> 00:17:51.584 | G69: ='Calculs pour VMA'!F172 -> 16 tours 7 plots | H69: ='Calculs pour VMA'!E172 -> 17.90976259
A70: ='Calculs pour VMA'!D122 -> 00:13:35.392 | B70: ='Calculs pour VMA'!F122 -> 11 tours 7 plots | C70: ='Calculs pour VMA'!E122 -> 15.7721108 | F70: ='Calculs pour VMA'!D173 -> 00:17:56.397 | G70: ='Calculs pour VMA'!F173 -> 16 tours 8 plots | H70: ='Calculs pour VMA'!E173 -> 17.94991916
A71: ='Calculs pour VMA'!D123 -> 00:13:40.855 | B71: ='Calculs pour VMA'!F123 -> 11 tours 8 plots | C71: ='Calculs pour VMA'!E123 -> 15.81769522 | F71: ='Calculs pour VMA'!D174 -> 00:18:01.200 | G71: ='Calculs pour VMA'!F174 -> 16 tours 9 plots | H71: ='Calculs pour VMA'!E174 -> 17.98998609
A72: ='Calculs pour VMA'!D124 -> 00:13:46.301 | B72: ='Calculs pour VMA'!F124 -> 11 tours 9 plots | C72: ='Calculs pour VMA'!E124 -> 15.86314865 | F72: ='Calculs pour VMA'!D175 -> 00:18:05.992 | G72: ='Calculs pour VMA'!F175 -> 17 tours | H72: ='Calculs pour VMA'!E175 -> 18.02996399
A73: ='Calculs pour VMA'!D125 -> 00:13:51.732 | B73: ='Calculs pour VMA'!F125 -> 12 tours | C73: ='Calculs pour VMA'!E125 -> 15.90847221 | F73: ='Calculs pour VMA'!D176 -> 00:18:10.773 | G73: ='Calculs pour VMA'!F176 -> 17 tours 1plot | H73: ='Calculs pour VMA'!E176 -> 18.06985343
A74: ='Calculs pour VMA'!D126 -> 00:13:57.148 | B74: ='Calculs pour VMA'!F126 -> 12 tours 1plot | C74: ='Calculs pour VMA'!E126 -> 15.953667 | F74: ='Calculs pour VMA'!D177 -> 00:18:15.544 | G74: ='Calculs pour VMA'!F177 -> 17 tours 2 plots | H74: ='Calculs pour VMA'!E177 -> 18.10965502
A75: ='Calculs pour VMA'!D127 -> 00:14:02.548 | B75: ='Calculs pour VMA'!F127 -> 12 tours 2 plots | C75: ='Calculs pour VMA'!E127 -> 15.99873413 | F75: ='Calculs pour VMA'!D178 -> 00:18:20.305 | G75: ='Calculs pour VMA'!F178 -> 17 tours 3 plots | H75: ='Calculs pour VMA'!E178 -> 18.14936932
A76: ='Calculs pour VMA'!D128 -> 00:14:07.934 | B76: ='Calculs pour VMA'!F128 -> 12 tours 3 plots | C76: ='Calculs pour VMA'!E128 -> 16.04367466 | F76: ='Calculs pour VMA'!D179 -> 00:18:25.055 | G76: ='Calculs pour VMA'!F179 -> 17 tours 4 plots | H76: ='Calculs pour VMA'!E179 -> 18.1889969
A77: ='Calculs pour VMA'!D129 -> 00:14:13.304 | B77: ='Calculs pour VMA'!F129 -> 12 tours 4 plots | C77: ='Calculs pour VMA'!E129 -> 16.08848965 | F77: ='Calculs pour VMA'!D180 -> 00:18:29.795 | G77: ='Calculs pour VMA'!F180 -> 17 tours 5 plots | H77: ='Calculs pour VMA'!E180 -> 18.22853834
A78: ='Calculs pour VMA'!D130 -> 00:14:18.659 | B78: ='Calculs pour VMA'!F130 -> 12 tours 5 plots | C78: ='Calculs pour VMA'!E130 -> 16.13318016 | F78: ='Calculs pour VMA'!D181 -> 00:18:34.524 | G78: ='Calculs pour VMA'!F181 -> 17 tours 6 plots | H78: ='Calculs pour VMA'!E181 -> 18.26799419
A79: ='Calculs pour VMA'!D131 -> 00:14:24 | B79: ='Calculs pour VMA'!F131 -> 12 tours 6 plots | C79: ='Calculs pour VMA'!E131 -> 16.17774721 | F79: ='Calculs pour VMA'!D182 -> 00:18:39.244 | G79: ='Calculs pour VMA'!F182 -> 17 tours 7 plots | H79: ='Calculs pour VMA'!E182 -> 18.307365
A80: ='Calculs pour VMA'!D132 -> 00:14:29.326 | B80: ='Calculs pour VMA'!F132 -> 12 tours 7 plots | C80: ='Calculs pour VMA'!E132 -> 16.22219182 | F80: ='Calculs pour VMA'!D183 -> 00:18:43.953 | G80: ='Calculs pour VMA'!F183 -> 17 tours 8 plots | H80: ='Calculs pour VMA'!E183 -> 18.34665133
A81: ='Calculs pour VMA'!D133 -> 00:14:34.638 | B81: ='Calculs pour VMA'!F133 -> 12 tours 8 plots | C81: ='Calculs pour VMA'!E133 -> 16.266515 | F81: ='Calculs pour VMA'!D184 -> 00:18:48.652 | G81: ='Calculs pour VMA'!F184 -> 17 tours 9 plots | H81: ='Calculs pour VMA'!E184 -> 18.38585371
A82: ='Calculs pour VMA'!D134 -> 00:14:39.935 | B82: ='Calculs pour VMA'!F134 -> 12 tours 9 plots | C82: ='Calculs pour VMA'!E134 -> 16.31071773 | F82: ='Calculs pour VMA'!D185 -> 00:18:53.341 | G82: ='Calculs pour VMA'!F185 -> 18 tours | H82: ='Calculs pour VMA'!E185 -> 18.42497268
A83: ='Calculs pour VMA'!D135 -> 00:14:45.218 | B83: ='Calculs pour VMA'!F135 -> 13 tours | C83: ='Calculs pour VMA'!E135 -> 16.35480099 | F83: ='Calculs pour VMA'!D186 -> 00:18:58.021 | G83: ='Calculs pour VMA'!F186 -> 18 tours 1plot | H83: ='Calculs pour VMA'!E186 -> 18.46400877
A84: ='Calculs pour VMA'!D136 -> 00:14:50.486 | B84: ='Calculs pour VMA'!F136 -> 13 tours 1plot | C84: ='Calculs pour VMA'!E136 -> 16.39876575 | F84: ='Calculs pour VMA'!D187 -> 00:19:02.690 | G84: ='Calculs pour VMA'!F187 -> 18 tours 2 plots | H84: ='Calculs pour VMA'!E187 -> 18.5029625
A85: ='Calculs pour VMA'!D137 -> 00:14:55.741 | B85: ='Calculs pour VMA'!F137 -> 13 tours 2 plots | C85: ='Calculs pour VMA'!E137 -> 16.44261295 | F85: ='Calculs pour VMA'!D188 -> 00:19:07.350 | G85: ='Calculs pour VMA'!F188 -> 18 tours 3 plots | H85: ='Calculs pour VMA'!E188 -> 18.5418344
A86: ='Calculs pour VMA'!D138 -> 00:15:00.982 | B86: ='Calculs pour VMA'!F138 -> 13 tours 3 plots | C86: ='Calculs pour VMA'!E138 -> 16.48634354 | F86: ='Calculs pour VMA'!D189 -> 00:19:12 | G86: ='Calculs pour VMA'!F189 -> 18 tours 4 plots | H86: ='Calculs pour VMA'!E189 -> 18.58062498
A87: ='Calculs pour VMA'!D139 -> 00:15:06.208 | B87: ='Calculs pour VMA'!F139 -> 13 tours 4 plots | C87: ='Calculs pour VMA'!E139 -> 16.52995843 | F87: ='Calculs pour VMA'!D190 -> 00:19:16.640 | G87: ='Calculs pour VMA'!F190 -> 18 tours 5 plots | H87: ='Calculs pour VMA'!E190 -> 18.61933474
A88: ='Calculs pour VMA'!D140 -> 00:15:11.422 | B88: ='Calculs pour VMA'!F140 -> 13 tours 5 plots | C88: ='Calculs pour VMA'!E140 -> 16.57345855 | F88: ='Calculs pour VMA'!D191 -> 00:19:21.271 | G88: ='Calculs pour VMA'!F191 -> 18 tours 6 plots | H88: ='Calculs pour VMA'!E191 -> 18.65796419
A89: ='Calculs pour VMA'!D141 -> 00:15:16.621 | B89: ='Calculs pour VMA'!F141 -> 13 tours 6 plots | C89: ='Calculs pour VMA'!E141 -> 16.61684479 | F89: ='Calculs pour VMA'!D192 -> 00:19:25.892 | G89: ='Calculs pour VMA'!F192 -> 18 tours 7 plots | H89: ='Calculs pour VMA'!E192 -> 18.69651383
A90: ='Calculs pour VMA'!D142 -> 00:15:21.807 | B90: ='Calculs pour VMA'!F142 -> 13 tours 7 plots | C90: ='Calculs pour VMA'!E142 -> 16.66011804 | F90: ='Calculs pour VMA'!D193 -> 00:19:30.504 | G90: ='Calculs pour VMA'!F193 -> 18 tours 8 plots | H90: ='Calculs pour VMA'!E193 -> 18.73498414
A91: ='Calculs pour VMA'!D143 -> 00:15:26.980 | B91: ='Calculs pour VMA'!F143 -> 13 tours 8 plots | C91: ='Calculs pour VMA'!E143 -> 16.70327918 | F91: ='Calculs pour VMA'!D194 -> 00:19:35.106 | G91: ='Calculs pour VMA'!F194 -> 18 tours 9 plots | H91: ='Calculs pour VMA'!E194 -> 18.77337562
A92: ='Calculs pour VMA'!D144 -> 00:15:32.139 | B92: ='Calculs pour VMA'!F144 -> 13 tours 9 plots | C92: ='Calculs pour VMA'!E144 -> 16.74632909 | F92: ='Calculs pour VMA'!D195 -> 00:19:39.699 | G92: ='Calculs pour VMA'!F195 -> 19 tours | H92: ='Calculs pour VMA'!E195 -> 18.81168875
A93: ='Calculs pour VMA'!D145 -> 00:15:37.285 | B93: ='Calculs pour VMA'!F145 -> 14 tours | C93: ='Calculs pour VMA'!E145 -> 16.7892686 | F93: ='Calculs pour VMA'!D196 -> 00:19:44.283 | G93: ='Calculs pour VMA'!F196 -> 19 tours 1plot | H93: ='Calculs pour VMA'!E196 -> 18.84992401
A94: ='Calculs pour VMA'!D146 -> 00:15:42.418 | B94: ='Calculs pour VMA'!F146 -> 14 tours 1plot | C94: ='Calculs pour VMA'!E146 -> 16.83209858 | F94: ='Calculs pour VMA'!D197 -> 00:19:48.857 | G94: ='Calculs pour VMA'!F197 -> 19 tours 2 plots | H94: ='Calculs pour VMA'!E197 -> 18.88808187
A95: ='Calculs pour VMA'!D147 -> 00:15:47.538 | B95: ='Calculs pour VMA'!F147 -> 14 tours 2 plots | C95: ='Calculs pour VMA'!E147 -> 16.87481985 | F95: ='Calculs pour VMA'!D198 -> 00:19:53.422 | G95: ='Calculs pour VMA'!F198 -> 19 tours 3 plots | H95: ='Calculs pour VMA'!E198 -> 18.9261628
A96: ='Calculs pour VMA'!D148 -> 00:15:52.646 | B96: ='Calculs pour VMA'!F148 -> 14 tours 3 plots | C96: ='Calculs pour VMA'!E148 -> 16.91743323 | F96: ='Calculs pour VMA'!D199 -> 00:19:57.978 | G96: ='Calculs pour VMA'!F199 -> 19 tours 4 plots | H96: ='Calculs pour VMA'!E199 -> 18.96416725
A97: ='Calculs pour VMA'!D149 -> 00:15:57.740 | B97: ='Calculs pour VMA'!F149 -> 14 tours 4 plots | C97: ='Calculs pour VMA'!E149 -> 16.95993955 | F97: ='Calculs pour VMA'!D200 -> 00:20:02.525 | G97: ='Calculs pour VMA'!F200 -> 19 tours 5 plots | H97: ='Calculs pour VMA'!E200 -> 19.0020957
A98: ='Calculs pour VMA'!D150 -> 00:16:02.822 | B98: ='Calculs pour VMA'!F150 -> 14 tours 5 plots | C98: ='Calculs pour VMA'!E150 -> 17.00233959 | F98: ='Calculs pour VMA'!D201 -> 00:20:07.063 | G98: ='Calculs pour VMA'!F201 -> 19 tours 6 plots | H98: ='Calculs pour VMA'!E201 -> 19.0399486
A99: ='Calculs pour VMA'!D151 -> 00:16:07.891 | B99: ='Calculs pour VMA'!F151 -> 14 tours 6 plots | C99: ='Calculs pour VMA'!E151 -> 17.04463417 | F99: ='Calculs pour VMA'!D202 -> 00:20:11.592 | G99: ='Calculs pour VMA'!F202 -> 19 tours 7 plots | H99: ='Calculs pour VMA'!E202 -> 19.07772638
A100: ='Calculs pour VMA'!D152 -> 00:16:12.947 | B100: ='Calculs pour VMA'!F152 -> 14 tours 7 plots | C100: ='Calculs pour VMA'!E152 -> 17.08682405 | F100: ='Calculs pour VMA'!D203 -> 00:20:16.111 | G100: ='Calculs pour VMA'!F203 -> 19 tours 8 plots | H100: ='Calculs pour VMA'!E203 -> 19.11542951
A101: ='Calculs pour VMA'!D153 -> 00:16:17.991 | B101: ='Calculs pour VMA'!F153 -> 14 tours 8 plots | C101: ='Calculs pour VMA'!E153 -> 17.12891001 | F101: ='Calculs pour VMA'!D204 -> 00:20:20.623 | G101: ='Calculs pour VMA'!F204 -> 19 tours 9 plots | H101: ='Calculs pour VMA'!E204 -> 19.15305842
A102: ='Calculs pour VMA'!D154 -> 00:16:23.023 | B102: ='Calculs pour VMA'!F154 -> 14 tours 9 plots | C102: ='Calculs pour VMA'!E154 -> 17.17089283 | F102: ='Calculs pour VMA'!D205 -> 00:20:25.125 | G102: ='Calculs pour VMA'!F205 -> 20 tours | H102: ='Calculs pour VMA'!E205 -> 19.19061354
A103: ='Calculs pour VMA'!D155 -> 00:16:28.043 | B103: ='Calculs pour VMA'!F155 -> 15 tours | C103: ='Calculs pour VMA'!E155 -> 17.21277324 | F103: ='Calculs pour VMA'!D206 -> 00:20:29.618 | G103: ='Calculs pour VMA'!F206 -> 20 tours 1plot | H103: ='Calculs pour VMA'!E206 -> 19.22809532
A104: ='Calculs pour VMA'!D156 -> 00:16:33.050 | B104: ='Calculs pour VMA'!F156 -> 15 tours 1plot | C104: ='Calculs pour VMA'!E156 -> 17.254552 | F104: ='Calculs pour VMA'!D207 -> 00:20:34.103 | G104: ='Calculs pour VMA'!F207 -> 20 tours 2 plots | H104: ='Calculs pour VMA'!E207 -> 19.26550417
A105: ='Calculs pour VMA'!D157 -> 00:16:38.045 | B105: ='Calculs pour VMA'!F157 -> 15 tours 2 plots | C105: ='Calculs pour VMA'!E157 -> 17.29622984 | F105: ='Calculs pour VMA'!D208 -> 00:20:38.579 | G105: ='Calculs pour VMA'!F208 -> 20 tours 3 plots | H105: ='Calculs pour VMA'!E208 -> 19.30284052
A106: ='Calculs pour VMA'!D158 -> 00:16:43.029 | B106: ='Calculs pour VMA'!F158 -> 15 tours 3 plots | C106: ='Calculs pour VMA'!E158 -> 17.3378075 | F106: ='Calculs pour VMA'!D209 -> 00:20:43.046 | G106: ='Calculs pour VMA'!F209 -> 20 tours 4 plots | H106: ='Calculs pour VMA'!E209 -> 19.3401048

Sheet TUTORIEL
